Workbook

Sheet Skema 1
A1: Region Hovedstaden, somatiske sygehuse.
B2: Skema 1: Udgifter og indtægter på sygehusene/enhederne, eksklusiv omkostningssted 0001, Fælleskonto. (1.000 kr.)
A5: Sygehus | C5: 2023 | D5: 2022 | E5: 2021 | F5: 2020 | G5: Δ2022-2023 | H5: % afvigelse | I5: Begrundelse
A6: Rigshospitalet
A7: Rigshospitalet | B7: Hovedart 1: Lønninger | C7: 6744620.072 | D7: 6468423.698 | E7: 6157256.127 | F7: 5915219.957 | G7: =IF(ISERROR(C7- D7)=TRUE,"",C7 - D7) -> 276196.374 | H7: =IF(ISERROR((((C7- D7)/D7)*100)=TRUE),"",IF((((C7- D7)/D7)*100)<-7,FIXED(((C7- D7)/D7)*100, 1,TRUE) &"%" & "▼",IF((((C7- D7)/D7)*100)>7,FIXED(((C7- D7)/D7)*100, 1,TRUE) &"%" &"▲",FIXED(((C7- D7)/D7)*100, 1,TRUE)&"%"))) -> 4,3%
A8: Rigshospitalet | B8: Hovedart 2: Varekøb | C8: 1647171.018 | D8: 1535020.641 | E8: 1576507.169 | F8: 1460497.877 | G8: 112150.3772 | H8: 7,3%▲
A9: Rigshospitalet | B9: Hovedart 4: Tjenesteydelser m.v. | C9: 2882137.546 | D9: 2973208.585 | E9: 2992551.182 | F9: 2682750.032 | G9: -91071.03949 | H9: -3,1%
A10: Rigshospitalet | B10: Hovedart 5: Tilskud og overførsler | C10: 5589.46205 | D10: 5580.54268 | E10: 3994.02708 | F10: 8394.84036 | G10: 8.91937 | H10: 0,2%
A11: Rigshospitalet | B11: Hovedart 6: Finansudgifter | D11: 0 | E11: 0 | F11: 0 | G11: 0
A12: Rigshospitalet | B12: Hovedart 7: Indtægter | C12: -4085026.07 | D12: -3820351.23 | E12: -3678609.064 | F12: -3596066.202 | G12: -264674.8403 | H12: 6,9%
A13: Rigshospitalet | B13: Hovedart 8: Finansindtægter | G13: 0
A14: Rigshospitalet | B14: Hovedart 9: Interne udgifter og indtægter | G14: 0
A15: Rigshospitalet | B15: I alt | C15: =SUMIFS((C7:C14),(A7:A14),A15) -> 7194492.028 | D15: =SUMIFS((D7:D14),(A7:A14),A15) -> 7161882.237 | E15: =SUMIFS((E7:E14),(A7:A14),A15) -> 7051699.44 | F15: =SUMIFS((F7:F14),(A7:A14),A15) -> 6470796.505 | G15: 32609.79083 | H15: 0,5%
A16: Bispebjerg og Frederiksberg Hospital | G16: 0
A17: Bispebjerg og Frederiksberg Hospital | B17: Hovedart 1: Lønninger | C17: 2198124.17 | D17: 2187356.428 | E17: 2103477.534 | F17: 2040472.762 | G17: 10767.74185 | H17: 0,5%
A18: Bispebjerg og Frederiksberg Hospital | B18: Hovedart 2: Varekøb | C18: 271813.0921 | D18: 310807.9094 | E18: 334466.9103 | F18: 291879.0639 | G18: -38994.81732 | H18: -12,5%▼
A19: Bispebjerg og Frederiksberg Hospital | B19: Hovedart 4: Tjenesteydelser m.v. | C19: 325430.1021 | D19: 313396.4349 | E19: 249285.7901 | F19: 314193.5662 | G19: 12033.66724 | H19: 3,8%
A20: Bispebjerg og Frederiksberg Hospital | B20: Hovedart 5: Tilskud og overførsler | C20: 3687.11895 | D20: 2663.17178 | E20: 1853.28399 | F20: 1712.94298 | G20: 1023.94717 | H20: 38,4%▲
A21: Bispebjerg og Frederiksberg Hospital | B21: Hovedart 6: Finansudgifter | D21: 0 | E21: 0 | F21: 0 | G21: 0
A22: Bispebjerg og Frederiksberg Hospital | B22: Hovedart 7: Indtægter | C22: -399465.7934 | D22: -332643.9635 | E22: -307296.0306 | F22: -323394.7781 | G22: -66821.82987 | H22: 20,1%▲ | I22: Stigende indtægter patientbehandling ca 21 mio. kr. jfr. skema 6
A23: Bispebjerg og Frederiksberg Hospital | B23: Hovedart 8: Finansindtægter | G23: 0
A24: Bispebjerg og Frederiksberg Hospital | B24: Hovedart 9: Interne udgifter og indtægter | G24: 0
A25: Bispebjerg og Frederiksberg Hospital | B25: I alt | C25: =SUMIFS((C7:C24),(A7:A24),A25) -> 2399588.69 | D25: =SUMIFS((D7:D24),(A7:A24),A25) -> 2481579.981 | E25: =SUMIFS((E7:E24),(A7:A24),A25) -> 2381787.488 | F25: =SUMIFS((F7:F24),(A7:A24),A25) -> 2324863.557 | G25: -81991.29093 | H25: -3,3%
A26: Amager og Hvidovre Hospital | G26: 0
A27: Amager og Hvidovre Hospital | B27: Hovedart 1: Lønninger | C27: 2447569.915 | D27: 2525879.207 | E27: 2430169.606 | F27: 2344614.209 | G27: -78309.29206 | H27: -3,1%
A28: Amager og Hvidovre Hospital | B28: Hovedart 2: Varekøb | C28: 383473.9578 | D28: 410105.4198 | E28: 467931.9798 | F28: 386593.5749 | G28: -26631.46205 | H28: -6,5%
A29: Amager og Hvidovre Hospital | B29: Hovedart 4: Tjenesteydelser m.v. | C29: 524055.9056 | D29: 567022.1741 | E29: 348370.9062 | F29: 486495.8526 | G29: -42966.26843 | H29: -7,6%▼ | I29: Faldende udgifter til eksterne vikarer ca 36 mio. kr.
A30: Amager og Hvidovre Hospital | B30: Hovedart 5: Tilskud og overførsler | C30: 1310.1708 | D30: 3277.76764 | E30: 1632.35314 | F30: 4308.40799 | G30: -1967.59684 | H30: -60,0%▼
A31: Amager og Hvidovre Hospital | B31: Hovedart 6: Finansudgifter | D31: 0 | E31: 0 | F31: 0 | G31: 0
A32: Amager og Hvidovre Hospital | B32: Hovedart 7: Indtægter | C32: -311376.8136 | D32: -300968.4192 | E32: -258329.4231 | F32: -285380.0542 | G32: -10408.39444 | H32: 3,5%
A33: Amager og Hvidovre Hospital | B33: Hovedart 8: Finansindtægter | G33: 0
A34: Amager og Hvidovre Hospital | B34: Hovedart 9: Interne udgifter og indtægter | G34: 0
A35: Amager og Hvidovre Hospital | B35: I alt | C35: =SUMIFS((C7:C34),(A7:A34),A35) -> 3045033.136 | D35: =SUMIFS((D7:D34),(A7:A34),A35) -> 3205316.15 | E35: =SUMIFS((E7:E34),(A7:A34),A35) -> 2989775.422 | F35: =SUMIFS((F7:F34),(A7:A34),A35) -> 2936631.991 | G35: -160283.0138 | H35: -5,0%
A36: Herlev og Gentofte Hospital | G36: 0
A37: Herlev og Gentofte Hospital | B37: Hovedart 1: Lønninger | C37: 3706113.244 | D37: 3647103.634 | E37: 3511104.55 | F37: 3444623.641 | G37: 59009.60991 | H37: 1,6%
A38: Herlev og Gentofte Hospital | B38: Hovedart 2: Varekøb | C38: 711847.5353 | D38: 674734.6865 | E38: 701252.5417 | F38: 673513.6965 | G38: 37112.84877 | H38: 5,5%
A39: Herlev og Gentofte Hospital | B39: Hovedart 4: Tjenesteydelser m.v. | C39: 1232986.102 | D39: 1300633.868 | E39: 1066033.628 | F39: 1233430.417 | G39: =IF(ISERROR(C39- D39)=TRUE,"",C39 - D39) -> -67647.76657 | H39: =IF(ISERROR((((C39- D39)/D39)*100)=TRUE),"",IF((((C39- D39)/D39)*100)<-7,FIXED(((C39- D39)/D39)*100, 1,TRUE) &"%" & "▼",IF((((C39- D39)/D39)*100)>7,FIXED(((C39- D39)/D39)*100, 1,TRUE) &"%" &"▲",FIXED(((C39- D39)/D39)*100, 1,TRUE)&"%"))) -> -5,2% | I39: Forbrug privathospitaler
A40: Herlev og Gentofte Hospital | B40: Hovedart 5: Tilskud og overførsler | C40: 3556.50641 | D40: 4708.49547 | E40: 5406.25661 | F40: 2728.26963 | G40: -1151.98906 | H40: -24,5%▼
A41: Herlev og Gentofte Hospital | B41: Hovedart 6: Finansudgifter | D41: 0 | E41: 0 | F41: 0 | G41: 0
A42: Herlev og Gentofte Hospital | B42: Hovedart 7: Indtægter | C42: -617087.8136 | D42: -604243.7019 | E42: -523344.8715 | F42: -493450.477 | G42: -12844.11168 | H42: 2,1% | I42: Primært efterregulering medicin særydelser 2017, 2018 og 2021
A43: Herlev og Gentofte Hospital | B43: Hovedart 8: Finansindtægter | G43: 0
A44: Herlev og Gentofte Hospital | B44: Hovedart 9: Interne udgifter og indtægter | G44: 0
A45: Herlev og Gentofte Hospital | B45: I alt | C45: =SUMIFS((C7:C44),(A7:A44),A45) -> 5037415.574 | D45: =SUMIFS((D7:D44),(A7:A44),A45) -> 5022936.983 | E45: =SUMIFS((E7:E44),(A7:A44),A45) -> 4760452.105 | F45: =SUMIFS((F7:F44),(A7:A44),A45) -> 4860845.546 | G45: 14478.59137 | H45: 0,3%
A46: Nordsjællands Hospital | G46: 0
A47: Nordsjællands Hospital | B47: Hovedart 1: Lønninger | C47: 2090243.594 | D47: 2068710.942 | E47: 1994507.155 | F47: 1938440.692 | G47: 21532.65176 | H47: 1,0%
A48: Nordsjællands Hospital | B48: Hovedart 2: Varekøb | C48: 296074.1815 | D48: 272109.4556 | E48: 305410.3444 | F48: 299542.6231 | G48: 23964.72588 | H48: 8,8%▲
A49: Nordsjællands Hospital | B49: Hovedart 4: Tjenesteydelser m.v. | C49: 430962.3017 | D49: 417430.1007 | E49: 304692.6736 | F49: 336486.5812 | G49: 13532.20096 | H49: 3,2% | I49: Forbrug privathospitaler
A50: Nordsjællands Hospital | B50: Hovedart 5: Tilskud og overførsler | C50: 2051.19305 | D50: 2512.98896 | E50: 2698.47378 | F50: 2256.79408 | G50: -461.79591 | H50: -18,4%▼
A51: Nordsjællands Hospital | B51: Hovedart 6: Finansudgifter | D51: 0 | E51: 0 | F51: 0 | G51: 0
A52: Nordsjællands Hospital | B52: Hovedart 7: Indtægter | C52: -100507.7146 | D52: -95187.40546 | E52: -73278.47866 | F52: -75669.09123 | G52: -5320.30915 | H52: 5,6% | I52: Primært grundet stigning i den mellemregionale afregning. Genåbning af Montebello
A53: Nordsjællands Hospital | B53: Hovedart 8: Finansindtægter | G53: 0
A54: Nordsjællands Hospital | B54: Hovedart 9: Interne udgifter og indtægter | G54: 0
A55: Nordsjællands Hospital | B55: I alt | C55: =SUMIFS((C7:C54),(A7:A54),A55) -> 2718823.555 | D55: =SUMIFS((D7:D54),(A7:A54),A55) -> 2665576.082 | E55: =SUMIFS((E7:E54),(A7:A54),A55) -> 2534030.168 | F55: =SUMIFS((F7:F54),(A7:A54),A55) -> 2501057.599 | G55: 53247.47354 | H55: 2,0%
A56: Bornholms Hospital | G56: 0
A57: Bornholms Hospital | B57: Hovedart 1: Lønninger | C57: 342648.1913 | D57: 344863.936 | E57: 325143.0616 | F57: 317585.7861 | G57: -2215.74463 | H57: -0,6%
A58: Bornholms Hospital | B58: Hovedart 2: Varekøb | C58: 34769.01219 | D58: 39987.92316 | E58: 42261.19122 | F58: 43264.9482 | G58: -5218.91097 | H58: -13,1%▼
A59: Bornholms Hospital | B59: Hovedart 4: Tjenesteydelser m.v. | C59: 99613.49908 | D59: 87569.08386 | E59: 75055.83425 | F59: 70444.00823 | G59: 12044.41522 | H59: 13,8%▲ | I59: Stigende udgifter medicin og vikarer. Ændring af momsafløftning patienttransport
A60: Bornholms Hospital | B60: Hovedart 5: Tilskud og overførsler | C60: 6632.89719 | D60: 1896.39849 | E60: 1772.77821 | F60: 1892.94016 | G60: 4736.4987 | H60: 249,8%▲ | I60: Arbejdsskadeerstatning
A61: Bornholms Hospital | B61: Hovedart 6: Finansudgifter | D61: 0 | E61: 0 | F61: 0 | G61: 0
A62: Bornholms Hospital | B62: Hovedart 7: Indtægter | C62: -14890.49653 | D62: -12012.35305 | E62: -14406.96583 | F62: -9944.072 | G62: -2878.14348 | H62: 24,0%▲ | I62: Stigende afregning for patientbehandling
A63: Bornholms Hospital | B63: Hovedart 8: Finansindtægter | G63: 0
A64: Bornholms Hospital | B64: Hovedart 9: Interne udgifter og indtægter | G64: 0
A65: Bornholms Hospital | B65: I alt | C65: =SUMIFS((C7:C64),(A7:A64),A65) -> 468773.1033 | D65: =SUMIFS((D7:D64),(A7:A64),A65) -> 462304.9884 | E65: =SUMIFS((E7:E64),(A7:A64),A65) -> 429825.8995 | F65: =SUMIFS((F7:F64),(A7:A64),A65) -> 423243.6107 | G65: 6468.11484 | H65: 1,4%
A66: Steno | G66: 0
A67: Steno | B67: Hovedart 1: Lønninger | C67: 234737.8084 | D67: 234736.2217 | E67: 216793.8917 | F67: 210270.787 | G67: 1.58675 | H67: 0,0%
A68: Steno | B68: Hovedart 2: Varekøb | C68: 167620.7423 | D68: 138298.0068 | E68: 98370.58636 | F68: 88269.52995 | G68: 29322.73547 | H68: 21,2%▲ | I68: Stigende udgifter til diabetesdevices, sensorer og pumper
A69: Steno | B69: Hovedart 4: Tjenesteydelser m.v. | C69: 62736.28146 | D69: 10685.61328 | E69: 105537.7571 | F69: -72160.42682 | G69: 52050.66818 | H69: 487,1%▲ | I69: Bogføring i 2022 af et mindreforbrug fra 2021 på 35,8 mio. kr vedr. NNF midler
A70: Steno | B70: Hovedart 5: Tilskud og overførsler | F70: 2.51993 | G70: 0
A71: Steno | B71: Hovedart 6: Finansudgifter | F71: 0 | G71: =IF(ISERROR(C71- D71)=TRUE,"",C71 - D71) -> 0 | H71: =IF(ISERROR((((C71- D71)/D71)*100)=TRUE),"",IF((((C71- D71)/D71)*100)<-7,FIXED(((C71- D71)/D71)*100, 1,TRUE) &"%" & "▼",IF((((C71- D71)/D71)*100)>7,FIXED(((C71- D71)/D71)*100, 1,TRUE) &"%" &"▲",FIXED(((C71- D71)/D71)*100, 1,TRUE)&"%"))) -> 
A72: Steno | B72: Hovedart 7: Indtægter | C72: -245258.356 | D72: -190562.7353 | E72: -273662.9802 | F72: -92764.57631 | G72: -54695.6207 | H72: 28,7%▲ | I72: NNF bevilling, stigningen hænger sammen med farklaring vedr. art 4.
A73: Steno | B73: Hovedart 8: Finansindtægter | G73: 0
A74: Steno | B74: Hovedart 9: Interne udgifter og indtægter | G74: 0
A75: Steno | B75: I alt | C75: =SUMIFS((C7:C74),(A7:A74),A75) -> 219836.4761 | D75: =SUMIFS((D7:D74),(A7:A74),A75) -> 193157.1064 | E75: =SUMIFS((E7:E74),(A7:A74),A75) -> 147039.2549 | F75: =SUMIFS((F7:F74),(A7:A74),A75) -> 133617.8338 | G75: 26679.3697 | H75: 13,8%▲ | I75: Fra 2022 til 2023 stiger forbruget på devices, sensorer og pumper med ca 22 mio. kr.
A76: Øvrige i Region Hovedstaden | G76: 0
A77: Øvrige i Region Hovedstaden | B77: Hovedart 1: Lønninger | G77: 0
A78: Øvrige i Region Hovedstaden | B78: Hovedart 2: Varekøb | G78: 0
A79: Øvrige i Region Hovedstaden | B79: Hovedart 4: Tjenesteydelser m.v. | G79: 0
A80: Øvrige i Region Hovedstaden | B80: Hovedart 5: Tilskud og overførsler | G80: 0
A81: Øvrige i Region Hovedstaden | B81: Hovedart 6: Finansudgifter | G81: 0
A82: Øvrige i Region Hovedstaden | B82: Hovedart 7: Indtægter | G82: 0
A83: Øvrige i Region Hovedstaden | B83: Hovedart 8: Finansindtægter | G83: 0
A84: Øvrige i Region Hovedstaden | B84: Hovedart 9: Interne udgifter og indtægter | G84: 0
A85: Øvrige i Region Hovedstaden | B85: I alt | C85: =SUMIFS((C7:C84),(A7:A84),A85) -> 0 | D85: =SUMIFS((D7:D84),(A7:A84),A85) -> 0 | E85: =SUMIFS((E7:E84),(A7:A84),A85) -> 0 | F85: =SUMIFS((F7:F84),(A7:A84),A85) -> 0 | G85: 0
A86: Ikke fordelte udgifter og indtægter | G86: 0
A87: Ikke fordelte udgifter og indtægter | B87: Hovedart 1: Lønninger | G87: 0
A88: Ikke fordelte udgifter og indtægter | B88: Hovedart 2: Varekøb | G88: 0
A89: Ikke fordelte udgifter og indtægter | B89: Hovedart 4: Tjenesteydelser m.v. | G89: 0
A90: Ikke fordelte udgifter og indtægter | B90: Hovedart 5: Tilskud og overførsler | G90: 0
A91: Ikke fordelte udgifter og indtægter | B91: Hovedart 6: Finansudgifter | G91: 0
A92: Ikke fordelte udgifter og indtægter | B92: Hovedart 7: Indtægter | G92: 0
A93: Ikke fordelte udgifter og indtægter | B93: Hovedart 8: Finansindtægter | G93: 0
A94: Ikke fordelte udgifter og indtægter | B94: Hovedart 9: Interne udgifter og indtægter | G94: 0
A95: Ikke fordelte udgifter og indtægter | B95: I alt | C95: =SUMIFS((C7:C94),(A7:A94),A95) -> 0 | D95: =SUMIFS((D7:D94),(A7:A94),A95) -> 0 | E95: =SUMIFS((E7:E94),(A7:A94),A95) -> 0 | F95: =SUMIFS((F7:F94),(A7:A94),A95) -> 0 | G95: 0

Sheet Skema 2
A1: Region Hovedstaden, somatiske sygehuse.
B2: Skema 2: Fællesudgifter og -indtægter vedrørende sygehusene. (1.000 kr.)
A5: Sygehus | C5: 2023 | D5: 2022 | E5: 2021 | F5: 2020 | G5: Δ2022-2023 | H5: % afvigelse | I5: Begrundelse
A6: Rigshospitalet
A7: Rigshospitalet | B7: Hovedart 1: Lønninger | C7: 821143.0694 | D7: 781133.0195 | E7: 793326.2332 | F7: 588391.5805 | G7: =IF(ISERROR(C7- D7)=TRUE,"",C7 - D7) -> 40010.04996 | H7: =IF(ISERROR((((C7- D7)/D7)*100)=TRUE),"",IF((((C7- D7)/D7)*100)<-7,FIXED(((C7- D7)/D7)*100, 1,TRUE) &"%" & "▼",IF((((C7- D7)/D7)*100)>7,FIXED(((C7- D7)/D7)*100, 1,TRUE) &"%" &"▲",FIXED(((C7- D7)/D7)*100, 1,TRUE)&"%"))) -> 5,1%
A8: Rigshospitalet | B8: Hovedart 2: Varekøb | C8: 2791108.452 | D8: 2842883.243 | E8: 2995919.073 | F8: 2963343.816 | G8: -51774.79099 | H8: -1,8%
A9: Rigshospitalet | B9: Hovedart 4: Tjenesteydelser m.v. | C9: -1960922.676 | D9: =-1562232.3041324-55496.1154017147 -> -1617728.42 | E9: =-1367105.4243029-9268.40759569354 -> -1376373.832 | F9: =-1334581.66892001-119850.150456491 -> -1454431.819 | G9: -343194.2568 | H9: 21,2%▲ | I9: Ingen reduktion vedr. COVID-19 merudgifter og stigende salg af medicin fra apoteket
A10: Rigshospitalet | B10: Hovedart 5: Tilskud og overførsler | C10: 52.33066408 | D10: -18.16081845 | E10: -755.9078669 | F10: 140.3664317 | G10: 70.49148253 | H10: -388,2%▼
A11: Rigshospitalet | B11: Hovedart 6: Finansudgifter | G11: 0
A12: Rigshospitalet | B12: Hovedart 7: Indtægter | C12: -237933.1321 | D12: -272871.2085 | E12: -351110.4125 | F12: -190750.3623 | G12: 34938.07634 | H12: -12,8%▼
A13: Rigshospitalet | B13: Hovedart 8: Finansindtægter | C13: -28035.07482 | D13: -262755.1243 | E13: -584740.0882 | F13: -777948.2511 | G13: 234720.0495 | H13: -89,3%▼ | I13: Faldende indtægter vedr. COVID kompensation ift. 2022
A14: Rigshospitalet | B14: Hovedart 9: Interne udgifter og indtægter | G14: 0
A15: Rigshospitalet | B15: I alt | C15: =SUMIFS((C7:C14),(A7:A14),A15) -> 1385412.969 | D15: =SUMIFS((D7:D14),(A7:A14),A15) -> 1470643.349 | E15: =SUMIFS((E7:E14),(A7:A14),A15) -> 1476265.066 | F15: =SUMIFS((F7:F14),(A7:A14),A15) -> 1128745.33 | G15: -85230.38058 | H15: -5,8%
A16: Bispebjerg og Frederiksberg Hospital | G16: 0
A17: Bispebjerg og Frederiksberg Hospital | B17: Hovedart 1: Lønninger | C17: 173711.2914 | D17: 173184.5189 | E17: 170682.7173 | F17: 127031.1438 | G17: 526.7724408 | H17: 0,3%
A18: Bispebjerg og Frederiksberg Hospital | B18: Hovedart 2: Varekøb | C18: 338047.3725 | D18: 353506.6449 | E18: 367636.8696 | F18: 409286.2745 | G18: -15459.27243 | H18: -4,4%
A19: Bispebjerg og Frederiksberg Hospital | B19: Hovedart 4: Tjenesteydelser m.v. | C19: -123365.5334 | D19: =-35999.5800290948-11709.2173192941 -> -47708.79735 | E19: =52946.7506803877-2398.4557789796 -> 50548.2949 | F19: =23879.6574829236-24953.0336417416 -> -1073.376159 | G19: -75656.73608 | H19: 158,6%▲ | I19: Ingen reduktion vedr. COVID-19 merudgifter og stigende salg af medicin fra apoteket
A20: Bispebjerg og Frederiksberg Hospital | B20: Hovedart 5: Tilskud og overførsler | C20: 13.20921946 | D20: -4.826790362 | E20: -57.54292312 | F20: 10.75825917 | G20: 18.03600982 | H20: -373,7%▼
A21: Bispebjerg og Frederiksberg Hospital | B21: Hovedart 6: Finansudgifter | G21: 0
A22: Bispebjerg og Frederiksberg Hospital | B22: Hovedart 7: Indtægter | C22: -36734.43339 | D22: -45663.56792 | E22: -67171.32887 | F22: -31445.51449 | G22: 8929.134526 | H22: -19,6%▼
A23: Bispebjerg og Frederiksberg Hospital | B23: Hovedart 8: Finansindtægter | C23: -6955.004814 | D23: -48552.82809 | E23: -149905.0091 | F23: -210529.9534 | G23: 41597.82327 | H23: -85,7%▼ | I23: Faldende indtægter vedr. COVID kompensation ift. 2022
A24: Bispebjerg og Frederiksberg Hospital | B24: Hovedart 9: Interne udgifter og indtægter | G24: 0
A25: Bispebjerg og Frederiksberg Hospital | B25: I alt | C25: =SUMIFS((C7:C24),(A7:A24),A25) -> 344716.9015 | D25: =SUMIFS((D7:D24),(A7:A24),A25) -> 384761.1437 | E25: =SUMIFS((E7:E24),(A7:A24),A25) -> 371734.0009 | F25: =SUMIFS((F7:F24),(A7:A24),A25) -> 293279.3325 | G25: -40044.24227 | H25: -10,4%▼
A26: Amager og Hvidovre Hospital | G26: 0
A27: Amager og Hvidovre Hospital | B27: Hovedart 1: Lønninger | C27: 215854.6694 | D27: 221747.2641 | E27: 214105.6017 | F27: 159392.1111 | G27: -5892.594692 | H27: -2,7%
A28: Amager og Hvidovre Hospital | B28: Hovedart 2: Varekøb | C28: 383629.5867 | D28: 407524.433 | E28: 439410.2056 | F28: 497850.8033 | G28: -23894.84631 | H28: -5,9%
A29: Amager og Hvidovre Hospital | B29: Hovedart 4: Tjenesteydelser m.v. | C29: -111227.4569 | D29: =4486.73769952284-14895.6682308672 -> -10408.93053 | E29: =93683.7368802386-3040.40815340842 -> 90643.32873 | F29: =51216.6802656749-31246.9651931406 -> 19969.71507 | G29: -100818.5263 | H29: 968,6%▲ | I29: Ingen reduktion vedr. COVID-19 merudgifter og stigende salg af medicin fra apoteket
A30: Amager og Hvidovre Hospital | B30: Hovedart 5: Tilskud og overførsler | C30: 16.7225435 | D30: -6.310711759 | E30: -63.9262541 | F30: 12.16744278 | G30: 23.03325526 | H30: -365,0%▼
A31: Amager og Hvidovre Hospital | B31: Hovedart 6: Finansudgifter | G31: 0
A32: Amager og Hvidovre Hospital | B32: Hovedart 7: Indtægter | C32: -43683.53893 | D32: -56050.46237 | E32: -83602.66967 | F32: -38792.95773 | G32: 12366.92344 | H32: -22,1%▼
A33: Amager og Hvidovre Hospital | B33: Hovedart 8: Finansindtægter | C33: -8790.158839 | D33: -60586.29931 | E33: -189935.1745 | F33: -267062.2115 | G33: 51796.14047 | H33: -85,5%▼ | I33: Faldende indtægter vedr. COVID kompensation ift. 2022
A34: Amager og Hvidovre Hospital | B34: Hovedart 9: Interne udgifter og indtægter | G34: 0
A35: Amager og Hvidovre Hospital | B35: I alt | C35: =SUMIFS((C7:C34),(A7:A34),A35) -> 435799.824 | D35: =SUMIFS((D7:D34),(A7:A34),A35) -> 502219.6942 | E35: =SUMIFS((E7:E34),(A7:A34),A35) -> 470557.3656 | F35: =SUMIFS((F7:F34),(A7:A34),A35) -> 371369.6276 | G35: -66419.87018 | H35: -13,2%▼
A36: Herlev og Gentofte Hospital | G36: 0
A37: Herlev og Gentofte Hospital | B37: Hovedart 1: Lønninger | C37: 399927.6664 | D37: 398044.4855 | E37: 387698.6167 | F37: 322864.4136 | G37: 1883.18097 | H37: 0,5%
A38: Herlev og Gentofte Hospital | B38: Hovedart 2: Varekøb | C38: 1103817.216 | D38: 1211883.657 | E38: 1233920.884 | F38: 1513299.498 | G38: -108066.4411 | H38: -8,9%▼
A39: Herlev og Gentofte Hospital | B39: Hovedart 4: Tjenesteydelser m.v. | C39: -659940.1637 | D39: =-530577.190919687-27770.5292906383 -> -558347.7202 | E39: =-379612.780068646-4865.58946823204 -> -384478.3695 | F39: =-579676.608983083-65313.521976391 -> -644990.131 | G39: =IF(ISERROR(C39- D39)=TRUE,"",C39 - D39) -> -101592.4435 | H39: =IF(ISERROR((((C39- D39)/D39)*100)=TRUE),"",IF((((C39- D39)/D39)*100)<-7,FIXED(((C39- D39)/D39)*100, 1,TRUE) &"%" & "▼",IF((((C39- D39)/D39)*100)>7,FIXED(((C39- D39)/D39)*100, 1,TRUE) &"%" &"▲",FIXED(((C39- D39)/D39)*100, 1,TRUE)&"%"))) -> 18,2%▲ | I39: Ingen reduktion vedr. COVID-19 merudgifter og stigende salg af medicin fra apoteket
A40: Herlev og Gentofte Hospital | B40: Hovedart 5: Tilskud og overførsler | C40: 27.65247739 | D40: -9.938928916 | E40: -282.0616192 | F40: 67.46007563 | G40: 37.59140631 | H40: -378,2%▼
A41: Herlev og Gentofte Hospital | B41: Hovedart 6: Finansudgifter | G41: 0
A42: Herlev og Gentofte Hospital | B42: Hovedart 7: Indtægter | C42: -102112.7307 | D42: -126357.8782 | E42: -164630.9796 | F42: -99905.93218 | G42: 24245.14747 | H42: -19,2%▼
A43: Herlev og Gentofte Hospital | B43: Hovedart 8: Finansindtægter | C43: -14691.16479 | D43: -125593.1641 | E43: -305793.9169 | F43: -447706.6779 | G43: 110901.9993 | H43: -88,3%▼ | I43: Faldende indtægter vedr. COVID kompensation ift. 2022
A44: Herlev og Gentofte Hospital | B44: Hovedart 9: Interne udgifter og indtægter | G44: 0
A45: Herlev og Gentofte Hospital | B45: I alt | C45: =SUMIFS((C7:C44),(A7:A44),A45) -> 727028.4755 | D45: =SUMIFS((D7:D44),(A7:A44),A45) -> 799619.4409 | E45: =SUMIFS((E7:E44),(A7:A44),A45) -> 766434.1732 | F45: =SUMIFS((F7:F44),(A7:A44),A45) -> 643628.6305 | G45: -72590.96544 | H45: -9,1%▼
A46: Nordsjællands Hospital | G46: 0
A47: Nordsjællands Hospital | B47: Hovedart 1: Lønninger | C47: 186805.1797 | D47: 178363.9756 | E47: 178044.793 | F47: 135065.6959 | G47: 8441.204083 | H47: 4,7%
A48: Nordsjællands Hospital | B48: Hovedart 2: Varekøb | C48: 337193.7619 | D48: 339757.4599 | E48: 380846.478 | F48: 447182.7799 | G48: -2563.697966 | H48: -0,8%
A49: Nordsjællands Hospital | B49: Hovedart 4: Tjenesteydelser m.v. | C49: -102254.7306 | D49: =-9804.41645730542-12007.1417619476 -> -21811.55822 | E49: =58548.8949985386-2505.77483140147 -> 56043.12017 | F49: =9132.48404560307-26579.3260381583 -> -17446.84199 | G49: -80443.17241 | H49: 368,8%▲ | I49: Ingen reduktion vedr. COVID-19 merudgifter og stigende salg af medicin fra apoteket
A50: Nordsjællands Hospital | B50: Hovedart 5: Tilskud og overførsler | C50: 14.42804179 | D50: -5.041474925 | E50: -59.02017448 | F50: 12.45717714 | G50: 19.46951672 | H50: -386,2%▼
A51: Nordsjællands Hospital | B51: Hovedart 6: Finansudgifter | G51: 0
A52: Nordsjællands Hospital | B52: Hovedart 7: Indtægter | C52: -38084.43875 | D52: -45725.71007 | E52: -69988.61705 | F52: -33941.73759 | G52: 7641.271314 | H52: -16,7%▼
A53: Nordsjællands Hospital | B53: Hovedart 8: Finansindtægter | C53: -7586.117579 | D53: -49152.34161 | E53: -156601.2893 | F53: -221627.3236 | G53: 41566.22403 | H53: -84,6%▼ | I53: Faldende indtægter vedr. COVID kompensation ift. 2022
A54: Nordsjællands Hospital | B54: Hovedart 9: Interne udgifter og indtægter | G54: 0
A55: Nordsjællands Hospital | B55: I alt | C55: =SUMIFS((C7:C54),(A7:A54),A55) -> 376088.0827 | D55: =SUMIFS((D7:D54),(A7:A54),A55) -> 401426.7841 | E55: =SUMIFS((E7:E54),(A7:A54),A55) -> 388285.4646 | F55: =SUMIFS((F7:F54),(A7:A54),A55) -> 309245.0299 | G55: -25338.70143 | H55: -6,3%
A56: Bornholms Hospital | G56: 0
A57: Bornholms Hospital | B57: Hovedart 1: Lønninger | C57: 33047.57795 | D57: 31685.94841 | E57: 30455.29563 | F57: 22681.59464 | G57: 1361.629536 | H57: 4,3%
A58: Bornholms Hospital | B58: Hovedart 2: Varekøb | C58: 59416.26496 | D58: 61167.98318 | E58: 64690.65026 | F58: 73211.31891 | G58: -1751.718217 | H58: -2,9%
A59: Bornholms Hospital | B59: Hovedart 4: Tjenesteydelser m.v. | C59: -17816.77061 | D59: =-2650.94490905985-2134.78346667385 -> -4785.728376 | E59: =10584.9186524058-429.287081351383 -> 10155.63157 | F59: =4084.16266486961-4455.93101135703 -> -371.7683465 | G59: -13031.04223 | H59: 272,3%▲ | I59: Ingen reduktion vedr. COVID-19 merudgifter og stigende salg af medicin fra apoteket
A60: Bornholms Hospital | B60: Hovedart 5: Tilskud og overførsler | C60: 2.554458714 | D60: -0.8932616862 | E60: -9.923090974 | F60: 1.93215305 | G60: 3.447720401 | H60: -386,0%▼
A61: Bornholms Hospital | B61: Hovedart 6: Finansudgifter | G61: 0
A62: Bornholms Hospital | B62: Hovedart 7: Indtægter | C62: -6724.751874 | D62: -8166.524953 | E62: -11958.09904 | F62: -5620.246298 | G62: 1441.773079 | H62: -17,7%▼
A63: Bornholms Hospital | B63: Hovedart 8: Finansindtægter | C63: -1343.014437 | D63: -8760.223548 | E63: -26826.86606 | F63: -37565.9233 | G63: 7417.209111 | H63: -84,7%▼ | I63: Faldende indtægter vedr. COVID kompensation ift. 2022
A64: Bornholms Hospital | B64: Hovedart 9: Interne udgifter og indtægter | G64: 0
A65: Bornholms Hospital | B65: I alt | C65: =SUMIFS((C7:C64),(A7:A64),A65) -> 66581.86045 | D65: =SUMIFS((D7:D64),(A7:A64),A65) -> 71140.56145 | E65: =SUMIFS((E7:E64),(A7:A64),A65) -> 66506.68927 | F65: =SUMIFS((F7:F64),(A7:A64),A65) -> 52336.90776 | G65: -4558.701001 | H65: -6,4%
A66: Steno | G66: 0
A67: Steno | B67: Hovedart 1: Lønninger | C67: 14942.53504 | D67: 12636.75533 | E67: 9887.76098 | F67: 6675.867537 | G67: 2305.779713 | H67: 18,2%▲
A68: Steno | B68: Hovedart 2: Varekøb | C68: 13552.44477 | D68: 12568.61959 | E68: 12642.12986 | F68: 15256.07723 | G68: 983.8251797 | H68: 7,8%▲
A69: Steno | B69: Hovedart 4: Tjenesteydelser m.v. | C69: 7316.884001 | D69: =12203.2181501745-825.965595695038 -> 11377.25255 | E69: =13914.9746380405-151.582646457659 -> 13763.39199 | F69: =9719.83596292493-1286.34041792018 -> 8433.495545 | G69: -4060.368553 | H69: -35,7%▼
A70: Steno | B70: Hovedart 5: Tilskud og overførsler | C70: 1.267809645 | D70: -0.390440272 | E70: -0.04898072109 | F70: 0.03508579824 | G70: 1.658249917 | H70: -424,7%▼
A71: Steno | B71: Hovedart 6: Finansudgifter | G71: =IF(ISERROR(C71- D71)=TRUE,"",C71 - D71) -> 0 | H71: =IF(ISERROR((((C71- D71)/D71)*100)=TRUE),"",IF((((C71- D71)/D71)*100)<-7,FIXED(((C71- D71)/D71)*100, 1,TRUE) &"%" & "▼",IF((((C71- D71)/D71)*100)>7,FIXED(((C71- D71)/D71)*100, 1,TRUE) &"%" &"▲",FIXED(((C71- D71)/D71)*100, 1,TRUE)&"%"))) -> 
A72: Steno | B72: Hovedart 7: Indtægter | C72: -2323.308769 | D72: -2623.096204 | E72: -3629.695565 | F72: -1388.399041 | G72: 299.7874345 | H72: -11,4%▼
A73: Steno | B73: Hovedart 8: Finansindtægter | C73: -661.2685667 | D73: -3079.143117 | E73: -9437.305201 | F73: -12219.03079 | G73: 2417.87455 | H73: -78,5%▼ | I73: Faldende indtægter vedr. COVID kompensation ift. 2022
A74: Steno | B74: Hovedart 9: Interne udgifter og indtægter | G74: 0
A75: Steno | B75: I alt | C75: =SUMIFS((C7:C74),(A7:A74),A75) -> 32828.55429 | D75: =SUMIFS((D7:D74),(A7:A74),A75) -> 30879.99771 | E75: =SUMIFS((E7:E74),(A7:A74),A75) -> 23226.23308 | F75: =SUMIFS((F7:F74),(A7:A74),A75) -> 16758.04557 | G75: 1948.556574 | H75: 6,3%
A76: Øvrige i Region Hovedstaden | G76: 0
A77: Øvrige i Region Hovedstaden | B77: Hovedart 1: Lønninger | G77: 0
A78: Øvrige i Region Hovedstaden | B78: Hovedart 2: Varekøb | G78: 0
A79: Øvrige i Region Hovedstaden | B79: Hovedart 4: Tjenesteydelser m.v. | G79: 0
A80: Øvrige i Region Hovedstaden | B80: Hovedart 5: Tilskud og overførsler | G80: 0
A81: Øvrige i Region Hovedstaden | B81: Hovedart 6: Finansudgifter | G81: 0
A82: Øvrige i Region Hovedstaden | B82: Hovedart 7: Indtægter | G82: 0
A83: Øvrige i Region Hovedstaden | B83: Hovedart 8: Finansindtægter | G83: 0
A84: Øvrige i Region Hovedstaden | B84: Hovedart 9: Interne udgifter og indtægter | G84: 0
A85: Øvrige i Region Hovedstaden | B85: I alt | C85: =SUMIFS((C7:C84),(A7:A84),A85) -> 0 | D85: =SUMIFS((D7:D84),(A7:A84),A85) -> 0 | E85: =SUMIFS((E7:E84),(A7:A84),A85) -> 0 | F85: =SUMIFS((F7:F84),(A7:A84),A85) -> 0 | G85: 0
A86: Ikke fordelte udgifter og indtægter | G86: 0
A87: Ikke fordelte udgifter og indtægter | B87: Hovedart 1: Lønninger | C87: 704521.3087 | D87: 909373.2923 | E87: 1175332.969 | F87: 550866.6867 | G87: -204851.9836 | H87: -22,5%▼
A88: Ikke fordelte udgifter og indtægter | B88: Hovedart 2: Varekøb | C88: 96866.26426 | D88: 53296.33195 | E88: 121027.3496 | F88: 65522.05514 | G88: 43569.93231 | H88: 81,8%▲
A89: Ikke fordelte udgifter og indtægter | B89: Hovedart 4: Tjenesteydelser m.v. | C89: 2220913.57 | D89: 2295921.114 | E89: 2602290.393 | F89: 2429116.637 | G89: -75007.54377 | H89: -3,3%
A90: Ikke fordelte udgifter og indtægter | B90: Hovedart 5: Tilskud og overførsler | C90: 312025.3164 | D90: 206770.7484 | E90: 244545.7763 | F90: 210513.1668 | G90: 105254.568 | H90: 50,9%▲
A91: Ikke fordelte udgifter og indtægter | B91: Hovedart 6: Finansudgifter | G91: 0
A92: Ikke fordelte udgifter og indtægter | B92: Hovedart 7: Indtægter | C92: -83588.26804 | D92: -135289.7301 | E92: -79937.42503 | F92: -185033.3551 | G92: 51701.46204 | H92: -38,2%▼
A93: Ikke fordelte udgifter og indtægter | B93: Hovedart 8: Finansindtægter | C93: -79124.34086 | D93: -345280.4553 | E93: -802290.5569 | G93: 266156.1144 | H93: -77,1%▼
A94: Ikke fordelte udgifter og indtægter | B94: Hovedart 9: Interne udgifter og indtægter | G94: 0
A95: Ikke fordelte udgifter og indtægter | B95: I alt | C95: =SUMIFS((C7:C94),(A7:A94),A95) -> 3171613.85 | D95: =SUMIFS((D7:D94),(A7:A94),A95) -> 2984791.301 | E95: =SUMIFS((E7:E94),(A7:A94),A95) -> 3260968.506 | F95: =SUMIFS((F7:F94),(A7:A94),A95) -> 3070985.19 | G95: 186822.5493 | H95: 6,3%

Sheet Skema 3
A1: Region Hovedstaden, somatiske sygehuse.
B2: Skema 3:Regionale fællesudgifter og -indtægter. (1.000 kr.)
A5: Sygehus | C5: 2023 | D5: 2022 | E5: 2021 | F5: 2020 | G5: Δ2022-2023 | H5: % afvigelse | I5: Begrundelse
A6: Rigshospitalet
A7: Rigshospitalet | B7: 1.70.50: Andel af fællesudgifter | C7: 113443.9208 | D7: =106250.237117964-535.412459024882 -> 105714.8247 | E7: =101739.488474335-2190.12477371913 -> 99549.3637 | F7: =194722.170397455-310.407620404787 -> 194411.7628 | G7: =IF(ISERROR(C7- D7)=TRUE,"",C7 - D7) -> 7729.096154 | H7: =IF(ISERROR((((C7- D7)/D7)*100)=TRUE),"",IF((((C7- D7)/D7)*100)<-7,FIXED(((C7- D7)/D7)*100, 1,TRUE) &"%" & "▼",IF((((C7- D7)/D7)*100)>7,FIXED(((C7- D7)/D7)*100, 1,TRUE) &"%" &"▲",FIXED(((C7- D7)/D7)*100, 1,TRUE)&"%"))) -> 7,3%▲
A8: Rigshospitalet | B8: 1.60.40: Andel af central administration af sundhed (til og med 2019) | G8: 0
A9: Rigshospitalet | B9: 1.60.41: Andel af øvrige udgifter og indtægter | G9: 0
A10: Rigshospitalet | B10: 1.50.33: Andel af central administration af sundhed (ekskl. psykiatri) | C10: 40285.285 | D10: 47143.97303 | E10: 51972.2697 | F10: 58079.34124 | G10: -6858.688032 | H10: -14,5%▼
A11: Rigshospitalet | B11: 1.50.35: Administration af det psykiatriske område (kun central del) | G11: 0
A12: Rigshospitalet | B12: I alt | C12: =SUMIFS((C7:C11),(A7:A11),A12) -> 153729.2058 | D12: =SUMIFS((D7:D11),(A7:A11),A12) -> 152858.7977 | E12: =SUMIFS((E7:E11),(A7:A11),A12) -> 151521.6334 | F12: =SUMIFS((F7:F11),(A7:A11),A12) -> 252491.104 | G12: 870.408122 | H12: 0,6%
A13: Bispebjerg og Frederiksberg Hospital | G13: 0
A14: Bispebjerg og Frederiksberg Hospital | B14: 1.70.50: Andel af fællesudgifter | C14: 28635.32639 | D14: =28239.2350318193-142.30216025383 -> 28096.93287 | E14: =26327.8952249659-566.755115803684 -> 25761.14011 | F14: =52696.1136698102-84.0031477434667 -> 52612.11052 | G14: 538.3935172 | H14: 1,9%
A15: Bispebjerg og Frederiksberg Hospital | B15: 1.60.40: Andel af central administration af sundhed (til og med 2019) | G15: 0
A16: Bispebjerg og Frederiksberg Hospital | B16: 1.60.41: Andel af øvrige udgifter og indtægter | G16: 0
A17: Bispebjerg og Frederiksberg Hospital | B17: 1.50.33: Andel af central administration af sundhed (ekskl. psykiatri) | C17: 10168.74484 | D17: 12529.94601 | E17: 13449.25645 | F17: 15717.55061 | G17: -2361.201169 | H17: -18,8%▼
A18: Bispebjerg og Frederiksberg Hospital | B18: 1.50.35: Administration af det psykiatriske område (kun central del) | G18: 0
A19: Bispebjerg og Frederiksberg Hospital | B19: I alt | C19: =SUMIFS((C7:C18),(A7:A18),A19) -> 38804.07123 | D19: =SUMIFS((D7:D18),(A7:A18),A19) -> 40626.87888 | E19: =SUMIFS((E7:E18),(A7:A18),A19) -> 39210.39656 | F19: =SUMIFS((F7:F18),(A7:A18),A19) -> 68329.66113 | G19: -1822.807652 | H19: -4,5%
A20: Amager og Hvidovre Hospital | G20: 0
A21: Amager og Hvidovre Hospital | B21: 1.70.50: Andel af fællesudgifter | C21: 36251.61143 | D21: =36920.9472986607-186.05073945159 -> 36734.89656 | E21: =33374.6187883124-718.448465957774 -> 32656.17032 | F21: =66846.2630883983-106.559974223116 -> 66739.70311 | G21: -483.2851278 | H21: -1,3%
A22: Amager og Hvidovre Hospital | B22: 1.60.40: Andel af central administration af sundhed (til og med 2019) | G22: 0
A23: Amager og Hvidovre Hospital | B23: 1.60.41: Andel af øvrige udgifter og indtægter | G23: 0
A24: Amager og Hvidovre Hospital | B24: 1.50.33: Andel af central administration af sundhed (ekskl. psykiatri) | C24: 12873.37821 | D24: 16382.08244 | E24: 17048.98181 | F24: 19938.08366 | G24: -3508.704231 | H24: -21,4%▼
A25: Amager og Hvidovre Hospital | B25: 1.50.35: Administration af det psykiatriske område (kun central del) | G25: 0
A26: Amager og Hvidovre Hospital | B26: I alt | C26: =SUMIFS((C7:C25),(A7:A25),A26) -> 49124.98964 | D26: =SUMIFS((D7:D25),(A7:A25),A26) -> 53116.979 | E26: =SUMIFS((E7:E25),(A7:A25),A26) -> 49705.15214 | F26: =SUMIFS((F7:F25),(A7:A25),A26) -> 86677.78678 | G26: -3991.989358 | H26: -7,5%▼
A27: Herlev og Gentofte Hospital | G27: 0
A28: Herlev og Gentofte Hospital | B28: 1.70.50: Andel af fællesudgifter | C28: 59945.83694 | D28: =58147.9054546117-293.016880630907 -> 57854.88857 | E28: =53409.6691921541-1149.73882224096 -> 52259.93037 | F28: =112061.973159625-178.638571844919 -> 111883.3346 | G28: 2090.948362 | H28: 3,6%
A29: Herlev og Gentofte Hospital | B29: 1.60.40: Andel af central administration af sundhed (til og med 2019) | G29: 0
A30: Herlev og Gentofte Hospital | B30: 1.60.41: Andel af øvrige udgifter og indtægter | G30: 0
A31: Herlev og Gentofte Hospital | B31: 1.50.33: Andel af central administration af sundhed (ekskl. psykiatri) | C31: 21287.47938 | D31: 25800.63218 | E31: 27283.62186 | F31: 33424.47122 | G31: -4513.152793 | H31: -17,5%▼
A32: Herlev og Gentofte Hospital | B32: 1.50.35: Administration af det psykiatriske område (kun central del) | G32: 0
A33: Herlev og Gentofte Hospital | B33: I alt | C33: =SUMIFS((C7:C32),(A7:A32),A33) -> 81233.31632 | D33: =SUMIFS((D7:D32),(A7:A32),A33) -> 83655.52075 | E33: =SUMIFS((E7:E32),(A7:A32),A33) -> 79543.55223 | F33: =SUMIFS((F7:F32),(A7:A32),A33) -> 145307.8058 | G33: -2422.204432 | H33: -2,9%
A34: Nordsjællands Hospital | G34: 0
A35: Nordsjællands Hospital | B35: 1.70.50: Andel af fællesudgifter | C35: 31277.52455 | D35: =29495.2514306076-148.631433927866 -> 29346.62 | E35: =27505.938527898-592.114608572475 -> 26913.82392 | F35: =55473.8099918771-88.4310878377047 -> 55385.3789 | G35: 1930.904553 | H35: 6,6%
A36: Nordsjællands Hospital | B36: 1.60.40: Andel af central administration af sundhed (til og med 2019) | G36: 0
A37: Nordsjællands Hospital | B37: 1.60.41: Andel af øvrige udgifter og indtægter | G37: 0
A38: Nordsjællands Hospital | B38: 1.50.33: Andel af central administration af sundhed (ekskl. psykiatri) | C38: 11107.02082 | D38: 13087.24927 | E38: 14051.04426 | F38: 16546.04781 | G38: -1980.228447 | H38: -15,1%▼
A39: Nordsjællands Hospital | B39: 1.50.35: Administration af det psykiatriske område (kun central del) | G39: =IF(ISERROR(C39- D39)=TRUE,"",C39 - D39) -> 0 | H39: =IF(ISERROR((((C39- D39)/D39)*100)=TRUE),"",IF((((C39- D39)/D39)*100)<-7,FIXED(((C39- D39)/D39)*100, 1,TRUE) &"%" & "▼",IF((((C39- D39)/D39)*100)>7,FIXED(((C39- D39)/D39)*100, 1,TRUE) &"%" &"▲",FIXED(((C39- D39)/D39)*100, 1,TRUE)&"%"))) -> 
A40: Nordsjællands Hospital | B40: I alt | C40: =SUMIFS((C7:C39),(A7:A39),A40) -> 42384.54537 | D40: =SUMIFS((D7:D39),(A7:A39),A40) -> 42433.86927 | E40: =SUMIFS((E7:E39),(A7:A39),A40) -> 40964.86818 | F40: =SUMIFS((F7:F39),(A7:A39),A40) -> 71931.42671 | G40: -49.32389321 | H40: -0,1%
A41: Bornholms Hospital | G41: 0
A42: Bornholms Hospital | B42: 1.70.50: Andel af fællesudgifter | C42: 5537.629174 | D42: =5226.04563478484-26.3349054100447 -> 5199.710729 | E42: =4712.29255019204-101.440540049414 -> 4610.85201 | F42: =9402.83381147332-14.9891060813651 -> 9387.844705 | G42: 337.9184447 | H42: 6,5%
A43: Bornholms Hospital | B43: 1.60.40: Andel af central administration af sundhed (til og med 2019) | G43: 0
A44: Bornholms Hospital | B44: 1.60.41: Andel af øvrige udgifter og indtægter | G44: 0
A45: Bornholms Hospital | B45: 1.50.33: Andel af central administration af sundhed (ekskl. psykiatri) | C45: 1966.477956 | D45: 2318.832985 | E45: 2407.212214 | F45: 2804.561969 | G45: -352.3550289 | H45: -15,2%▼
A46: Bornholms Hospital | B46: 1.50.35: Administration af det psykiatriske område (kun central del) | G46: 0
A47: Bornholms Hospital | B47: I alt | C47: =SUMIFS((C7:C46),(A7:A46),A47) -> 7504.10713 | D47: =SUMIFS((D7:D46),(A7:A46),A47) -> 7518.543714 | E47: =SUMIFS((E7:E46),(A7:A46),A47) -> 7018.064224 | F47: =SUMIFS((F7:F46),(A7:A46),A47) -> 12192.40667 | G47: -14.4365842 | H47: -0,2%
A48: Steno | G48: 0
A49: Steno | B49: 1.70.50: Andel af fællesudgifter | C49: 2748.394264 | D49: =2284.27874043478-11.5108571113736 -> 2272.767883 | E49: =1663.92562616192-35.8189803205332 -> 1628.106646 | F49: =3058.45047149229-4.87549173801848 -> 3053.57498 | G49: 475.6263806 | H49: 20,9%▲
A50: Steno | B50: 1.60.40: Andel af central administration af sundhed (til og med 2019) | G50: 0
A51: Steno | B51: 1.60.41: Andel af øvrige udgifter og indtægter | G51: 0
A52: Steno | B52: 1.50.33: Andel af central administration af sundhed (ekskl. psykiatri) | C52: 975.9874784 | D52: 1013.550447 | E52: 849.9943601 | F52: 912.237103 | G52: -37.56296871 | H52: -3,7%
A53: Steno | B53: 1.50.35: Administration af det psykiatriske område (kun central del) | G53: 0
A54: Steno | B54: I alt | C54: =SUMIFS((C7:C53),(A7:A53),A54) -> 3724.381742 | D54: =SUMIFS((D7:D53),(A7:A53),A54) -> 3286.31833 | E54: =SUMIFS((E7:E53),(A7:A53),A54) -> 2478.101006 | F54: =SUMIFS((F7:F53),(A7:A53),A54) -> 3965.812083 | G54: 438.0634119 | H54: 13,3%▲
A55: Øvrige i Region Hovedstaden | G55: 0
A56: Øvrige i Region Hovedstaden | B56: 1.70.50: Andel af fællesudgifter | C56: 95516.42755 | D56: 83614.92436 | E56: 77021.79672 | F56: 153606.7596 | G56: 11901.50319 | H56: 14,2%▲
A57: Øvrige i Region Hovedstaden | B57: 1.60.40: Andel af central administration af sundhed (til og med 2019) | G57: 0
A58: Øvrige i Region Hovedstaden | B58: 1.60.41: Andel af øvrige udgifter og indtægter | G58: 0
A59: Øvrige i Region Hovedstaden | B59: 1.50.33: Andel af central administration af sundhed (ekskl. psykiatri) | C59: 33919.01901 | D59: 37100.52651 | E59: 39345.56436 | F59: 45841.18278 | G59: -3181.507506 | H59: -8,6%▼
A60: Øvrige i Region Hovedstaden | B60: 1.50.35: Administration af det psykiatriske område (kun central del) | G60: 0
A61: Øvrige i Region Hovedstaden | B61: I alt | C61: =SUMIFS((C7:C60),(A7:A60),A61) -> 129435.4466 | D61: =SUMIFS((D7:D60),(A7:A60),A61) -> 120715.4509 | E61: =SUMIFS((E7:E60),(A7:A60),A61) -> 116367.3611 | F61: =SUMIFS((F7:F60),(A7:A60),A61) -> 199447.9424 | G61: 8719.995687 | H61: 7,2%▲
A62: Ikke fordelte udgifter og indtægter | G62: 0
A63: Ikke fordelte udgifter og indtægter | B63: 1.70.50: Andel af fællesudgifter | C63: 455462.5353 | D63: 450556.7703 | E63: 431048.646 | F63: 404605.1766 | G63: 4905.765048 | H63: 1,1% | I63: Stigende udgifter til Tjenestemænd ca. 13 mio. kr. jfr skema 6
A64: Ikke fordelte udgifter og indtægter | B64: 1.60.40: Andel af central administration af sundhed (til og med 2019) | G64: 0
A65: Ikke fordelte udgifter og indtægter | B65: 1.60.41: Andel af øvrige udgifter og indtægter | G65: 0
A66: Ikke fordelte udgifter og indtægter | B66: 1.50.33: Andel af central administration af sundhed (ekskl. psykiatri) | C66: 22763.43006 | D66: 25666.2888 | E66: 24531.83561 | F66: 31236.33547 | G66: -2902.85874 | H66: -11,3%▼ | I66: Kontingent til Regionernes Sundheds-it (RSI) 1,8 mio kr er flyttet til funktion 1.50.36
A67: Ikke fordelte udgifter og indtægter | B67: 1.50.35: Administration af det psykiatriske område (kun central del) | G67: 0
A68: Ikke fordelte udgifter og indtægter | B68: I alt | C68: =SUMIFS((C7:C67),(A7:A67),A68) -> 478225.9654 | D68: =SUMIFS((D7:D67),(A7:A67),A68) -> 476223.0591 | E68: =SUMIFS((E7:E67),(A7:A67),A68) -> 455580.4816 | F68: =SUMIFS((F7:F67),(A7:A67),A68) -> 435841.5121 | G68: 2002.906308 | H68: 0,4%

Sheet Skema 4
A1: Region Hovedstaden, somatiske sygehuse.
B2: Skema 4: Udgifter og indtægter til og fra psykiatriske afdelinger konteret på somatiske sygehuse. (1.000 kr.)
A5: Sygehus | C5: 2023 | D5: 2022 | E5: 2021 | F5: 2020 | G5: Δ2022-2023 | H5: % afvigelse | I5: Begrundelse
A6: Rigshospitalet
A7: Rigshospitalet | B7: Korrektion | G7: =IF(ISERROR(C7- D7)=TRUE,"",C7 - D7) -> 0 | H7: =IF(ISERROR((((C7- D7)/D7)*100)=TRUE),"",IF((((C7- D7)/D7)*100)<-7,FIXED(((C7- D7)/D7)*100, 1,TRUE) &"%" & "▼",IF((((C7- D7)/D7)*100)>7,FIXED(((C7- D7)/D7)*100, 1,TRUE) &"%" &"▲",FIXED(((C7- D7)/D7)*100, 1,TRUE)&"%"))) -> 
A8: Rigshospitalet | B8: Lønudg. på psyk. afd.,somatiske sygehuse | G8: 0
A9: Rigshospitalet | B9: Øvrige udg. til psyk. afd.,somatiske sygehuse | G9: 0
A10: Rigshospitalet | B10: I alt | C10: =SUMIFS((C7:C9),(A7:A9),A10) -> 0 | D10: =SUMIFS((D7:D9),(A7:A9),A10) -> 0 | E10: =SUMIFS((E7:E9),(A7:A9),A10) -> 0 | F10: =SUMIFS((F7:F9),(A7:A9),A10) -> 0 | G10: 0
A11: Bispebjerg og Frederiksberg Hospital | G11: 0
A12: Bispebjerg og Frederiksberg Hospital | B12: Korrektion | G12: 0
A13: Bispebjerg og Frederiksberg Hospital | B13: Lønudg. på psyk. afd.,somatiske sygehuse | G13: 0
A14: Bispebjerg og Frederiksberg Hospital | B14: Øvrige udg. til psyk. afd.,somatiske sygehuse | G14: 0
A15: Bispebjerg og Frederiksberg Hospital | B15: I alt | C15: =SUMIFS((C7:C14),(A7:A14),A15) -> 0 | D15: =SUMIFS((D7:D14),(A7:A14),A15) -> 0 | E15: =SUMIFS((E7:E14),(A7:A14),A15) -> 0 | F15: =SUMIFS((F7:F14),(A7:A14),A15) -> 0 | G15: 0
A16: Amager og Hvidovre Hospital | G16: 0
A17: Amager og Hvidovre Hospital | B17: Korrektion | G17: 0
A18: Amager og Hvidovre Hospital | B18: Lønudg. på psyk. afd.,somatiske sygehuse | G18: 0
A19: Amager og Hvidovre Hospital | B19: Øvrige udg. til psyk. afd.,somatiske sygehuse | G19: 0
A20: Amager og Hvidovre Hospital | B20: I alt | C20: =SUMIFS((C7:C19),(A7:A19),A20) -> 0 | D20: =SUMIFS((D7:D19),(A7:A19),A20) -> 0 | E20: =SUMIFS((E7:E19),(A7:A19),A20) -> 0 | F20: =SUMIFS((F7:F19),(A7:A19),A20) -> 0 | G20: 0
A21: Herlev og Gentofte Hospital | G21: 0
A22: Herlev og Gentofte Hospital | B22: Korrektion | G22: 0
A23: Herlev og Gentofte Hospital | B23: Lønudg. på psyk. afd.,somatiske sygehuse | G23: 0
A24: Herlev og Gentofte Hospital | B24: Øvrige udg. til psyk. afd.,somatiske sygehuse | G24: 0
A25: Herlev og Gentofte Hospital | B25: I alt | C25: =SUMIFS((C7:C24),(A7:A24),A25) -> 0 | D25: =SUMIFS((D7:D24),(A7:A24),A25) -> 0 | E25: =SUMIFS((E7:E24),(A7:A24),A25) -> 0 | F25: =SUMIFS((F7:F24),(A7:A24),A25) -> 0 | G25: 0
A26: Nordsjællands Hospital | G26: 0
A27: Nordsjællands Hospital | B27: Korrektion | G27: 0
A28: Nordsjællands Hospital | B28: Lønudg. på psyk. afd.,somatiske sygehuse | G28: 0
A29: Nordsjællands Hospital | B29: Øvrige udg. til psyk. afd.,somatiske sygehuse | G29: 0
A30: Nordsjællands Hospital | B30: I alt | C30: =SUMIFS((C7:C29),(A7:A29),A30) -> 0 | D30: =SUMIFS((D7:D29),(A7:A29),A30) -> 0 | E30: =SUMIFS((E7:E29),(A7:A29),A30) -> 0 | F30: =SUMIFS((F7:F29),(A7:A29),A30) -> 0 | G30: 0
A31: Bornholms Hospital | G31: 0
A32: Bornholms Hospital | B32: Korrektion | G32: 0
A33: Bornholms Hospital | B33: Lønudg. på psyk. afd.,somatiske sygehuse | G33: 0
A34: Bornholms Hospital | B34: Øvrige udg. til psyk. afd.,somatiske sygehuse | G34: 0
A35: Bornholms Hospital | B35: I alt | C35: =SUMIFS((C7:C34),(A7:A34),A35) -> 0 | D35: =SUMIFS((D7:D34),(A7:A34),A35) -> 0 | E35: =SUMIFS((E7:E34),(A7:A34),A35) -> 0 | F35: =SUMIFS((F7:F34),(A7:A34),A35) -> 0 | G35: 0
A36: Steno | G36: 0
A37: Steno | B37: Korrektion | G37: 0
A38: Steno | B38: Lønudg. på psyk. afd.,somatiske sygehuse | G38: 0
A39: Steno | B39: Øvrige udg. til psyk. afd.,somatiske sygehuse | G39: 0
A40: Steno | B40: I alt | C40: =SUMIFS((C7:C39),(A7:A39),A40) -> 0 | D40: =SUMIFS((D7:D39),(A7:A39),A40) -> 0 | E40: =SUMIFS((E7:E39),(A7:A39),A40) -> 0 | F40: =SUMIFS((F7:F39),(A7:A39),A40) -> 0 | G40: 0
A41: Øvrige i Region Hovedstaden | G41: 0
A42: Øvrige i Region Hovedstaden | B42: Korrektion | G42: 0
A43: Øvrige i Region Hovedstaden | B43: Lønudg. på psyk. afd.,somatiske sygehuse | G43: 0
A44: Øvrige i Region Hovedstaden | B44: Øvrige udg. til psyk. afd.,somatiske sygehuse | G44: 0
A45: Øvrige i Region Hovedstaden | B45: I alt | C45: =SUMIFS((C7:C44),(A7:A44),A45) -> 0 | D45: =SUMIFS((D7:D44),(A7:A44),A45) -> 0 | E45: =SUMIFS((E7:E44),(A7:A44),A45) -> 0 | F45: =SUMIFS((F7:F44),(A7:A44),A45) -> 0 | G45: 0
A46: Ikke fordelte udgifter og indtægter | G46: 0
A47: Ikke fordelte udgifter og indtægter | B47: Korrektion | G47: 0
A48: Ikke fordelte udgifter og indtægter | B48: Lønudg. på psyk. afd.,somatiske sygehuse | G48: 0
A49: Ikke fordelte udgifter og indtægter | B49: Øvrige udg. til psyk. afd.,somatiske sygehuse | G49: 0
A50: Ikke fordelte udgifter og indtægter | B50: I alt | C50: =SUMIFS((C7:C49),(A7:A49),A50) -> 0 | D50: =SUMIFS((D7:D49),(A7:A49),A50) -> 0 | E50: =SUMIFS((E7:E49),(A7:A49),A50) -> 0 | F50: =SUMIFS((F7:F49),(A7:A49),A50) -> 0 | G50: 0

Sheet Skema 5
A1: Region Hovedstaden, somatiske sygehuse.
B2: Skema 5: Leasing- og huslejeudgifter. (1.000 kr.)
A5: Sygehus | C5: 2023 | D5: 2022 | E5: 2021 | F5: 2020 | G5: Δ2022-2023 | H5: % afvigelse | I5: Begrundelse
A6: Rigshospitalet
A7: Rigshospitalet | B7: Andre udgifter | G7: =IF(ISERROR(C7- D7)=TRUE,"",C7 - D7) -> 0 | H7: =IF(ISERROR((((C7- D7)/D7)*100)=TRUE),"",IF((((C7- D7)/D7)*100)<-7,FIXED(((C7- D7)/D7)*100, 1,TRUE) &"%" & "▼",IF((((C7- D7)/D7)*100)>7,FIXED(((C7- D7)/D7)*100, 1,TRUE) &"%" &"▲",FIXED(((C7- D7)/D7)*100, 1,TRUE)&"%"))) -> 
A8: Rigshospitalet | B8: Leasing- og lejeudgifter | C8: =+'Skema 5 og 6 2023'!G178/1000 -> 71565.78932 | D8: =+'Skema 5 og 6 2022'!G436/1000+'Skema 5 og 6 2022'!I452/1000 -> 96023.3752 | E8: =+'SKEMA 5 OG 6 2021'!E285/1000 -> 174326.6089 | F8: =+'2020'!G345/1000 -> 77472.58689 | G8: -24457.58588 | H8: -25,5%▼
A9: Rigshospitalet | B9: Huslejeudgifter | C9: =+'Skema 5 og 6 2023'!I575/1000 -> 4183.06862 | D9: =+'Skema 5 og 6 2022'!I473/1000 -> 4094.36076 | E9: =+'SKEMA 5 OG 6 2021'!G317/1000 -> 3557.88917 | F9: =+'2020'!G422/1000 -> 4911.95616 | G9: 88.70786 | H9: 2,2%
A10: Rigshospitalet | B10: I alt | C10: =SUMIFS((C7:C9),(A7:A9),A10) -> 75748.85794 | D10: =SUMIFS((D7:D9),(A7:A9),A10) -> 100117.736 | E10: =SUMIFS((E7:E9),(A7:A9),A10) -> 177884.4981 | F10: =SUMIFS((F7:F9),(A7:A9),A10) -> 82384.54305 | G10: -24368.87802 | H10: -24,3%▼
A11: Bispebjerg og Frederiksberg Hospital | G11: 0
A12: Bispebjerg og Frederiksberg Hospital | B12: Andre udgifter | G12: 0
A13: Bispebjerg og Frederiksberg Hospital | B13: Leasing- og lejeudgifter | C13: =+'Skema 5 og 6 2023'!G163/1000 -> 5994.71275 | D13: =+'Skema 5 og 6 2022'!G431/1000+'Skema 5 og 6 2022'!I447/1000 -> 10287.45657 | E13: =+'SKEMA 5 OG 6 2021'!E280/1000+'SKEMA 5 OG 6 2021'!H296/1000 -> 11842.20191 | F13: =+'2020'!G318/1000+'2020'!H371/1000 -> 89021.8741 | G13: -4292.74382 | H13: -41,7%▼
A14: Bispebjerg og Frederiksberg Hospital | B14: Huslejeudgifter | E14: =+'SKEMA 5 OG 6 2021'!G300/1000 -> 1.55552 | F14: =+'2020'!G403/1000 -> 1.12755 | G14: 0
A15: Bispebjerg og Frederiksberg Hospital | B15: I alt | C15: =SUMIFS((C7:C14),(A7:A14),A15) -> 5994.71275 | D15: =SUMIFS((D7:D14),(A7:A14),A15) -> 10287.45657 | E15: =SUMIFS((E7:E14),(A7:A14),A15) -> 11843.75743 | F15: =SUMIFS((F7:F14),(A7:A14),A15) -> 89023.00165 | G15: -4292.74382 | H15: -41,7%▼
A16: Amager og Hvidovre Hospital | G16: 0
A17: Amager og Hvidovre Hospital | B17: Andre udgifter | G17: 0
A18: Amager og Hvidovre Hospital | B18: Leasing- og lejeudgifter | C18: =+'Skema 5 og 6 2023'!G175/1000 -> 23982.35928 | D18: =+'Skema 5 og 6 2022'!G435/1000 -> 45427.65093 | E18: =+'SKEMA 5 OG 6 2021'!E284/1000 -> 35080.73166 | F18: =+'2020'!G330/1000+'2020'!H385/1000 -> 51583.81583 | G18: -21445.29165 | H18: -47,2%▼
A19: Amager og Hvidovre Hospital | B19: Huslejeudgifter | C19: =+'Skema 5 og 6 2023'!I569/1000 -> 493.08089 | D19: =+'Skema 5 og 6 2022'!I467/1000 -> 461.9087 | E19: =+'SKEMA 5 OG 6 2021'!G307/1000 -> 376.0628 | G19: 31.17219 | H19: 6,7%
A20: Amager og Hvidovre Hospital | B20: I alt | C20: =SUMIFS((C7:C19),(A7:A19),A20) -> 24475.44017 | D20: =SUMIFS((D7:D19),(A7:A19),A20) -> 45889.55963 | E20: =SUMIFS((E7:E19),(A7:A19),A20) -> 35456.79446 | F20: =SUMIFS((F7:F19),(A7:A19),A20) -> 51583.81583 | G20: -21414.11946 | H20: -46,7%▼
A21: Herlev og Gentofte Hospital | G21: 0
A22: Herlev og Gentofte Hospital | B22: Andre udgifter | G22: 0
A23: Herlev og Gentofte Hospital | B23: Leasing- og lejeudgifter | C23: =+'Skema 5 og 6 2023'!G169/1000 -> 70373.4711 | D23: =+'Skema 5 og 6 2022'!G433/1000 -> 76478.5098 | E23: =+'SKEMA 5 OG 6 2021'!E282/1000 -> 80977.3665 | F23: =+'2020'!G324/1000 -> 92446.01562 | G23: -6105.0387 | H23: -8,0%▼
A24: Herlev og Gentofte Hospital | B24: Huslejeudgifter | C24: =+'Skema 5 og 6 2023'!I565/1000 -> 10797.683 | D24: =+'Skema 5 og 6 2022'!I461/1000 -> 10936.485 | E24: =+'SKEMA 5 OG 6 2021'!G303/1000 -> 10844.31706 | F24: =+'2020'!G409/1000 -> 10916.505 | G24: -138.802 | H24: -1,3%
A25: Herlev og Gentofte Hospital | B25: I alt | C25: =SUMIFS((C7:C24),(A7:A24),A25) -> 81171.1541 | D25: =SUMIFS((D7:D24),(A7:A24),A25) -> 87414.9948 | E25: =SUMIFS((E7:E24),(A7:A24),A25) -> 91821.68356 | F25: =SUMIFS((F7:F24),(A7:A24),A25) -> 103362.5206 | G25: -6243.8407 | H25: -7,1%▼
A26: Nordsjællands Hospital | G26: 0
A27: Nordsjællands Hospital | B27: Andre udgifter | G27: 0
A28: Nordsjællands Hospital | B28: Leasing- og lejeudgifter | C28: =+'Skema 5 og 6 2023'!G172/1000 -> 10764.71833 | D28: =+'Skema 5 og 6 2022'!G434/1000 -> 11746.73179 | E28: =+'SKEMA 5 OG 6 2021'!E283/1000 -> 16270.09455 | F28: =+'2020'!G327/1000+'2020'!H383/1000 -> 14912.12464 | G28: -982.01346 | H28: -8,4%▼
A29: Nordsjællands Hospital | B29: Huslejeudgifter | D29: =+'Skema 5 og 6 2022'!I463/1000 -> 92.3235 | G29: -92.3235 | H29: -100,0%▼
A30: Nordsjællands Hospital | B30: I alt | C30: =SUMIFS((C7:C29),(A7:A29),A30) -> 10764.71833 | D30: =SUMIFS((D7:D29),(A7:A29),A30) -> 11839.05529 | E30: =SUMIFS((E7:E29),(A7:A29),A30) -> 16270.09455 | F30: =SUMIFS((F7:F29),(A7:A29),A30) -> 14912.12464 | G30: -1074.33696 | H30: -9,1%▼
A31: Bornholms Hospital | G31: 0
A32: Bornholms Hospital | B32: Andre udgifter | G32: 0
A33: Bornholms Hospital | B33: Leasing- og lejeudgifter | C33: =+'Skema 5 og 6 2023'!G166/1000 -> 1231.96757 | D33: =+'Skema 5 og 6 2022'!G432/1000 -> 2299.59924 | E33: =+'SKEMA 5 OG 6 2021'!E281/1000 -> 3846.60757 | F33: =+'2020'!G321/1000 -> 4133.34893 | G33: -1067.63167 | H33: -46,4%▼
A34: Bornholms Hospital | B34: Huslejeudgifter | G34: 0
A35: Bornholms Hospital | B35: I alt | C35: =SUMIFS((C7:C34),(A7:A34),A35) -> 1231.96757 | D35: =SUMIFS((D7:D34),(A7:A34),A35) -> 2299.59924 | E35: =SUMIFS((E7:E34),(A7:A34),A35) -> 3846.60757 | F35: =SUMIFS((F7:F34),(A7:A34),A35) -> 4133.34893 | G35: -1067.63167 | H35: -46,4%▼
A36: Steno | G36: 0
A37: Steno | B37: Andre udgifter | G37: 0
A38: Steno | B38: Leasing- og lejeudgifter | G38: 0
A39: Steno | B39: Huslejeudgifter | E39: =+'SKEMA 5 OG 6 2021'!O301/1000 -> 7565.10416 | F39: =+'2020'!G406/1000 -> 2883.19089 | G39: 0
A40: Steno | B40: I alt | C40: =SUMIFS((C7:C39),(A7:A39),A40) -> 0 | D40: =SUMIFS((D7:D39),(A7:A39),A40) -> 0 | E40: =SUMIFS((E7:E39),(A7:A39),A40) -> 7565.10416 | F40: =SUMIFS((F7:F39),(A7:A39),A40) -> 2883.19089 | G40: 0
A41: Øvrige i Region Hovedstaden | G41: 0
A42: Øvrige i Region Hovedstaden | B42: Andre udgifter | G42: 0
A43: Øvrige i Region Hovedstaden | B43: Leasing- og lejeudgifter | G43: 0
A44: Øvrige i Region Hovedstaden | B44: Huslejeudgifter | G44: 0
A45: Øvrige i Region Hovedstaden | B45: I alt | C45: =SUMIFS((C7:C44),(A7:A44),A45) -> 0 | D45: =SUMIFS((D7:D44),(A7:A44),A45) -> 0 | E45: =SUMIFS((E7:E44),(A7:A44),A45) -> 0 | F45: =SUMIFS((F7:F44),(A7:A44),A45) -> 0 | G45: 0
A46: Ikke fordelte udgifter og indtægter | G46: 0
A47: Ikke fordelte udgifter og indtægter | B47: Andre udgifter | G47: 0
A48: Ikke fordelte udgifter og indtægter | B48: Leasing- og lejeudgifter | C48: 10033.26401 | D48: 8456.09215 | E48: 10256.75748 | F48: 7742.769846 | G48: 1577.17186 | H48: 18,7%▲
A49: Ikke fordelte udgifter og indtægter | B49: Huslejeudgifter | C49: 134164.5765 | D49: 117234.2933 | E49: 89297.11425 | F49: 105614.1864 | G49: 16930.28317 | H49: 14,4%▲
A50: Ikke fordelte udgifter og indtægter | B50: I alt | C50: =SUMIFS((C7:C49),(A7:A49),A50) -> 144197.8405 | D50: =SUMIFS((D7:D49),(A7:A49),A50) -> 125690.3855 | E50: =SUMIFS((E7:E49),(A7:A49),A50) -> 99553.87173 | F50: =SUMIFS((F7:F49),(A7:A49),A50) -> 113356.9563 | G50: 18507.45503 | H50: 14,7%▲

Sheet Skema 6
A1: Region Hovedstaden, somatiske sygehuse.
B2: Skema 6: Udgifter til andet end patientbehandling. (1.000 kr.)
A5: Sygehus | C5: 2023 | D5: 2022 | E5: 2021 | F5: 2020 | G5: Δ2022-2023 | H5: % afvigelse | I5: Begrundelse
A6: Rigshospitalet
A7: Rigshospitalet | B7: Skema 6.1: Center for voldsramte (Bispebjerg) | G7: =IF(ISERROR(C7- D7)=TRUE,"",C7 - D7) -> 0 | H7: =IF(ISERROR((((C7- D7)/D7)*100)=TRUE),"",IF((((C7- D7)/D7)*100)<-7,FIXED(((C7- D7)/D7)*100, 1,TRUE) &"%" & "▼",IF((((C7- D7)/D7)*100)>7,FIXED(((C7- D7)/D7)*100, 1,TRUE) &"%" &"▲",FIXED(((C7- D7)/D7)*100, 1,TRUE)&"%"))) -> 
A8: Rigshospitalet | B8: Skema 6.2: Ventilatørbistand i hjemmet, respiratorpatienter | F8: =+'2020'!H113/1000 -> 1520.300252 | G8: 0
A9: Rigshospitalet | B9: Skema 6.3: Blodprøvetagning i eget hjem | G9: 0
A10: Rigshospitalet | B10: Skema 6.4: Psykinfo + pårørende | G10: 0
A11: Rigshospitalet | B11: Skema 6.5: Leveret udstyr til patienter i eget hjem, ilt og sonderemedier | C11: =+('Skema 5 og 6 2023'!J427+'Skema 5 og 6 2023'!J424+'Skema 5 og 6 2023'!J422)/1000+'Skema 5 og 6 2023'!E440/1000 -> 14414.20725 | D11: =+('Skema 5 og 6 2022'!J262+'Skema 5 og 6 2022'!J264)/1000+'Skema 5 og 6 2022'!E278/1000 -> 13423.45365 | E11: =+'SKEMA 5 OG 6 2021'!G61/1000+'SKEMA 5 OG 6 2021'!E75/1000 -> 13114.39939 | F11: =+'2020'!F54/1000+'2020'!K85/1000 -> 14674.60517 | G11: 990.7536 | H11: 7,4%▲ | I11: Stigende udgifter til diætpræparater
A12: Rigshospitalet | B12: Skema 6.6: Montebello (Nordsjællands Hospitaler) | G12: 0
A13: Rigshospitalet | B13: Skema 6.7: Satspulje korrektioner mellem år | G13: 0
A14: Rigshospitalet | B14: Skema 6.8: Klinisk farmakologisk rådgivning af praksissektoren | G14: 0
A15: Rigshospitalet | B15: Skema 6.9: Tandregulering ifm. operation | C15: =+'Skema 5 og 6 2023'!E455/1000+'Skema 5 og 6 2023'!K477/1000 -> 11751.33598 | D15: =+('Skema 5 og 6 2022'!E291+'Skema 5 og 6 2022'!I318)/1000 -> 27914.36742 | E15: 16352.81736 | F15: =+('2020'!C90+SUM('2020'!C98:C100)+'2020'!E106)/1000 -> 16893.2274 | G15: -16163.03144 | H15: -57,9%▼ | I15: Der er intet forbrug ift. specialtandlage for kæbeanalomi
A16: Rigshospitalet | B16: Skema 6.10: Giftlinjen | G16: 0
A17: Rigshospitalet | B17: Skema 6.11: Tjenestemandspensioner | G17: 0
A18: Rigshospitalet | B18: Skema 6.12: Art 4.6 Betalinger til staten | G18: 0
A19: Rigshospitalet | B19: Skema 6.13: Art 4.7 Betalinger til kommuner | G19: 0
A20: Rigshospitalet | B20: Skema 6.14: Art 4.8 Betalinger til andre regioner | G20: 0
A21: Rigshospitalet | B21: Skema 6.15: Art 7.6 Betalinger fra staten | C21: =+'Skema 5 og 6 2023'!U801+'Skema 5 og 6 2023'!M781/1000+'Skema 5 og 6 2023'!M770/1000 -> -32158.089 | D21: =-'Skema 5 og 6 2022'!C704+'Skema 5 og 6 2022'!N655 -> -36572.74298 | E21: =-'SKEMA 5 OG 6 2021'!C235+('SKEMA 5 OG 6 2021'!M214+'SKEMA 5 OG 6 2021'!M217)/1000 -> -30336.57324 | F21: =+(('2020'!H244-'2020'!J242)+'2020'!H250+'2020'!H255-'2020'!H262+'2020'!J281)/1000 -> -28486.57276 | G21: 4414.653977 | H21: -12,1%▼ | I21: AVT er nu fuldt finansieret af regionale midler
A22: Rigshospitalet | B22: Skema 6.16: Art 7.7 Betalinger fra kommuner | G22: 0
A23: Rigshospitalet | B23: Skema 6.17: Art 7.8 Betalinger fra andre regioner | C23: =+'Skema 5 og 6 2023'!I40/1000 -> -2678814.107 | D23: =+'Skema 5 og 6 2022'!H154/1000 -> -2460236.569 | E23: =+'SKEMA 5 OG 6 2021'!I36/1000 -> -2437047.474 | F23: =+'2020'!I28/1000 -> -2402677.108 | G23: -218577.5385 | H23: 8,9%▲
A24: Rigshospitalet | B24: Skema 6.18: Betalinger til selvejende, private og udenlandske sygehuse | C24: =+'Skema 5 og 6 2023'!I41/1000+'Skema 5 og 6 2023'!E143/1000+'Skema 5 og 6 2023'!O134/1000+'Skema 5 og 6 2023'!R71/1000 -> 119531.9322 | D24: =+'Skema 5 og 6 2022'!G112/1000+'Skema 5 og 6 2022'!G125/1000+'Skema 5 og 6 2022'!G154/1000 -> 156157.2634 | E24: =+'SKEMA 5 OG 6 2021'!I37/1000+'SKEMA 5 OG 6 2021'!H450/1000 -> 30125.80282 | F24: =+'2020'!I29/1000+'2020'!E578/1000 -> 13899.93984 | G24: -36625.33113 | H24: -23,5%▼ | I24: Fald i udgifter vedr. forbruget på privathospitaler
A25: Rigshospitalet | B25: Skema 6.19: Dækningsafgift/ejendomsskat | G25: 0
A26: Rigshospitalet | B26: Skema 6.20: Forsikringer/erstatninger | C26: =+'Skema 5 og 6 2023'!J237/1000+'Skema 5 og 6 2023'!L263/1000 -> 5559.40978 | D26: =+'Skema 5 og 6 2022'!L760/1000+'Skema 5 og 6 2022'!L775/1000+'Skema 5 og 6 2022'!L789/1000+'Skema 5 og 6 2022'!L806/1000 -> 5531.22611 | E26: =+'SKEMA 5 OG 6 2021'!L531/1000+'SKEMA 5 OG 6 2021'!G573/1000+'SKEMA 5 OG 6 2021'!L593/1000 -> 3930.94365 | F26: =+'2020'!E640/1000+'2020'!E667/1000 -> 8325.93178 | G26: 28.18367 | H26: 0,5% | I26: Stigende udgifter til arbejdsskader
A27: Rigshospitalet | B27: Skema 6.21: Vederlagsfri Lab. –ydelser og andre ydelser til praksissektoren | C27: 20403.93755 | D27: 29421.6711 | E27: 26954.23069 | F27: 53772.08059 | G27: -9017.733552 | H27: -30,6%▼
A28: Rigshospitalet | B28: Skema 6.22: Patienttransport | C28: =+'Skema 5 og 6 2023'!J599/1000+'Skema 5 og 6 2023'!K634/1000 -> 13287.60562 | D28: =+'Skema 5 og 6 2022'!I485/1000+'Skema 5 og 6 2022'!K512/1000 -> 13445.43078 | E28: =+'SKEMA 5 OG 6 2021'!G331/1000+'SKEMA 5 OG 6 2021'!I365/1000 -> 11779.51473 | F28: =+'2020'!I436/1000+'2020'!G497/1000 -> 12069.0531 | G28: -157.82516 | H28: -1,2% | I28: Stigende aktivitet
A29: Rigshospitalet | B29: Skema 6.23: Serviceydelser til/fra andre institutioner eller sygehuse udenfor regionen | C29: 2665.114553 | D29: 582.6604175 | E29: 923.7403888 | G29: 2082.454136 | H29: 357,4%▲
A30: Rigshospitalet | B30: Skema 6.24: Udgifter til eksternt finansierede forskning | C30: =+'Skema 5 og 6 2023'!E488/1000 -> 106.29641 | E30: =+'SKEMA 5 OG 6 2021'!E108/1000 -> 186.71446 | F30: =+'2020'!D138/1000 -> -22.21504 | G30: 106.29641
A31: Rigshospitalet | B31: Skema 6.25: Forebyggelse rettet mod praksissektoren og kommuner | G31: 0
A32: Rigshospitalet | B32: Skema 6.26: Praksisreservelæger | G32: 0
A33: Rigshospitalet | B33: Skema 6.27: Præhospital | C33: 2384.900226 | D33: 2385.000356 | E33: 1659.373466 | F33: 1939.7169 | G33: -0.1001297807 | H33: 0,0% | I33: Neonataltransporter
A34: Rigshospitalet | B34: Skema 6.28: Udgifter til Danske Regioner (Kontigent, MedCom, Fællesproj.) | G34: 0
A35: Rigshospitalet | B35: Skema 6.29: Hospice | G35: 0
A36: Rigshospitalet | B36: Skema 6.30: Konsulenter(Praksis) | G36: 0
A37: Rigshospitalet | B37: Skema 6.31: Videnskabsetisk Komité | G37: 0
A38: Rigshospitalet | B38: Skema 6.32: Tolkebistand | C38: =+'Skema 5 og 6 2023'!G503/1000+'Skema 5 og 6 2023'!J532/1000 -> 4294.00742 | D38: =+('Skema 5 og 6 2022'!I382+'Skema 5 og 6 2022'!I416)/1000 -> 3623.636 | E38: =+'SKEMA 5 OG 6 2021'!I155/1000+'SKEMA 5 OG 6 2021'!I176/1000 -> 3194.43257 | F38: =+'2020'!E158/1000+'2020'!I191/1000 -> 3358.21491 | G38: 670.37142 | H38: 18,5%▲ | I38: Stigende aktivitet
A39: Rigshospitalet | B39: Skema 6.33: Dansk Center for Partikelterapi | G39: 0
A40: Rigshospitalet | B40: Skema 6.34: Politisk organisation – overførte udgifter fra funktion 4.10.01, 4.10.02 og 4.10.04 | G40: 0
A41: Rigshospitalet | B41: Skema 6.35: Øvrige udgifter, Region Sjælland | G41: 0
A42: Rigshospitalet | B42: Skema 6.36: Sundhedsydelser ifm. specialsektor | G42: 0
A43: Rigshospitalet | B43: Skema 6.37: Udgifter til primær sundhed fra skema 2 | G43: 0
A44: Rigshospitalet | B44: Skema 6.38: Udgifter til primær sundhed fra skema 3 | G44: 0
A45: Rigshospitalet | B45: Skema 6.39: Særlige udgifter ifm. COVID-19 | D45: 116843 | E45: 227637 | F45: =212383-42094.151 -> 170288.849 | G45: -116843 | H45: -100,0%▼ | I45: Deltager ikke i vaccinationsindsatsen
A46: Rigshospitalet | B46: Skema 6.40: Udleveret udstyr/tilbehør ifm. cochlear implantater | C46: 2055.911785 | D46: 1147.590755 | E46: 1775.86235 | G46: 908.32103 | H46: 79,2%▲
A47: Rigshospitalet | B47: Skema 6.41: Luxturna-behandling, Rigshospitalet | C47: =+('Skema 5 og 6 2023'!E15+'Skema 5 og 6 2023'!E20)/1000 -> 36857.11824 | D47: =+('Skema 5 og 6 2022'!K8+'Skema 5 og 6 2022'!K5)/1000 -> 17687.83143 | E47: =+'SKEMA 5 OG 6 2021'!F478/1000 -> 30694.37276 | F47: 25601.506 | G47: 19169.28681 | H47: 108,4%▲ | I47: # patienter behandlet med Zolgensma i 2023, 1 i 2022
A48: Rigshospitalet | B48: Skema 6.42: Udleveret medicin | C48: =+'Skema 5 og 6 2023'!C8/1000 -> 1128189.115 | D48: =+'Skema 5 og 6 2022'!F14/1000 -> 1039804.868 | E48: =+'SKEMA 5 OG 6 2021'!J6/1000 -> 1125309.487 | G48: 88384.247 | H48: 8,5%▲
A49: Rigshospitalet | B49: Skema 6.43: Udgifter ifm. sundhedsklynger | G49: 0
A50: Rigshospitalet | B50: Skema 6.44: Ukrainske patienter under særlov eller asyl | G50: 0
A51: Rigshospitalet | B51: Skema 6.45: Udgifter ifm. de særlige pladser i psykiatrien | G51: 0
A52: Rigshospitalet | B52: Skema 6.46: Sikringsafdelingen, Region Sjælland | G52: 0
A53: Rigshospitalet | B53: Skema 6.47: Øvrige (Kan kun benyttes efter aftale med Sundhedsdatastyrelsen) | C53: -45617.85437 | G53: -45617.85437 | I53: Tilskud fra Nationalt Genom Center
A54: Rigshospitalet | B54: Lukkede poster (må kun bruges af Sundhedsdatastyrelsen) | G54: 0
A55: Rigshospitalet | B55: I alt | C55: =SUMIFS((C7:C54),(A7:A54),A55) -> -1395089.159 | D55: =SUMIFS((D7:D54),(A7:A54),A55) -> -1068841.313 | E55: =SUMIFS((E7:E54),(A7:A54),A55) -> -973745.3558 | F55: =SUMIFS((F7:F54),(A7:A54),A55) -> -2108842.471 | G55: -326247.8462 | H55: 30,5%▲
A56: Bispebjerg og Frederiksberg Hospital | G56: 0
A57: Bispebjerg og Frederiksberg Hospital | B57: Skema 6.1: Center for voldsramte (Bispebjerg) | C57: =+'Skema 5 og 6 2023'!G692/1000 -> 2105.047181 | D57: =+'Skema 5 og 6 2022'!K560/1000 -> 1647.392792 | E57: =+'SKEMA 5 OG 6 2021'!G390/1000 -> 2046.837499 | F57: =+'2020'!G514/1000 -> 2008.024698 | G57: 457.6543885 | H57: 27,8%▲
A58: Bispebjerg og Frederiksberg Hospital | B58: Skema 6.2: Ventilatørbistand i hjemmet, respiratorpatienter | G58: 0
A59: Bispebjerg og Frederiksberg Hospital | B59: Skema 6.3: Blodprøvetagning i eget hjem | G59: 0
A60: Bispebjerg og Frederiksberg Hospital | B60: Skema 6.4: Psykinfo + pårørende | G60: 0
A61: Bispebjerg og Frederiksberg Hospital | B61: Skema 6.5: Leveret udstyr til patienter i eget hjem, ilt og sonderemedier | C61: =+'Skema 5 og 6 2023'!J350/1000 -> 3486.63434 | D61: =+'Skema 5 og 6 2022'!J173/1000 -> 3823.36068 | E61: =+'SKEMA 5 OG 6 2021'!G50/1000 -> 3310.7202 | F61: =+'2020'!F44/1000+'2020'!K45/1000 -> 2997.46127 | G61: -336.72634 | H61: -8,8%▼ | I61: Faldende energipriser
A62: Bispebjerg og Frederiksberg Hospital | B62: Skema 6.6: Montebello (Nordsjællands Hospitaler) | G62: 0
A63: Bispebjerg og Frederiksberg Hospital | B63: Skema 6.7: Satspulje korrektioner mellem år | G63: 0
A64: Bispebjerg og Frederiksberg Hospital | B64: Skema 6.8: Klinisk farmakologisk rådgivning af praksissektoren | C64: =+'Skema 5 og 6 2023'!G740/1000 -> 5700.562117 | D64: =+'Skema 5 og 6 2022'!G608/1000 -> 7008.186388 | E64: =+'SKEMA 5 OG 6 2021'!G436/1000 -> 7428.390118 | F64: =+'2020'!G557/1000 -> 7707.391892 | G64: -1307.624271 | H64: -18,7%▼ | I64: Giftlinjen er en del af klinisk farmakologi. Stigende udgifter her giver faldende udgifter til rådgivning af praksis
A65: Bispebjerg og Frederiksberg Hospital | B65: Skema 6.9: Tandregulering ifm. operation | G65: 0
A66: Bispebjerg og Frederiksberg Hospital | B66: Skema 6.10: Giftlinjen | C66: =+'Skema 5 og 6 2023'!H714/1000 -> 23267.31435 | D66: =+'Skema 5 og 6 2022'!G582/1000 -> 16642.65652 | E66: =+'SKEMA 5 OG 6 2021'!G409/1000 -> 15668.01134 | F66: =+'2020'!G533/1000 -> 14615.99797 | G66: 6624.657832 | H66: 39,8%▲ | I66: Giftlinjen er en del af klinisk farmakologi. Stigende udgifter her giver faldende udgifter til rådgivning af praksis. Desuden er der prioriteret regionale midler til området
A67: Bispebjerg og Frederiksberg Hospital | B67: Skema 6.11: Tjenestemandspensioner | G67: 0
A68: Bispebjerg og Frederiksberg Hospital | B68: Skema 6.12: Art 4.6 Betalinger til staten | G68: 0
A69: Bispebjerg og Frederiksberg Hospital | B69: Skema 6.13: Art 4.7 Betalinger til kommuner | G69: 0
A70: Bispebjerg og Frederiksberg Hospital | B70: Skema 6.14: Art 4.8 Betalinger til andre regioner | G70: 0
A71: Bispebjerg og Frederiksberg Hospital | B71: Skema 6.15: Art 7.6 Betalinger fra staten | C71: =+'Skema 5 og 6 2023'!N753/1000 -> -10500 | D71: =+'Skema 5 og 6 2022'!J614/1000 -> -10100 | E71: =+'SKEMA 5 OG 6 2021'!J249/1000 -> -10000 | F71: =+'2020'!I212/1000 -> -9900 | G71: =IF(ISERROR(C71- D71)=TRUE,"",C71 - D71) -> -400 | H71: =IF(ISERROR((((C71- D71)/D71)*100)=TRUE),"",IF((((C71- D71)/D71)*100)<-7,FIXED(((C71- D71)/D71)*100, 1,TRUE) &"%" & "▼",IF((((C71- D71)/D71)*100)>7,FIXED(((C71- D71)/D71)*100, 1,TRUE) &"%" &"▲",FIXED(((C71- D71)/D71)*100, 1,TRUE)&"%"))) -> 4,0%
A72: Bispebjerg og Frederiksberg Hospital | B72: Skema 6.16: Art 7.7 Betalinger fra kommuner | G72: 0
A73: Bispebjerg og Frederiksberg Hospital | B73: Skema 6.17: Art 7.8 Betalinger fra andre regioner | C73: =+'Skema 5 og 6 2023'!H28/1000 -> -96107.71484 | D73: =+'Skema 5 og 6 2022'!H136/1000 -> -75191.44154 | E73: =+'SKEMA 5 OG 6 2021'!I19/1000 -> -71513.66455 | F73: =+'2020'!I5/1000 -> -75403.75834 | G73: -20916.2733 | H73: 27,8%▲ | I73: Stigende afregning udleveret medicin
A74: Bispebjerg og Frederiksberg Hospital | B74: Skema 6.18: Betalinger til selvejende, private og udenlandske sygehuse | C74: =+'Skema 5 og 6 2023'!G29/1000+'Skema 5 og 6 2023'!E68/1000+'Skema 5 og 6 2023'!R59/1000 -> 38690.67919 | D74: =+'Skema 5 og 6 2022'!G35/1000+'Skema 5 og 6 2022'!G136/1000 -> 40909.93461 | E74: =+'SKEMA 5 OG 6 2021'!I20/1000 -> -2951.39895 | F74: =+'2020'!I6/1000 -> -2342.53406 | G74: -2219.25542 | H74: -5,4% | I74: Forbruget vedr. privathospitaler er flyttet til hospitalerne
A75: Bispebjerg og Frederiksberg Hospital | B75: Skema 6.19: Dækningsafgift/ejendomsskat | G75: 0
A76: Bispebjerg og Frederiksberg Hospital | B76: Skema 6.20: Forsikringer/erstatninger | C76: =+'Skema 5 og 6 2023'!J201/1000+'Skema 5 og 6 2023'!L256/1000 -> 7496.08708 | D76: =+'Skema 5 og 6 2022'!L722/1000+'Skema 5 og 6 2022'!L765/1000+'Skema 5 og 6 2022'!L780/1000+'Skema 5 og 6 2022'!L794/1000 -> 4913.63891 | E76: =+'SKEMA 5 OG 6 2021'!L487/1000+'SKEMA 5 OG 6 2021'!G553/1000+'SKEMA 5 OG 6 2021'!L584/1000 -> 3690.58605 | F76: =+'2020'!E614/1000+'2020'!E653/1000 -> 3274.47616 | G76: 2582.44817 | H76: 52,6%▲ | I76: Stigende udgifter til arbejdsskader
A77: Bispebjerg og Frederiksberg Hospital | B77: Skema 6.21: Vederlagsfri Lab. –ydelser og andre ydelser til praksissektoren | C77: 66677.37053 | D77: 64113.60325 | E77: 59678.43981 | F77: 82586.76225 | G77: 2563.767275 | H77: 4,0%
A78: Bispebjerg og Frederiksberg Hospital | B78: Skema 6.22: Patienttransport | C78: =+'Skema 5 og 6 2023'!K620/1000 -> 106.39205 | D78: =+'Skema 5 og 6 2022'!K503/1000 -> 103.57099 | E78: =+'SKEMA 5 OG 6 2021'!I347/1000+'SKEMA 5 OG 6 2021'!O346/1000+'SKEMA 5 OG 6 2021'!O351/1000 -> 692.09604 | F78: =+('2020'!L469+'2020'!Q464)/1000 -> 723.68047 | G78: 2.82106 | H78: 2,7%
A79: Bispebjerg og Frederiksberg Hospital | B79: Skema 6.23: Serviceydelser til/fra andre institutioner eller sygehuse udenfor regionen | G79: 0
A80: Bispebjerg og Frederiksberg Hospital | B80: Skema 6.24: Udgifter til eksternt finansierede forskning | C80: =+'Skema 5 og 6 2023'!E482/1000 -> -103.89054 | D80: =+'Skema 5 og 6 2022'!E323/1000 -> -5.95946 | E80: =+'SKEMA 5 OG 6 2021'!E103/1000 -> 106.72518 | F80: =+'2020'!D126/1000 -> 0 | G80: -97.93108 | H80: 1643,3%▲
A81: Bispebjerg og Frederiksberg Hospital | B81: Skema 6.25: Forebyggelse rettet mod praksissektoren og kommuner | G81: 0
A82: Bispebjerg og Frederiksberg Hospital | B82: Skema 6.26: Praksisreservelæger | G82: 0
A83: Bispebjerg og Frederiksberg Hospital | B83: Skema 6.27: Præhospital | G83: 0
A84: Bispebjerg og Frederiksberg Hospital | B84: Skema 6.28: Udgifter til Danske Regioner (Kontigent, MedCom, Fællesproj.) | C84: =+'Skema 5 og 6 2023'!G665/1000 -> -894.89762 | D84: =+'Skema 5 og 6 2022'!G549/1000 -> 1492.23729 | E84: =+'SKEMA 5 OG 6 2021'!E375/1000 -> 2844.6584 | F84: =+'2020'!E569/1000 -> 3416.06394 | G84: -2387.13491 | H84: -160,0%▼ | I84: Forebyggelsesamb, udgifter flyttet til skema 2
A85: Bispebjerg og Frederiksberg Hospital | B85: Skema 6.29: Hospice | G85: 0
A86: Bispebjerg og Frederiksberg Hospital | B86: Skema 6.30: Konsulenter(Praksis) | G86: 0
A87: Bispebjerg og Frederiksberg Hospital | B87: Skema 6.31: Videnskabsetisk Komité | G87: 0
A88: Bispebjerg og Frederiksberg Hospital | B88: Skema 6.32: Tolkebistand | C88: =+'Skema 5 og 6 2023'!G497/1000+'Skema 5 og 6 2023'!J510/1000 -> 1464.77147 | D88: =+('Skema 5 og 6 2022'!I344+'Skema 5 og 6 2022'!I398)/1000 -> 1403.53565 | E88: =+'SKEMA 5 OG 6 2021'!I119/1000+'SKEMA 5 OG 6 2021'!I162/1000 -> 1428.65801 | F88: =+'2020'!E146/1000+'2020'!I177/1000-'2020'!G146/1000 -> 1228.59544 | G88: 61.23582 | H88: 4,4%
A89: Bispebjerg og Frederiksberg Hospital | B89: Skema 6.33: Dansk Center for Partikelterapi | G89: 0
A90: Bispebjerg og Frederiksberg Hospital | B90: Skema 6.34: Politisk organisation – overførte udgifter fra funktion 4.10.01, 4.10.02 og 4.10.04 | G90: 0
A91: Bispebjerg og Frederiksberg Hospital | B91: Skema 6.35: Øvrige udgifter, Region Sjælland | G91: 0
A92: Bispebjerg og Frederiksberg Hospital | B92: Skema 6.36: Sundhedsydelser ifm. specialsektor | G92: 0
A93: Bispebjerg og Frederiksberg Hospital | B93: Skema 6.37: Udgifter til primær sundhed fra skema 2 | G93: 0
A94: Bispebjerg og Frederiksberg Hospital | B94: Skema 6.38: Udgifter til primær sundhed fra skema 3 | G94: 0
A95: Bispebjerg og Frederiksberg Hospital | B95: Skema 6.39: Særlige udgifter ifm. COVID-19 | C95: =+'Skema 5 og 6 2023'!E183 -> 6468.953 | D95: 92118.305 | E95: 146377.021 | F95: 90024.64196 | G95: -85649.352 | H95: -93,0%▼ | I95: Vaccineindsatsen 2023/2024
A96: Bispebjerg og Frederiksberg Hospital | B96: Skema 6.40: Udleveret udstyr/tilbehør ifm. cochlear implantater | G96: 0
A97: Bispebjerg og Frederiksberg Hospital | B97: Skema 6.41: Luxturna-behandling, Rigshospitalet | G97: 0
A98: Bispebjerg og Frederiksberg Hospital | B98: Skema 6.42: Udleveret medicin | C98: =+'Skema 5 og 6 2023'!C4/1000 -> 141912.2872 | D98: =+'Skema 5 og 6 2022'!L14/1000 -> 94293.33237 | E98: =+'SKEMA 5 OG 6 2021'!B6/1000 -> 78789.91922 | G98: 47618.95485 | H98: 50,5%▲ | I98: I gangsat ny behandling med dupilumab
A99: Bispebjerg og Frederiksberg Hospital | B99: Skema 6.43: Udgifter ifm. sundhedsklynger | G99: 0
A100: Bispebjerg og Frederiksberg Hospital | B100: Skema 6.44: Ukrainske patienter under særlov eller asyl | D100: =+'Skema 5 og 6 2022'!E816/1000 -> 313.40601 | G100: -313.40601 | H100: -100,0%▼ | I100: Praksisklinikken er lukket igen
A101: Bispebjerg og Frederiksberg Hospital | B101: Skema 6.45: Udgifter ifm. de særlige pladser i psykiatrien | G101: 0
A102: Bispebjerg og Frederiksberg Hospital | B102: Skema 6.46: Sikringsafdelingen, Region Sjælland | G102: 0
A103: Bispebjerg og Frederiksberg Hospital | B103: Skema 6.47: Øvrige (Kan kun benyttes efter aftale med Sundhedsdatastyrelsen) | G103: 0
A104: Bispebjerg og Frederiksberg Hospital | B104: Lukkede poster (må kun bruges af Sundhedsdatastyrelsen) | G104: 0
A105: Bispebjerg og Frederiksberg Hospital | B105: I alt | C105: =SUMIFS((C7:C104),(A7:A104),A105) -> 189769.5955 | D105: =SUMIFS((D7:D104),(A7:A104),A105) -> 243485.7595 | E105: =SUMIFS((E7:E104),(A7:A104),A105) -> 237596.9994 | F105: =SUMIFS((F7:F104),(A7:A104),A105) -> 120936.8036 | G105: -53716.16393 | H105: -22,1%▼
A106: Amager og Hvidovre Hospital | G106: 0
A107: Amager og Hvidovre Hospital | B107: Skema 6.1: Center for voldsramte (Bispebjerg) | G107: 0
A108: Amager og Hvidovre Hospital | B108: Skema 6.2: Ventilatørbistand i hjemmet, respiratorpatienter | G108: 0
A109: Amager og Hvidovre Hospital | B109: Skema 6.3: Blodprøvetagning i eget hjem | G109: 0
A110: Amager og Hvidovre Hospital | B110: Skema 6.4: Psykinfo + pårørende | G110: 0
A111: Amager og Hvidovre Hospital | B111: Skema 6.5: Leveret udstyr til patienter i eget hjem, ilt og sonderemedier | C111: =+('Skema 5 og 6 2023'!J398+'Skema 5 og 6 2023'!J404+'Skema 5 og 6 2023'!J408+'Skema 5 og 6 2023'!J414+'Skema 5 og 6 2023'!J418)/1000 -> 5643.52146 | D111: =+('Skema 5 og 6 2022'!J232+'Skema 5 og 6 2022'!J242+'Skema 5 og 6 2022'!J248)/1000 -> 6158.37014 | E111: =+'SKEMA 5 OG 6 2021'!G58/1000 -> 5314.57111 | F111: =+'2020'!F52/1000 -> 4637.18573 | G111: -514.84868 | H111: -8,4%▼ | I111: Faldende energipriser
A112: Amager og Hvidovre Hospital | B112: Skema 6.6: Montebello (Nordsjællands Hospitaler) | G112: 0
A113: Amager og Hvidovre Hospital | B113: Skema 6.7: Satspulje korrektioner mellem år | G113: 0
A114: Amager og Hvidovre Hospital | B114: Skema 6.8: Klinisk farmakologisk rådgivning af praksissektoren | G114: 0
A115: Amager og Hvidovre Hospital | B115: Skema 6.9: Tandregulering ifm. operation | G115: 0
A116: Amager og Hvidovre Hospital | B116: Skema 6.10: Giftlinjen | G116: 0
A117: Amager og Hvidovre Hospital | B117: Skema 6.11: Tjenestemandspensioner | G117: 0
A118: Amager og Hvidovre Hospital | B118: Skema 6.12: Art 4.6 Betalinger til staten | G118: 0
A119: Amager og Hvidovre Hospital | B119: Skema 6.13: Art 4.7 Betalinger til kommuner | G119: 0
A120: Amager og Hvidovre Hospital | B120: Skema 6.14: Art 4.8 Betalinger til andre regioner | G120: 0
A121: Amager og Hvidovre Hospital | B121: Skema 6.15: Art 7.6 Betalinger fra staten | G121: 0
A122: Amager og Hvidovre Hospital | B122: Skema 6.16: Art 7.7 Betalinger fra kommuner | G122: 0
A123: Amager og Hvidovre Hospital | B123: Skema 6.17: Art 7.8 Betalinger fra andre regioner | C123: =+'Skema 5 og 6 2023'!H38/1000 -> -138471.5208 | D123: =+'Skema 5 og 6 2022'!H151/1000 -> -133007.8617 | E123: =+'SKEMA 5 OG 6 2021'!I33/1000 -> -121233.769 | F123: =+'2020'!I24/1000 -> -107239.0126 | G123: -5463.65904 | H123: 4,1% | I123: Niveau før covid
A124: Amager og Hvidovre Hospital | B124: Skema 6.18: Betalinger til selvejende, private og udenlandske sygehuse | C124: =+'Skema 5 og 6 2023'!G39/1000+'Skema 5 og 6 2023'!E122/1000+'Skema 5 og 6 2023'!R69/1000 -> 72868.32045 | D124: =+'Skema 5 og 6 2022'!G88/1000+'Skema 5 og 6 2022'!G151/1000 -> 48921.74341 | E124: =+'SKEMA 5 OG 6 2021'!I34/1000 -> -2454.48593 | F124: =+'2020'!I25/1000 -> -3847.87153 | G124: 23946.57704 | H124: 48,9%▲ | I124: Forbruget vedr. privathospitaler er flyttet til hospitalerne, stigende udgifter fra 2022 til 2023
A125: Amager og Hvidovre Hospital | B125: Skema 6.19: Dækningsafgift/ejendomsskat | G125: 0
A126: Amager og Hvidovre Hospital | B126: Skema 6.20: Forsikringer/erstatninger | C126: =+'Skema 5 og 6 2023'!J232/1000 -> 3154.31514 | D126: =+'Skema 5 og 6 2022'!L752/1000+'Skema 5 og 6 2022'!L804/1000 -> 4623.55273 | E126: =+'SKEMA 5 OG 6 2021'!L524/1000+'SKEMA 5 OG 6 2021'!G568/1000+'SKEMA 5 OG 6 2021'!L590/1000 -> 6230.05101 | F126: =+'2020'!E637/1000+'2020'!E664/1000 -> 5474.36455 | G126: -1469.23759 | H126: -31,8%▼ | I126: Fald i udgifter til arbejdsskadeerstatning
A127: Amager og Hvidovre Hospital | B127: Skema 6.21: Vederlagsfri Lab. –ydelser og andre ydelser til praksissektoren | C127: 117976.1626 | D127: 93091.81306 | E127: 104782.9333 | F127: 149352.02 | G127: 24884.34956 | H127: 26,7%▲ | I127: Nogle år har der været Corona kompensation på klinisk mikrobiologi
A128: Amager og Hvidovre Hospital | B128: Skema 6.22: Patienttransport | C128: =+'Skema 5 og 6 2023'!J597/1000+'Skema 5 og 6 2023'!K631/1000 -> 14459.43242 | D128: =+'Skema 5 og 6 2022'!I483/1000+'Skema 5 og 6 2022'!K510/1000 -> 12621.7838 | E128: =+'SKEMA 5 OG 6 2021'!G328/1000+'SKEMA 5 OG 6 2021'!I360/1000 -> 10911.33549 | F128: =+'2020'!I434/1000+'2020'!G492/1000 -> 13412.71733 | G128: 1837.64862 | H128: 14,6%▲ | I128: Stigende aktivitet
A129: Amager og Hvidovre Hospital | B129: Skema 6.23: Serviceydelser til/fra andre institutioner eller sygehuse udenfor regionen | G129: 0
A130: Amager og Hvidovre Hospital | B130: Skema 6.24: Udgifter til eksternt finansierede forskning | C130: =+'Skema 5 og 6 2023'!E487/1000 -> 0 | D130: =+'Skema 5 og 6 2022'!E328/1000 -> 70.62292 | E130: =+'SKEMA 5 OG 6 2021'!E107/1000 -> -75.40151 | F130: =+'2020'!D136/1000 -> -48.38747 | G130: -70.62292 | H130: -100,0%▼
A131: Amager og Hvidovre Hospital | B131: Skema 6.25: Forebyggelse rettet mod praksissektoren og kommuner | G131: 0
A132: Amager og Hvidovre Hospital | B132: Skema 6.26: Praksisreservelæger | G132: 0
A133: Amager og Hvidovre Hospital | B133: Skema 6.27: Præhospital | G133: 0
A134: Amager og Hvidovre Hospital | B134: Skema 6.28: Udgifter til Danske Regioner (Kontigent, MedCom, Fællesproj.) | G134: 0
A135: Amager og Hvidovre Hospital | B135: Skema 6.29: Hospice | G135: =IF(ISERROR(C135- D135)=TRUE,"",C135 - D135) -> 0 | H135: =IF(ISERROR((((C135- D135)/D135)*100)=TRUE),"",IF((((C135- D135)/D135)*100)<-7,FIXED(((C135- D135)/D135)*100, 1,TRUE) &"%" & "▼",IF((((C135- D135)/D135)*100)>7,FIXED(((C135- D135)/D135)*100, 1,TRUE) &"%" &"▲",FIXED(((C135- D135)/D135)*100, 1,TRUE)&"%"))) -> 
A136: Amager og Hvidovre Hospital | B136: Skema 6.30: Konsulenter(Praksis) | G136: 0
A137: Amager og Hvidovre Hospital | B137: Skema 6.31: Videnskabsetisk Komité | G137: 0
A138: Amager og Hvidovre Hospital | B138: Skema 6.32: Tolkebistand | C138: =+'Skema 5 og 6 2023'!G502/1000+'Skema 5 og 6 2023'!J522/1000 -> 2273.03919 | D138: =+('Skema 5 og 6 2022'!I371+'Skema 5 og 6 2022'!I409)/1000 -> 2031.4685 | E138: =+'SKEMA 5 OG 6 2021'!I142/1000+'SKEMA 5 OG 6 2021'!I173/1000 -> 1857.16133 | F138: =+'2020'!E156/1000+'2020'!I184/1000 -> 2062.44022 | G138: 241.57069 | H138: 11,9%▲ | I138: Stigende aktivitet
A139: Amager og Hvidovre Hospital | B139: Skema 6.33: Dansk Center for Partikelterapi | G139: 0
A140: Amager og Hvidovre Hospital | B140: Skema 6.34: Politisk organisation – overførte udgifter fra funktion 4.10.01, 4.10.02 og 4.10.04 | G140: 0
A141: Amager og Hvidovre Hospital | B141: Skema 6.35: Øvrige udgifter, Region Sjælland | G141: 0
A142: Amager og Hvidovre Hospital | B142: Skema 6.36: Sundhedsydelser ifm. specialsektor | G142: 0
A143: Amager og Hvidovre Hospital | B143: Skema 6.37: Udgifter til primær sundhed fra skema 2 | G143: 0
A144: Amager og Hvidovre Hospital | B144: Skema 6.38: Udgifter til primær sundhed fra skema 3 | G144: 0
A145: Amager og Hvidovre Hospital | B145: Skema 6.39: Særlige udgifter ifm. COVID-19 | C145: =+'Skema 5 og 6 2023'!E187 -> 6070.203 | D145: 140029 | E145: 126593 | F145: 72207.37723 | G145: -133958.797 | H145: -95,7%▼ | I145: Vaccineindsatsen 2023/2024
A146: Amager og Hvidovre Hospital | B146: Skema 6.40: Udleveret udstyr/tilbehør ifm. cochlear implantater | G146: 0
A147: Amager og Hvidovre Hospital | B147: Skema 6.41: Luxturna-behandling, Rigshospitalet | G147: 0
A148: Amager og Hvidovre Hospital | B148: Skema 6.42: Udleveret medicin | C148: =+'Skema 5 og 6 2023'!B3/1000 -> 122176.3486 | D148: =+'Skema 5 og 6 2022'!C12/1000 -> 84943.26089 | E148: =+'SKEMA 5 OG 6 2021'!B7/1000 -> 88259.43523 | G148: 37233.0877 | H148: 43,8%▲
A149: Amager og Hvidovre Hospital | B149: Skema 6.43: Udgifter ifm. sundhedsklynger | C149: =+'Skema 5 og 6 2023'!G870/1000 -> 612.35901 | G149: 612.35901
A150: Amager og Hvidovre Hospital | B150: Skema 6.44: Ukrainske patienter under særlov eller asyl | G150: 0
A151: Amager og Hvidovre Hospital | B151: Skema 6.45: Udgifter ifm. de særlige pladser i psykiatrien | G151: 0
A152: Amager og Hvidovre Hospital | B152: Skema 6.46: Sikringsafdelingen, Region Sjælland | G152: 0
A153: Amager og Hvidovre Hospital | B153: Skema 6.47: Øvrige (Kan kun benyttes efter aftale med Sundhedsdatastyrelsen) | G153: 0
A154: Amager og Hvidovre Hospital | B154: Lukkede poster (må kun bruges af Sundhedsdatastyrelsen) | G154: 0
A155: Amager og Hvidovre Hospital | B155: I alt | C155: =SUMIFS((C7:C154),(A7:A154),A155) -> 206762.1811 | D155: =SUMIFS((D7:D154),(A7:A154),A155) -> 259483.7537 | E155: =SUMIFS((E7:E154),(A7:A154),A155) -> 220184.8311 | F155: =SUMIFS((F7:F154),(A7:A154),A155) -> 136010.8334 | G155: -52721.57261 | H155: -20,3%▼
A156: Herlev og Gentofte Hospital | G156: 0
A157: Herlev og Gentofte Hospital | B157: Skema 6.1: Center for voldsramte (Bispebjerg) | G157: 0
A158: Herlev og Gentofte Hospital | B158: Skema 6.2: Ventilatørbistand i hjemmet, respiratorpatienter | G158: 0
A159: Herlev og Gentofte Hospital | B159: Skema 6.3: Blodprøvetagning i eget hjem | G159: 0
A160: Herlev og Gentofte Hospital | B160: Skema 6.4: Psykinfo + pårørende | G160: 0
A161: Herlev og Gentofte Hospital | B161: Skema 6.5: Leveret udstyr til patienter i eget hjem, ilt og sonderemedier | C161: =+'Skema 5 og 6 2023'!J386/1000+'Skema 5 og 6 2023'!S389/1000 -> 6866.99396 | D161: =+'Skema 5 og 6 2022'!J211/1000 -> 7368.17431 | E161: =+'SKEMA 5 OG 6 2021'!G54/1000 -> 5454.51762 | F161: =+'2020'!F48/1000 -> 4781.98806 | G161: -501.18035 | H161: -6,8% | I161: Faldende energipriser
A162: Herlev og Gentofte Hospital | B162: Skema 6.6: Montebello (Nordsjællands Hospitaler) | G162: 0
A163: Herlev og Gentofte Hospital | B163: Skema 6.7: Satspulje korrektioner mellem år | G163: 0
A164: Herlev og Gentofte Hospital | B164: Skema 6.8: Klinisk farmakologisk rådgivning af praksissektoren | G164: 0
A165: Herlev og Gentofte Hospital | B165: Skema 6.9: Tandregulering ifm. operation | G165: 0
A166: Herlev og Gentofte Hospital | B166: Skema 6.10: Giftlinjen | G166: 0
A167: Herlev og Gentofte Hospital | B167: Skema 6.11: Tjenestemandspensioner | G167: 0
A168: Herlev og Gentofte Hospital | B168: Skema 6.12: Art 4.6 Betalinger til staten | G168: 0
A169: Herlev og Gentofte Hospital | B169: Skema 6.13: Art 4.7 Betalinger til kommuner | G169: 0
A170: Herlev og Gentofte Hospital | B170: Skema 6.14: Art 4.8 Betalinger til andre regioner | G170: 0
A171: Herlev og Gentofte Hospital | B171: Skema 6.15: Art 7.6 Betalinger fra staten | G171: 0
A172: Herlev og Gentofte Hospital | B172: Skema 6.16: Art 7.7 Betalinger fra kommuner | G172: 0
A173: Herlev og Gentofte Hospital | B173: Skema 6.17: Art 7.8 Betalinger fra andre regioner | C173: =+'Skema 5 og 6 2023'!H34/1000 -> -250332.1986 | D173: =+'Skema 5 og 6 2022'!H145/1000 -> -322031.4518 | E173: =+'SKEMA 5 OG 6 2021'!I27/1000 -> -217647.1099 | F173: =+'2020'!I16/1000 -> -242753.9074 | G173: 71699.25322 | H173: -22,3%▼ | I173: Efterregulering medicin særydelser 2017, 2018 og 2021, er lavet i 2022
A174: Herlev og Gentofte Hospital | B174: Skema 6.18: Betalinger til selvejende, private og udenlandske sygehuse | C174: =+'Skema 5 og 6 2023'!G35/1000+'Skema 5 og 6 2023'!E95/1000+'Skema 5 og 6 2023'!R65/1000 -> 144088.1881 | D174: =+'Skema 5 og 6 2022'!G61/1000+'Skema 5 og 6 2022'!G145/1000 -> 164498.6068 | E174: =+'SKEMA 5 OG 6 2021'!I28/1000 -> -4520.20941 | F174: =+'2020'!I17/1000 -> -5714.08971 | G174: -20410.41869 | H174: -12,4%▼ | I174: Fald i udgifter vedr. forbruget på privathospitaler
A175: Herlev og Gentofte Hospital | B175: Skema 6.19: Dækningsafgift/ejendomsskat | G175: 0
A176: Herlev og Gentofte Hospital | B176: Skema 6.20: Forsikringer/erstatninger | C176: =+('Skema 5 og 6 2023'!J218+'Skema 5 og 6 2023'!J216)/1000+'Skema 5 og 6 2023'!L260/1000 -> 5128.26434 | D176: =+'Skema 5 og 6 2022'!L732/1000+'Skema 5 og 6 2022'!L769/1000+'Skema 5 og 6 2022'!L784/1000+'Skema 5 og 6 2022'!L800/1000 -> 6358.33212 | E176: =+'SKEMA 5 OG 6 2021'!L501/1000+'SKEMA 5 OG 6 2021'!G559/1000+'SKEMA 5 OG 6 2021'!L586/1000 -> 6768.92939 | F176: =+'2020'!I621/1000 -> 4132.98463 | G176: -1230.06778 | H176: -19,3%▼
A177: Herlev og Gentofte Hospital | B177: Skema 6.21: Vederlagsfri Lab. –ydelser og andre ydelser til praksissektoren | C177: 63804.18591 | D177: 44894.3087 | E177: 56512.93082 | F177: =28153.0348873149+43771.1215987889 -> 71924.15649 | G177: 18909.87721 | H177: 42,1%▲ | I177: Nogle år har der været Corona kompensation på klinisk mikrobiologi
A178: Herlev og Gentofte Hospital | B178: Skema 6.22: Patienttransport | C178: =+'Skema 5 og 6 2023'!J595/1000+'Skema 5 og 6 2023'!K627/1000 -> 4643.13643 | D178: =+'Skema 5 og 6 2022'!I481/1000+'Skema 5 og 6 2022'!K508/1000 -> 5049.32486 | E178: =+'SKEMA 5 OG 6 2021'!P364/1000 -> 5407.1938 | F178: =+('2020'!G482+'2020'!I430)/1000 -> 5011.40081 | G178: -406.18843 | H178: -8,0%▼
A179: Herlev og Gentofte Hospital | B179: Skema 6.23: Serviceydelser til/fra andre institutioner eller sygehuse udenfor regionen | G179: 0
A180: Herlev og Gentofte Hospital | B180: Skema 6.24: Udgifter til eksternt finansierede forskning | C180: =+'Skema 5 og 6 2023'!E485/1000 -> -49.82687 | D180: =+'Skema 5 og 6 2022'!E326/1000 -> 2.92485 | E180: =+'SKEMA 5 OG 6 2021'!E105/1000 -> -2.04877 | F180: =+'2020'!D132/1000 -> -4.4254 | G180: -52.75172 | H180: -1803,6%▼
A181: Herlev og Gentofte Hospital | B181: Skema 6.25: Forebyggelse rettet mod praksissektoren og kommuner | G181: 0
A182: Herlev og Gentofte Hospital | B182: Skema 6.26: Praksisreservelæger | G182: 0
A183: Herlev og Gentofte Hospital | B183: Skema 6.27: Præhospital | G183: 0
A184: Herlev og Gentofte Hospital | B184: Skema 6.28: Udgifter til Danske Regioner (Kontigent, MedCom, Fællesproj.) | G184: 0
A185: Herlev og Gentofte Hospital | B185: Skema 6.29: Hospice | G185: 0
A186: Herlev og Gentofte Hospital | B186: Skema 6.30: Konsulenter(Praksis) | G186: 0
A187: Herlev og Gentofte Hospital | B187: Skema 6.31: Videnskabsetisk Komité | G187: 0
A188: Herlev og Gentofte Hospital | B188: Skema 6.32: Tolkebistand | C188: =+'Skema 5 og 6 2023'!G500/1000+'Skema 5 og 6 2023'!J514/1000 -> 2399.36413 | D188: =+('Skema 5 og 6 2022'!I361+'Skema 5 og 6 2022'!I402)/1000 -> 1938.01786 | E188: =+'SKEMA 5 OG 6 2021'!I134/1000+'SKEMA 5 OG 6 2021'!I166/1000 -> 1744.41132 | F188: =+'2020'!E152/1000+'2020'!I179/1000 -> 1968.04749 | G188: 461.34627 | H188: 23,8%▲ | I188: Stigende aktivitet
A189: Herlev og Gentofte Hospital | B189: Skema 6.33: Dansk Center for Partikelterapi | G189: 0
A190: Herlev og Gentofte Hospital | B190: Skema 6.34: Politisk organisation – overførte udgifter fra funktion 4.10.01, 4.10.02 og 4.10.04 | G190: 0
A191: Herlev og Gentofte Hospital | B191: Skema 6.35: Øvrige udgifter, Region Sjælland | G191: 0
A192: Herlev og Gentofte Hospital | B192: Skema 6.36: Sundhedsydelser ifm. specialsektor | G192: 0
A193: Herlev og Gentofte Hospital | B193: Skema 6.37: Udgifter til primær sundhed fra skema 2 | G193: 0
A194: Herlev og Gentofte Hospital | B194: Skema 6.38: Udgifter til primær sundhed fra skema 3 | G194: 0
A195: Herlev og Gentofte Hospital | B195: Skema 6.39: Særlige udgifter ifm. COVID-19 | C195: =+'Skema 5 og 6 2023'!E185 -> 7435.114 | D195: 127298 | E195: 144226 | F195: 146628.8784 | G195: -119862.886 | H195: -94,2%▼ | I195: Vaccineindsatsen 2023/2024
A196: Herlev og Gentofte Hospital | B196: Skema 6.40: Udleveret udstyr/tilbehør ifm. cochlear implantater | G196: 0
A197: Herlev og Gentofte Hospital | B197: Skema 6.41: Luxturna-behandling, Rigshospitalet | G197: 0
A198: Herlev og Gentofte Hospital | B198: Skema 6.42: Udleveret medicin | C198: =+'Skema 5 og 6 2023'!B6/1000 -> 419925.755 | D198: =+'Skema 5 og 6 2022'!C14/1000 -> 398517.1901 | E198: =+'SKEMA 5 OG 6 2021'!B9/1000-'SKEMA 5 OG 6 2021'!G12/1000 -> 355917.9038 | G198: 21408.56493 | H198: 5,4%
A199: Herlev og Gentofte Hospital | B199: Skema 6.43: Udgifter ifm. sundhedsklynger | C199: =+'Skema 5 og 6 2023'!G864/1000 -> 118.41344 | G199: =IF(ISERROR(C199- D199)=TRUE,"",C199 - D199) -> 118.41344 | H199: =IF(ISERROR((((C199- D199)/D199)*100)=TRUE),"",IF((((C199- D199)/D199)*100)<-7,FIXED(((C199- D199)/D199)*100, 1,TRUE) &"%" & "▼",IF((((C199- D199)/D199)*100)>7,FIXED(((C199- D199)/D199)*100, 1,TRUE) &"%" &"▲",FIXED(((C199- D199)/D199)*100, 1,TRUE)&"%"))) -> 
A200: Herlev og Gentofte Hospital | B200: Skema 6.44: Ukrainske patienter under særlov eller asyl | G200: 0
A201: Herlev og Gentofte Hospital | B201: Skema 6.45: Udgifter ifm. de særlige pladser i psykiatrien | G201: 0
A202: Herlev og Gentofte Hospital | B202: Skema 6.46: Sikringsafdelingen, Region Sjælland | G202: 0
... 253 more rows

Sheet Skema 7
A1: Region Hovedstaden, somatiske sygehuse.
B2: Skema 7: Vederlagsfrie ydelser mellem sygehusene. (1.000 kr.)
A5: Sygehus | B5: 2023 | D5: 2023 | E5: 2022 | G5: 2022 | H5: 2021 | J5: 2021 | K5: 2020 | M5: 2020
B6: Leverede | C6: Modtagne | D6: Lev. - Mod. | E6: Leverede | F6: Modtagne | G6: Lev. - Mod. | H6: Leverede | I6: Modtagne | J6: Lev. - Mod. | K6: Leverede | L6: Modtagne | M6: Lev. - Mod.
A7: Rigshospitalet | B7: 146474.6669 | C7: 32121.5119 | D7: =$B$7-$C$7 -> 114353.155 | E7: 151600.4889 | F7: 40733.80927 | G7: =$E$7-$F$7 -> 110866.6796 | H7: 67211.72073 | I7: 47729.82931 | J7: =$H$7-$I$7 -> 19481.89142 | K7: 112832.5535 | L7: 39323.71231 | M7: =$K$7-$L$7 -> 73508.84115
A8: Bispebjerg og Frederiksberg Hospital | B8: 45663.67318 | C8: 65497.92955 | D8: =$B$8-$C$8 -> -19834.25637 | E8: 52123.71885 | F8: 83251.41773 | G8: =$E$8-$F$8 -> -31127.69888 | H8: 62708.25679 | I8: 60473.01823 | J8: =$H$8-$I$8 -> 2235.238556 | K8: 50857.7566 | L8: 48582.20954 | M8: =$K$8-$L$8 -> 2275.547066
A9: Amager og Hvidovre Hospital | B9: 31288.24148 | C9: 48003.37154 | D9: =$B$9-$C$9 -> -16715.13006 | E9: 28910.0552 | F9: 29568.29686 | G9: =$E$9-$F$9 -> -658.2416649 | H9: 40927.56879 | I9: -11265.29469 | J9: =$H$9-$I$9 -> 52192.86348 | K9: 31507.80579 | L9: 27579.29396 | M9: =$K$9-$L$9 -> 3928.511832
A10: Herlev og Gentofte Hospital | B10: 48570.6349 | C10: 58867.73826 | D10: =$B$10-$C$10 -> -10297.10336 | E10: 21651.69196 | F10: 64492.4695 | G10: =$E$10-$F$10 -> -42840.77754 | H10: 55430.71802 | I10: 67580.75884 | J10: =$H$10-$I$10 -> -12150.04081 | K10: 30764.49013 | L10: 63641.47699 | M10: =$K$10-$L$10 -> -32876.98686
A11: Nordsjællands Hospital | B11: 17603.86927 | C11: 66657.87693 | D11: =$B$11-$C$11 -> -49054.00766 | E11: 16222.09548 | F11: 35934.04634 | G11: =$E$11-$F$11 -> -19711.95086 | H11: 12304.37533 | I11: 58235.15061 | J11: =$H$11-$I$11 -> -45930.77528 | K11: 15543.54378 | L11: 46916.28686 | M11: =$K$11-$L$11 -> -31372.74307
A12: Bornholms Hospital | B12: 15954.67991 | C12: 6321.786024 | D12: =$B$12-$C$12 -> 9632.893884 | E12: 15006.0931 | F12: 5978.468341 | G12: =$E$12-$F$12 -> 9027.624762 | H12: 11714.0912 | I12: 6767.31086 | J12: =$H$12-$I$12 -> 4946.780337 | K12: 10864.4791 | L12: 6133.816573 | M12: =$K$12-$L$12 -> 4730.662523
A13: Steno | B13: 2680.07 | C13: 4705.867561 | D13: =$B$13-$C$13 -> -2025.797561 | E13: 476.3990587 | F13: 3122.141771 | G13: =$E$13-$F$13 -> -2645.742712 | H13: 467.58177 | I13: 2497.110448 | J13: =$H$13-$I$13 -> -2029.528678 | K13: 521.2749042 | L13: 2053.533345 | M13: =$K$13-$L$13 -> -1532.258441
A14: Øvrige i Region Hovedstaden | D14: =$B$14-$C$14 -> 0 | G14: =$E$14-$F$14 -> 0 | J14: =$H$14-$I$14 -> 0 | M14: =$K$14-$L$14 -> 0
A15: Ikke fordelte udgifter Region Hovedstaden, somatik | D15: =$B$15-$C$15 -> 0 | G15: =$E$15-$F$15 -> 0 | J15: =$H$15-$I$15 -> 0 | M15: =$K$15-$L$15 -> 0
A16: I alt | B16: =SUM(B7:B15) -> 308235.8357 | C16: =SUM(C7:C15) -> 282176.0818 | D16: =SUM(D7:D15) -> 26059.75391 | E16: =SUM(E7:E15) -> 285990.5425 | F16: 263080.6498 | G16: 22909.89271 | H16: 250764.3126 | I16: 232017.8836 | J16: 18746.42902 | K16: =SUM(K7:K15) -> 252891.9038 | L16: 234230.3296 | M16: 18661.57419
A18: NB: Afstem med psykiatrien

Sheet Rapport
B2: Skema 1: Udgifter og indtægter på sygehusene/enhederne, eksklusiv omkostningssted 0001, Fælleskonto. (1.000 kr.)
C3: 2023 | D3: 2022 | E3: 2021 | F3: 2020
B4: Hovedart 1: Lønninger | C4: 17764056.99 | D4: 17477074.07 | E4: 16738451.92 | F4: 16211227.83
B5: Hovedart 2: Varekøb | C5: 3512769.539 | D5: 3381064.042 | E5: 3526200.723 | F5: 3243561.313
B6: Hovedart 4: Tjenesteydelser m.v. | C6: 5557921.738 | D6: 5669945.86 | E6: 5141527.771 | F6: 5051640.03
B7: Hovedart 5: Tilskud og overførsler | C7: 22827.34845 | D7: 20639.36502 | E7: 17357.17281 | F7: 21296.71513
B8: Hovedart 6: Finansudgifter | C8: 0 | D8: 0 | E8: 0 | F8: 0
B9: Hovedart 7: Indtægter | C9: -5773613.058 | D9: -5355969.808 | E9: -5128927.814 | F9: -4876669.251
B10: Hovedart 8: Finansindtægter | C10: 0 | D10: 0 | E10: 0 | F10: 0
B11: Hovedart 9: Interne udgifter og indtægter | C11: 0 | D11: 0 | E11: 0 | F11: 0
B12: I alt | C12: 21083962.56 | D12: 21192753.53 | E12: 20294609.78 | F12: 19651056.64
B14: Skema 2: Fællesudgifter og -indtægter vedrørende sygehusene. (1.000 kr.)
C15: 2023 | D15: 2022 | E15: 2021 | F15: 2020
B16: Hovedart 1: Lønninger | C16: 2549953.298 | D16: 2706169.26 | E16: 2959533.987 | F16: 1912969.094
B17: Hovedart 2: Varekøb | C17: 5123631.363 | D17: 5282588.372 | E17: 5616093.64 | F17: 5984952.623
B18: Hovedart 4: Tjenesteydelser m.v. | C18: -747296.8777 | D18: 46507.21202 | E18: 1062591.959 | F18: 339205.9106
B19: Hovedart 5: Tilskud og overførsler | C19: 312153.4816 | D19: 206725.186 | E19: 243317.3454 | F19: 210758.3434
B20: Hovedart 6: Finansudgifter | C20: 0 | D20: 0 | E20: 0 | F20: 0
B21: Hovedart 7: Indtægter | C21: -551184.6026 | D21: -692748.1783 | E21: -832029.2274 | F21: -586878.5048
B22: Hovedart 8: Finansindtægter | C22: -147186.1447 | D22: -903759.5793 | E22: -2225530.206 | F22: -1974659.372
B23: Hovedart 9: Interne udgifter og indtægter | C23: 0 | D23: 0 | E23: 0 | F23: 0
B24: I alt | C24: 6540070.517 | D24: 6645482.272 | E24: 6823977.498 | F24: 5886348.094
B26: Skema 3:Regionale fællesudgifter og -indtægter. (1.000 kr.)
C27: 2023 | D27: 2022 | E27: 2021 | F27: 2020
B28: 1.70.50: Andel af fællesudgifter | C28: 828819.2064 | D28: 799392.3359 | E28: 751449.8298 | F28: 1051685.646
B29: 1.60.40: Andel af central administration af sundhed (til og med 2019) | C29: 0 | D29: 0 | E29: 0 | F29: 0
B30: 1.60.41: Andel af øvrige udgifter og indtægter | C30: 0 | D30: 0 | E30: 0 | F30: 0
B31: 1.50.33: Andel af central administration af sundhed (ekskl. psykiatri) | C31: 155346.8228 | D31: 181043.0817 | E31: 190939.7806 | F31: 224499.8119
B32: 1.50.35: Administration af det psykiatriske område (kun central del) | C32: 0 | D32: 0 | E32: 0 | F32: 0
B33: I alt | C33: 984166.0292 | D33: 980435.4176 | E33: 942389.6104 | F33: 1276185.458
B35: Skema 4: Udgifter og indtægter til og fra psykiatriske afdelinger konteret på somatiske sygehuse. (1.000 kr.)
C36: 2023 | D36: 2022 | E36: 2021 | F36: 2020
B37: Korrektion | C37: 0 | D37: 0 | E37: 0 | F37: 0
B38: Lønudg. på psyk. afd.,somatiske sygehuse | C38: 0 | D38: 0 | E38: 0 | F38: 0
B39: Øvrige udg. til psyk. afd.,somatiske sygehuse | C39: 0 | D39: 0 | E39: 0 | F39: 0
B40: I alt | C40: 0 | D40: 0 | E40: 0 | F40: 0
B42: Skema 5: Leasing- og huslejeudgifter. (1.000 kr.)
C43: 2023 | D43: 2022 | E43: 2021 | F43: 2020
B44: Andre udgifter | C44: 0 | D44: 0 | E44: 0 | F44: 0
B45: Leasing- og lejeudgifter | C45: 193946.2824 | D45: 250719.4157 | E45: 332600.3686 | F45: 337312.5359
B46: Huslejeudgifter | C46: 149638.409 | D46: 132819.3713 | E46: 111642.043 | F46: 124326.966
B47: I alt | C47: 343584.6914 | D47: 383538.787 | E47: 444242.4116 | F47: 461639.5019
B49: Skema 6: Udgifter til andet end patientbehandling. (1.000 kr.)
C50: 2023 | D50: 2022 | E50: 2021 | F50: 2020
B51: Skema 6.1: Center for voldsramte (Bispebjerg) | C51: 2105.047181 | D51: 1647.392792 | E51: 2046.837499 | F51: 2008.024698
B52: Skema 6.2: Ventilatørbistand i hjemmet, respiratorpatienter | C52: 274631.1929 | D52: 267925.532 | E52: 283563.5886 | F52: 306823.4512
B53: Skema 6.3: Blodprøvetagning i eget hjem | C53: 0 | D53: 0 | E53: 0 | F53: 0
B54: Skema 6.4: Psykinfo + pårørende | C54: 0 | D54: 0 | E54: 0 | F54: 0
B55: Skema 6.5: Leveret udstyr til patienter i eget hjem, ilt og sonderemedier | C55: 40160.96651 | D55: 40615.06959 | E55: 35137.31896 | F55: 34087.59357
B56: Skema 6.6: Montebello (Nordsjællands Hospitaler) | C56: 39343.63711 | D56: 33616.2677 | E56: 31591.65336 | F56: 31222.43878
B57: Skema 6.7: Satspulje korrektioner mellem år | C57: 0 | D57: 0 | E57: 0 | F57: 0
B58: Skema 6.8: Klinisk farmakologisk rådgivning af praksissektoren | C58: 5700.562117 | D58: 7008.186388 | E58: 7428.390118 | F58: 7707.391892
B59: Skema 6.9: Tandregulering ifm. operation | C59: 11751.33598 | D59: 27914.36742 | E59: 16352.81736 | F59: 16893.2274
B60: Skema 6.10: Giftlinjen | C60: 23267.31435 | D60: 16642.65652 | E60: 15668.01134 | F60: 14615.99797
B61: Skema 6.11: Tjenestemandspensioner | C61: 363272.7636 | D61: 350046.4992 | E61: 330344.4157 | F61: 309683.0198
B62: Skema 6.12: Art 4.6 Betalinger til staten | C62: 0 | D62: 0 | E62: 0 | F62: 0
B63: Skema 6.13: Art 4.7 Betalinger til kommuner | C63: 10044.62819 | D63: 5153.20715 | E63: 0 | F63: 0
B64: Skema 6.14: Art 4.8 Betalinger til andre regioner | C64: 341209.7344 | D64: 331739.2854 | E64: 322560.7519 | F64: 312861.5161
B65: Skema 6.15: Art 7.6 Betalinger fra staten | C65: -42658.089 | D65: -46672.74298 | E65: -40336.57324 | F65: -38386.57276
B66: Skema 6.16: Art 7.7 Betalinger fra kommuner | C66: -92395.333 | D66: -130993.827 | E66: -108375.436 | F66: -77752.931
B67: Skema 6.17: Art 7.8 Betalinger fra andre regioner | C67: -3162096.764 | D67: -2987215.534 | E67: -2806082.23 | F67: -2872647.215
B68: Skema 6.18: Betalinger til selvejende, private og udenlandske sygehuse | C68: 830389.5098 | D68: 852657.9139 | E68: 732742.1723 | F68: 601497.0971
B69: Skema 6.19: Dækningsafgift/ejendomsskat | C69: 117257.367 | D69: 126235.1801 | E69: 126186.2345 | F69: 117102.4507
B70: Skema 6.20: Forsikringer/erstatninger | C70: 411931.3285 | D70: 393908.9714 | E70: 394032.344 | F70: 373646.7282
B71: Skema 6.21: Vederlagsfri Lab. –ydelser og andre ydelser til praksissektoren | C71: 368105.1025 | D71: 335118.9037 | E71: 359400.3682 | F71: 445896.1698
B72: Skema 6.22: Patienttransport | C72: 59771.98701 | D72: 56782.71601 | E72: 47219.81378 | F72: 52961.83268
B73: Skema 6.23: Serviceydelser til/fra andre institutioner eller sygehuse udenfor regionen | C73: 2665.114553 | D73: 582.6604175 | E73: 923.7403888 | F73: 0
B74: Skema 6.24: Udgifter til eksternt finansierede forskning | C74: 322.14346 | D74: -293.5831 | E74: 81.65055 | F74: -159.28283
B75: Skema 6.25: Forebyggelse rettet mod praksissektoren og kommuner | C75: 0 | D75: 0 | E75: 0 | F75: 0
B76: Skema 6.26: Praksisreservelæger | C76: 229265.5458 | D76: 220949.7975 | E76: 220782.1872 | F76: 212051.9754
B77: Skema 6.27: Præhospital | C77: 1090064.578 | D77: 1078217.428 | E77: 966973.1021 | F77: 1027427.386
B78: Skema 6.28: Udgifter til Danske Regioner (Kontigent, MedCom, Fællesproj.) | C78: 245170.3776 | D78: 249912.6625 | E78: 245215.0485 | F78: 190656.149
B79: Skema 6.29: Hospice | C79: 5527.228307 | D79: 5350.879307 | E79: 5290.317481 | F79: 5237.085962
B80: Skema 6.30: Konsulenter(Praksis) | C80: 37898.06958 | D80: 34528.07358 | E80: 35734.88258 | F80: 41151.23526
B81: Skema 6.31: Videnskabsetisk Komité | C81: 8871.52288 | D81: 6689.54179 | E81: 7060.575116 | F81: 3864.605372
B82: Skema 6.32: Tolkebistand | C82: 11162.11485 | D82: 9642.39375 | E82: 13536.63878 | F82: 13131.28149
B83: Skema 6.33: Dansk Center for Partikelterapi | C83: 0 | D83: 0 | E83: 0 | F83: 0
B84: Skema 6.34: Politisk organisation – overførte udgifter fra funktion 4.10.01, 4.10.02 og 4.10.04 | C84: 15646.00156 | D84: 15975.84403 | E84: 19163.96267 | F84: 14763.61701
B85: Skema 6.35: Øvrige udgifter, Region Sjælland | C85: 0 | D85: 0 | E85: 0 | F85: 0
B86: Skema 6.36: Sundhedsydelser ifm. specialsektor | C86: 0 | D86: 0 | E86: 0 | F86: 0
B87: Skema 6.37: Udgifter til primær sundhed fra skema 2 | C87: 0 | D87: 0 | E87: 0 | F87: 0
B88: Skema 6.38: Udgifter til primær sundhed fra skema 3 | C88: 129435.4466 | D88: 120715.4509 | E88: 116367.3611 | F88: 199447.9424
B89: Skema 6.39: Særlige udgifter ifm. COVID-19 | C89: 78765.39434 | D89: 571810.441 | E89: 752243.973 | F89: 577618.7809
B90: Skema 6.40: Udleveret udstyr/tilbehør ifm. cochlear implantater | C90: 2055.911785 | D90: 1147.590755 | E90: 1775.86235 | F90: 0
B91: Skema 6.41: Luxturna-behandling, Rigshospitalet | C91: 36857.11824 | D91: 17687.83143 | E91: 30694.37276 | F91: 25601.506
B92: Skema 6.42: Udleveret medicin | C92: 1907853.259 | D92: 1682826.671 | E92: 1721817.161 | F92: 0
B93: Skema 6.43: Udgifter ifm. sundhedsklynger | C93: 1678.12177 | D93: 0 | E93: 0 | F93: 0
B94: Skema 6.44: Ukrainske patienter under særlov eller asyl | C94: 0 | D94: 313.40601 | E94: 0 | F94: 0
B95: Skema 6.45: Udgifter ifm. de særlige pladser i psykiatrien | C95: 0 | D95: 0 | E95: 0 | F95: 0
B96: Skema 6.46: Sikringsafdelingen, Region Sjælland | C96: 0 | D96: 0 | E96: 0 | F96: 0
B97: Skema 6.47: Øvrige (Kan kun benyttes efter aftale med Sundhedsdatastyrelsen) | C97: -45617.85437 | D97: 0 | E97: 0 | F97: 0
B98: Lukkede poster (må kun bruges af Sundhedsdatastyrelsen) | C98: 0 | D98: 0 | E98: 0 | F98: 0
B99: I alt | C99: 3359412.385 | D99: 3698187.135 | E99: 3887141.314 | F99: 1949012.503

Sheet Rapport SGH
A1: 2023 | B1: Skema 1 | C1: Skema 2 | D1: Skema 3 | E1: Skema 4 | F1: Skema 5 | G1: Skema 6 | H1: Skema 7 | I1: I alt
A2: Rigshospitalet | B2: 7194492.028 | C2: 1385412.969 | D2: 153729.2058 | E2: 0 | F2: 75748.85794 | G2: -1395089.159 | H2: 114353.155 | I2: =(SUM(B2:D2))- (SUM(E2:H2)) -> 9938621.348
A3: Bispebjerg og Frederiksberg Hospital | B3: 2399588.69 | C3: 344716.9015 | D3: 38804.07123 | E3: 0 | F3: 5994.71275 | G3: 189769.5955 | H3: -19834.25637 | I3: =(SUM(B3:D3))- (SUM(E3:H3)) -> 2607179.61
A4: Amager og Hvidovre Hospital | B4: 3045033.136 | C4: 435799.824 | D4: 49124.98964 | E4: 0 | F4: 24475.44017 | G4: 206762.1811 | H4: -16715.13006 | I4: 3315435.458
A5: Herlev og Gentofte Hospital | B5: 5037415.574 | C5: 727028.4755 | D5: 81233.31632 | E5: 0 | F5: 81171.1541 | G5: 404027.3898 | H5: -10297.10336 | I5: 5370775.925
A6: Nordsjællands Hospital | B6: 2718823.555 | C6: 376088.0827 | D6: 42384.54537 | E6: 0 | F6: 10764.71833 | G6: 265768.0721 | H6: -49054.00766 | I6: 2909817.4
A7: Bornholms Hospital | B7: 468773.1033 | C7: 66581.86045 | D7: 7504.10713 | E7: 0 | F7: 1231.96757 | G7: 67288.84923 | H7: 9632.893884 | I7: 464705.3602
A8: Steno | B8: 219836.4761 | C8: 32828.55429 | D8: 3724.381742 | E8: 0 | F8: 0 | G8: -14191.96619 | H8: -2025.797561 | I8: 272607.1759
A9: Øvrige i Region Hovedstaden | B9: 0 | C9: 0 | D9: 129435.4466 | E9: 0 | F9: 0 | G9: 129435.4466 | H9: 0 | I9: 0
A10: Ikke fordelte udgifter og indtægter | B10: 0 | C10: 3171613.85 | D10: 478225.9654 | E10: 0 | F10: 144197.8405 | G10: 3505641.975 | H10: 0 | I10: 0
A12: 2022
A13: Rigshospitalet | B13: 7161882.237 | C13: 1470643.349 | D13: 152858.7977 | E13: 0 | F13: 100117.736 | G13: -1068841.313 | H13: 110866.6796 | I13: =(SUM(B13:D13))- (SUM(E13:H13)) -> 9643241.281
A14: Bispebjerg og Frederiksberg Hospital | B14: 2481579.981 | C14: 384761.1437 | D14: 40626.87888 | E14: 0 | F14: 10287.45657 | G14: 243485.7595 | H14: -31127.69888 | I14: 2684322.486
A15: Amager og Hvidovre Hospital | B15: 3205316.15 | C15: 502219.6942 | D15: 53116.979 | E15: 0 | F15: 45889.55963 | G15: 259483.7537 | H15: -658.2416649 | I15: 3455937.751
A16: Herlev og Gentofte Hospital | B16: 5022936.983 | C16: 799619.4409 | D16: 83655.52075 | E16: 0 | F16: 87414.9948 | G16: 433893.4277 | H16: -42840.77754 | I16: 5427744.299
A17: Nordsjællands Hospital | B17: 2665576.082 | C17: 401426.7841 | D17: 42433.86927 | E17: 0 | F17: 11839.05529 | G17: 317084.575 | H17: -19711.95086 | I17: 2800225.056
A18: Bornholms Hospital | B18: 462304.9884 | C18: 71140.56145 | D18: 7518.543714 | E18: 0 | F18: 2299.59924 | G18: 66448.18966 | H18: 9027.624762 | I18: 463188.6799
A19: Steno | B19: 193157.1064 | C19: 30879.99771 | D19: 3286.31833 | E19: 0 | F19: 0 | G19: -9406.683125 | H19: -2645.742712 | I19: 239375.8483
A20: Øvrige i Region Hovedstaden | B20: 0 | C20: 0 | D20: 120715.4509 | E20: 0 | F20: 0 | G20: 120715.4509 | H20: 0 | I20: 0
A21: Ikke fordelte udgifter og indtægter | B21: 0 | C21: 2984791.301 | D21: 476223.0591 | E21: 0 | F21: 125690.3855 | G21: 3335323.975 | H21: 0 | I21: -1.999968663e-05

Sheet Afstemning af ikke fordelte
A1: Afstemning af Ikke fordelte indtægter- og udgifter
A2: 1.000 kr. | B2: 2023
A3: Skema 1 | B3: 0
A4: Skema 2 | B4: 3171613.85
A5: Skema 3 | B5: 478225.9654
A6: Skema 4 | B6: 0
A7: Skema 5 | B7: 144197.8405
A8: Skema 6 | B8: 3505641.975
A9: 1+2+3-4-5-6 | B9: =+B3+B4+B5-B6-B7-B8 -> 0

Sheet Afstemning øvrige region
A1: Afstemning af Øvrige i Region Hovedstaden
A2: 1.000 kr. | B2: 2023
A3: Skema 1 | B3: 0
A4: Skema 2 | B4: 0
A5: Skema 3 | B5: 129435.4466
A6: Skema 4 | B6: 0
A7: Skema 5 | B7: 0
A8: Skema 6 | B8: 129435.4466
A9: 1+2+3-4-5-6 | B9: =+B3+B4+B5-B6-B7-B8 -> 0

Sheet Skema 5 og 6 2023 (hidden)
A1: Udleveret medicin
A2: Hospital | B2: Udleveres | C2: ekskl hosp kode 500
A3: Amager og Hvidovre Hospital | B3: 122176348.6
A4: Bispebjerg og Frederiksberg Hospital | B4: 141913187.2 | C4: =+B4-900 -> 141912287.2
A5: Bornholms Hospital | B5: 16172669.61
A6: Herlev og Gentofte Hospital | B6: 419925755
A7: Nordsjællands Hospital | B7: 79411436.11
A8: Rigshospitalet | B8: 1228876657 | C8: 1128189115 | D8: Det beløb vi har beregnet for udleveret medicin (inkl. parenteral ernæring og dialysevæsker) er 1.128.609.066. Så det peger vi ud på skema 6.
A9: Steno Diabetes Center Copenhagen | B9: 65647.78
A10: Hovedtotal | B10: 2008541701 | E10: =+B10+E15+E20 -> 2045398819
D12: 2023
A13: Hospital | B13: ATC_kode | C13: navn | D13: Sum af Quantity | E13: Sum af Sales_Price
A14: Rigshospitalet | B14: S01XA27 | C14: Luxturna, konc.+solv.t.inj.opl, _, 1 dosis | D14: 3 | E14: 6276058.38
A15: Hovedtotal | D15: 3 | E15: 6276058.38
A17: Hospital | B17: ATC_kode | C17: navn | D17: Sum af Quantity | E17: Sum af Sales_Price
A18: Rigshospitalet | B18: M09AX09 | C18: Zolgensma, inf.væske, opløsning, 1x5,5 ml + 2x8,3 ml, 1 x 5,5 ml + 2 x 8,3 ml | D18: 1 | E18: 10193686.62
C19: Zolgensma, inf.væske, opløsning, 2x5,5 ml + 1x8,3 ml, 2 x 5,5 ml + 1 x 8,3 ml | D19: 2 | E19: 20387373.24
A20: Hovedtotal | D20: 3 | E20: 30581059.86
A24: Patientindtægter
F25: IM Art | G25: 72 | H25: 78 | I25: Samlet resultat | W25: Forbrug
G26: Forbrug | H26: Forbrug | I26: Forbrug | L26: Firmakode | N26: Profitcenter | P26: IM Funktion | R26: IM Gruppering | T26: IM Art | U26: Artskonto | W26: DKK
A27: Firmakode | C27: IM Funktion | E27: IM Gruppering | G27: DKK | H27: DKK | I27: DKK | L27: 2000 | M27: Nordsjællands Hospital | N27: 202780000 | O27: Montebello | P27: 11001 | Q27: Somatiske sygehuse | R27: Betalinger – kommune | S27: 830 | T27: 77 | U27: Genoptræning | V27: 402805 | W27: -33397
A28: 1200 | B28: Bispebjerg/Frederiksberg | C28: 11001 | D28: Somatiske sygehuse | E28: Betalinger - andre r | F28: 810 | H28: -96107714.84 | I28: -96107714.84 | L28: 2000 | M28: Nordsjællands Hospital | N28: 202780000 | O28: Montebello | P28: 11001 | Q28: Somatiske sygehuse | R28: Betalinger – kommune | S28: 830 | T28: 77 | U28: Genoptræning | V28: 402805 | W28: -33397
A29: 1200 | B29: Bispebjerg/Frederiksberg | C29: 11001 | D29: Somatiske sygehuse | E29: Betalinger – private | F29: 820 | G29: -8379001 | I29: -8379001 | L29: 2000 | M29: Nordsjællands Hospital | N29: 202780000 | O29: Montebello | P29: 11001 | Q29: Somatiske sygehuse | R29: Betalinger – kommune | S29: 830 | T29: 77 | U29: Resultat | W29: -33397
A30: 1300 | B30: Bornholms Hospital | C30: 11001 | D30: Somatiske sygehuse | E30: Betalinger - andre r | F30: 810 | H30: -7834244 | I30: -7834244
A31: 1300 | B31: Bornholms Hospital | C31: 11001 | D31: Somatiske sygehuse | E31: Betalinger – private | F31: 820 | G31: -2270312 | I31: -2270312
A32: 1500 | B32: Steno Diabetes Center CPH | C32: 11001 | D32: Somatiske sygehuse | E32: Betalinger - andre r | F32: 810 | H32: -16353137 | I32: -16353137
A33: 1500 | B33: Steno Diabetes Center CPH | C33: 11001 | D33: Somatiske sygehuse | E33: Betalinger – private | F33: 820 | G33: -11575 | I33: -11575
A34: 1900 | B34: Herlev/Gentofte Hospital | C34: 11001 | D34: Somatiske sygehuse | E34: Betalinger - andre r | F34: 810 | H34: -250332198.6 | I34: -250332198.6
A35: 1900 | B35: Herlev/Gentofte Hospital | C35: 11001 | D35: Somatiske sygehuse | E35: Betalinger – private | F35: 820 | G35: -5500641.68 | I35: -5500641.68
A36: 2000 | B36: Nordsjællands Hospital | C36: 11001 | D36: Somatiske sygehuse | E36: Betalinger - andre r | F36: 810 | H36: -46202023.16 | I36: -46202023.16
A37: 2000 | B37: Nordsjællands Hospital | C37: 11001 | D37: Somatiske sygehuse | E37: Betalinger – private | F37: 820 | G37: -5823260.02 | I37: -5823260.02
A38: 2100 | B38: Amager/Hvidovre Hospital | C38: 11001 | D38: Somatiske sygehuse | E38: Betalinger - andre r | F38: 810 | H38: -138471520.8 | I38: -138471520.8
A39: 2100 | B39: Amager/Hvidovre Hospital | C39: 11001 | D39: Somatiske sygehuse | E39: Betalinger – private | F39: 820 | G39: -8869065.93 | I39: -8869065.93
A40: 2200 | B40: Rigshospitalet | C40: 11001 | D40: Somatiske sygehuse | E40: Betalinger - andre r | F40: 810 | H40: -2678814107 | I40: -2678814107
A41: 2200 | B41: Rigshospitalet | C41: 11001 | D41: Somatiske sygehuse | E41: Betalinger – private | F41: 820 | G41: -10872555.62 | I41: -10872555.62
A42: 6100 | B42: Region Hovedst. Psykiatri | C42: 11002 | D42: Psykiatriske sygehus | E42: Betalinger - andre r | F42: 810 | H42: -45983933 | I42: -45983933
A43: 6100 | B43: Region Hovedst. Psykiatri | C43: 11002 | D43: Psykiatriske sygehus | E43: Betalinger – private | F43: 820 | G43: -178742 | I43: -178742
A44: 6100 | B44: Region Hovedst. Psykiatri | C44: 15035 | D44: Administration af de | E44: Betalinger - andre r | F44: 810 | H44: 0 | I44: 0
A45: 6100 | B45: Region Hovedst. Psykiatri | C45: 15035 | D45: Administration af de | E45: Betalinger – private | F45: 820 | G45: 0 | I45: 0
A46: Samlet resultat | G46: -41905153.25 | H46: -3280098879 | I46: -3322004032
G48: =+G46-G45-G44-G43-G42 -> -41726411.25 | H48: =+H46-H45-H44-H43-H42 -> -3234114946
G50: =+W29 -> -33397
G51: =+G50+G48 -> -41759808.25 | H51: =+H50+H48 -> -3234114946
A55: Forbrug på privathospitaler
A56: 1000A12 | B56: Bispebjerg/Frederiks | C56: 06 Kardiologi Medic | D56: 209124 | E56: 7852.67 | R56: Forbrug
A57: 1000A12 | B57: Bispebjerg/Frederiks | C57: 10 Medicinske lunge | D57: 209125 | E57: 63862.69 | H57: Profitcenter | J57: Firmakode | L57: PSP-element | N57: IM Art | P57: Kreditor | R57: DKK
A58: 1000A12 | B58: Bispebjerg/Frederiks | C58: 12 Reumatologi Gigt | D58: 209121 | E58: 51151.57 | H58: 1000A | I58: Region Hovedstaden | J58: 1200 | K58: Bispebjerg/Frederiksberg | L58: L-12315-00005 | M58: Privathospitaler M | N58: 40 | O58: Tjenesteydelser uden | P58: # | Q58: Ikke allokeret | R58: 3472.9
A59: 1000A12 | B59: Bispebjerg/Frederiks | C59: 18 Dermato-Venerolo | D59: 209123 | E59: 7728878.03 | H59: 1000A | I59: Region Hovedstaden | J59: 1200 | K59: Bispebjerg/Frederiksberg | L59: Resultat | R59: 3472.9
A60: 1000A12 | B60: Bispebjerg/Frederiks | C60: 20 Neuromedicin Med | D60: 209126 | E60: 2080.03 | H60: 1000A | I60: Region Hovedstaden | J60: 1300 | K60: Bornholms Hospital | L60: L-13450-00001 | M60: Udredning og behandling på privathospita | N60: 40 | O60: Tjenesteydelser uden | P60: # | Q60: Ikke allokeret | R60: 2174.8
A61: 1000A12 | B61: Bispebjerg/Frederiks | C61: 32 Kirurgisk gastro | D61: 209116 | E61: 11982283.24 | H61: 1000A | I61: Region Hovedstaden | J61: 1300 | K61: Bornholms Hospital | L61: Resultat | R61: 2174.8
A62: 1000A12 | B62: Bispebjerg/Frederiks | C62: 42 Ortopædisk kirur | D62: 209114 | E62: 24795628.02 | H62: 1000A | I62: Region Hovedstaden | J62: 1900 | K62: Herlev/Gentofte Hospital | L62: L-19986-18235 | M62: Privathosp. Medicinske sygdomme | N62: 40 | O62: Tjenesteydelser uden | P62: # | Q62: Ikke allokeret | R62: 41192.75
A63: 1000A12 | B63: Bispebjerg/Frederiks | C63: 42 OrtopædiskKirSær | D63: 209414 | E63: 1123.92 | H63: 1000A | I63: Region Hovedstaden | J63: 1900 | K63: Herlev/Gentofte Hospital | L63: L-19986-18255 | M63: Privathosp. Led og knoglekirurgi | N63: 40 | O63: Tjenesteydelser uden | P63: # | Q63: Ikke allokeret | R63: 16033.4
A64: 1000A12 | B64: Bispebjerg/Frederiks | C64: 64 Klinisk neurofys | D64: 209113 | E64: 3858.56 | H64: 1000A | I64: Region Hovedstaden | J64: 1900 | K64: Herlev/Gentofte Hospital | L64: L-19986-18260 | M64: Privathosp. Plastikkirurgi | N64: 40 | O64: Tjenesteydelser uden | P64: # | Q64: Ikke allokeret | R64: 9220
A65: 1000A12 | B65: Bispebjerg/Frederiks | C65: 66 Diagn.radiologi | D65: 209110 | E65: 2268996.34 | H65: 1000A | I65: Region Hovedstaden | J65: 1900 | K65: Herlev/Gentofte Hospital | L65: Resultat | R65: =SUM(R62:R64) -> 66446.15
A66: 1000A12 | B66: Bispebjerg/Frederiks | C66: 84 AnæstesiologiSær | D66: 209419 | E66: 133440.77 | H66: 1000A | I66: Region Hovedstaden | J66: 2000 | K66: Nordsjællands Hospital | L66: L-20002-00018 | M66: Udredning & behandling på privathospital | N66: 40 | O66: Tjenesteydelser uden | P66: # | Q66: Ikke allokeret | R66: 9218.8
A67: 1000A12 | B67: Bispebjerg/Frederiks | C67: 99 Øvr.DUF specialer | D67: 209199 | E67: 27051.45 | H67: 1000A | I67: Region Hovedstaden | J67: 2000 | K67: Nordsjællands Hospital | L67: Resultat | R67: 9218.8
A68: 1000A12 | B68: Bispebjerg/Frederiks | C68: Resultat | E68: 47066207.29 | H68: 1000A | I68: Region Hovedstaden | J68: 2100 | K68: Amager/Hvidovre Hospital | L68: # | M68: Ikke allokeret | N68: 40 | O68: Tjenesteydelser uden | P68: # | Q68: Ikke allokeret | R68: 7758.8
A69: 1000A13 | B69: Bornholms Hospital | C69: 10 Medicinske lunge | D69: 209125 | E69: 60113.44 | H69: 1000A | I69: Region Hovedstaden | J69: 2100 | K69: Amager/Hvidovre Hospital | L69: Resultat | R69: 7758.8
A70: 1000A13 | B70: Bornholms Hospital | C70: 42 Ortopædisk kirur | D70: 209114 | E70: 8607.77 | H70: 1000A | I70: Region Hovedstaden | J70: 2200 | K70: Rigshospitalet | L70: L-22060-00148 | M70: Decentralt Budgetansvar Ort.Kir. | N70: 40 | O70: Tjenesteydelser uden | P70: # | Q70: Ikke allokeret | R70: 1693.2
A71: 1000A13 | B71: Bornholms Hospital | C71: 42A ortopædisk kirur | D71: 209130 | E71: 967.18 | H71: 1000A | I71: Region Hovedstaden | J71: Resultat | R71: =+R70 -> 1693.2
A72: 1000A13 | B72: Bornholms Hospital | C72: 66 Diagn.radiologi | D72: 209110 | E72: 685652.21 | R72: =+R59+R61+R65+R67+R69+R71 -> 90764.65
A73: 1000A13 | B73: Bornholms Hospital | C73: 99 Øvr.DUF specialer | D73: 209199 | E73: 2954655.51
A74: 1000A13 | B74: Bornholms Hospital | C74: Resultat | E74: 3709996.11
A75: 1000A19 | B75: Herlev/Gentofte Hosp | C75: 06 Kardiologi Medic | D75: 209124 | E75: 1560263.15
A76: 1000A19 | B76: Herlev/Gentofte Hosp | C76: 07 Medicinsk allerg | D76: 209129 | E76: 19959.12
A77: 1000A19 | B77: Herlev/Gentofte Hosp | C77: 10 Medicinske lunge | D77: 209125 | E77: 679179.53
A78: 1000A19 | B78: Herlev/Gentofte Hosp | C78: 18 Dermato-Venerolo | D78: 209123 | E78: 4119.79
A79: 1000A19 | B79: Herlev/Gentofte Hosp | C79: 20 Neuromedicin Med | D79: 209126 | E79: 2208.19
A80: 1000A19 | B80: Herlev/Gentofte Hosp | C80: 32 Kirurgisk gastro | D80: 209116 | E80: 5606931.56
A81: 1000A19 | B81: Herlev/Gentofte Hosp | C81: 33 Plastikkirurgi | D81: 209118 | E81: 16521490.54
A82: 1000A19 | B82: Herlev/Gentofte Hosp | C82: 35 Urologi Urinvejs | D82: 209111 | E82: 32381097.97
A83: 1000A19 | B83: Herlev/Gentofte Hosp | C83: 35 UrologiUrinv.sær | D83: 209411 | E83: 3123208.91
A84: 1000A19 | B84: Herlev/Gentofte Hosp | C84: 38 Gynækologi og ob | D84: 209127 | E84: 724681.44
A85: 1000A19 | B85: Herlev/Gentofte Hosp | C85: 42 Ortopædisk kirur | D85: 209114 | E85: 42826514.6
A86: 1000A19 | B86: Herlev/Gentofte Hosp | C86: 42 OrtopædiskKirSær | D86: 209414 | E86: 17162.07
A87: 1000A19 | B87: Herlev/Gentofte Hosp | C87: 46 Oto-Rhino-Laryng | D87: 209115 | E87: 851.01
A88: 1000A19 | B88: Herlev/Gentofte Hosp | C88: 61 KliniskFysiol.Sæ | D88: 209420 | E88: 1197.68
A89: 1000A19 | B89: Herlev/Gentofte Hosp | C89: 64 Klinisk neurofys | D89: 209113 | E89: 1872747.85
A90: 1000A19 | B90: Herlev/Gentofte Hosp | C90: 66 Diagn.radiol.sær | D90: 209410 | E90: 28908192.71
A91: 1000A19 | B91: Herlev/Gentofte Hosp | C91: 66 Diagn.radiologi | D91: 209110 | E91: 10324655.46
A92: 1000A19 | B92: Herlev/Gentofte Hosp | C92: 84 Anæstesiologi | D92: 209119 | E92: 2335113.49
A93: 1000A19 | B93: Herlev/Gentofte Hosp | C93: 84 AnæstesiologiSær | D93: 209419 | E93: 2189706.32
A94: 1000A19 | B94: Herlev/Gentofte Hosp | C94: 99 Øvr.DUF specialer | D94: 209199 | E94: 423102.22
A95: 1000A19 | B95: Herlev/Gentofte Hosp | C95: Resultat | E95: 149522383.6
A96: 1000A20 | B96: Nordsjællands Hospit | C96: 06 Kardiologi Medic | D96: 209124 | E96: 175362.34
A97: 1000A20 | B97: Nordsjællands Hospit | C97: 10 Medicinske lunge | D97: 209125 | E97: 3248.21
A98: 1000A20 | B98: Nordsjællands Hospit | C98: 12 Reumatologi Gigt | D98: 209121 | E98: 3440.9
A99: 1000A20 | B99: Nordsjællands Hospit | C99: 20 Neuromedicin Med | D99: 209126 | E99: 47056.61
A100: 1000A20 | B100: Nordsjællands Hospit | C100: 32 Kirurgisk gastro | D100: 209116 | E100: 419039.79
A101: 1000A20 | B101: Nordsjællands Hospit | C101: 38 Gynækologi og ob | D101: 209127 | E101: 365710.9
A102: 1000A20 | B102: Nordsjællands Hospit | C102: 42 Ortopædisk kirur | D102: 209114 | E102: 63501791.59
A103: 1000A20 | B103: Nordsjællands Hospit | C103: 46 Oto-Rhino-Laryng | D103: 209115 | E103: 7874611.25
A104: 1000A20 | B104: Nordsjællands Hospit | C104: 64 Klinisk neurofys | D104: 209113 | E104: 552309.82
A105: 1000A20 | B105: Nordsjællands Hospit | C105: 66 Diagn.radiol.sær | D105: 209410 | E105: 1475.2
A106: 1000A20 | B106: Nordsjællands Hospit | C106: 66 Diagn.radiologi | D106: 209110 | E106: 13984970.79
A107: 1000A20 | B107: Nordsjællands Hospit | C107: 84 AnæstesiologiSær | D107: 209419 | E107: 100678.49
A108: 1000A20 | B108: Nordsjællands Hospit | C108: 99 Øvr.DUF specialer | D108: 209199 | E108: 20202.11
A109: 1000A20 | B109: Nordsjællands Hospit | C109: Resultat | E109: 87049898
A110: 1000A21 | B110: Amager/Hvidovre Hosp | C110: 06 Kardiologi Medic | D110: 209124 | E110: 66041.49
A111: 1000A21 | B111: Amager/Hvidovre Hosp | C111: 10 Medicinske lunge | D111: 209125 | E111: 19011.54
A112: 1000A21 | B112: Amager/Hvidovre Hosp | C112: 32 Kirurgisk gastro | D112: 209116 | E112: 17767255.83
A113: 1000A21 | B113: Amager/Hvidovre Hosp | C113: 32 KirurgiskGastrsæ | D113: 209416 | E113: 8253.36
A114: 1000A21 | B114: Amager/Hvidovre Hosp | C114: 38 Gynækologi og ob | D114: 209127 | E114: 635745.69
A115: 1000A21 | B115: Amager/Hvidovre Hosp | C115: 42 Ortopædisk kirur | D115: 209114 | E115: 55389101.48
A116: 1000A21 | B116: Amager/Hvidovre Hosp | C116: 42 OrtopædiskKirSær | D116: 209414 | E116: 16752.7
A117: 1000A21 | B117: Amager/Hvidovre Hosp | C117: 64 Klinisk neurofys | D117: 209113 | E117: 387883.05
A118: 1000A21 | B118: Amager/Hvidovre Hosp | C118: 66 Diagn.radiol.sær | D118: 209410 | E118: 1014.2
A119: 1000A21 | B119: Amager/Hvidovre Hosp | C119: 66 Diagn.radiologi | D119: 209110 | E119: 6049813.58
A120: 1000A21 | B120: Amager/Hvidovre Hosp | C120: 84 AnæstesiologiSær | D120: 209419 | E120: 1368673.33
A121: 1000A21 | B121: Amager/Hvidovre Hosp | C121: 99 Øvr.DUF specialer | D121: 209199 | E121: 20081.33
A122: 1000A21 | B122: Amager/Hvidovre Hosp | C122: Resultat | E122: 81729627.58
A123: 1000A22 | B123: Rigshospitalet | C123: 06 Kardiologi Medic | D123: 209124 | E123: 2448162
A124: 1000A22 | B124: Rigshospitalet | C124: 10 Medicinske lunge | D124: 209125 | E124: 1810.81
A125: 1000A22 | B125: Rigshospitalet | C125: 12 Reumatologi Gigt | D125: 209121 | E125: 357781.19
A126: 1000A22 | B126: Rigshospitalet | C126: 20 Neuromedicin Med | D126: 209126 | E126: 14384.11
A127: 1000A22 | B127: Rigshospitalet | C127: 33 Plastikkirurgi | D127: 209118 | E127: 3719657.63
A128: 1000A22 | B128: Rigshospitalet | C128: 35 Urologi Urinvejs | D128: 209111 | E128: 5124.47
A129: 1000A22 | B129: Rigshospitalet | C129: 38 Gynækologi og ob | D129: 209127 | E129: 89344.46
A130: 1000A22 | B130: Rigshospitalet | C130: 38 Gynækologi/obSær | D130: 209427 | E130: 447429.57
A131: 1000A22 | B131: Rigshospitalet | C131: 42 Ortopædisk kirur | D131: 209114 | E131: 27628100.91
A132: 1000A22 | B132: Rigshospitalet | C132: 42A ortopædisk kirur | D132: 209130 | E132: 20399442.08 | G132: 1000A22 | H132: Rigshospitalet | I132: L-22060-00094 | J132: Populationsansvar, Øjenklinikken | K132: Andre behandling sær | L132: 207140 | M132: 9019967 | N132: Scandinavian Eye Center ApS | O132: 800
A133: 1000A22 | B133: Rigshospitalet | C133: 44 Oftalmologi Øjen | D133: 209112 | E133: 30339604.31 | G133: 1000A22 | H133: Rigshospitalet | I133: L-22060-00094 | J133: Populationsansvar, Øjenklinikken | K133: LUK Andre behandling | L133: 207040 | M133: 9019967 | N133: Scandinavian Eye Center ApS | O133: 18600
A134: 1000A22 | B134: Rigshospitalet | C134: 46 Oto-Rhino-Laryng | D134: 209115 | E134: 22550272.04 | G134: 1000A22 | H134: Rigshospitalet | I134: L-22060-00094 | J134: Populationsansvar, Øjenklinikken | K134: Resultat | O134: 19400
A135: 1000A22 | B135: Rigshospitalet | C135: 46 OtoRhinoLaryngSæ | D135: 209415 | E135: 1814729.67
A136: 1000A22 | B136: Rigshospitalet | C136: 48 Hosp.sodontolSær | D136: 209428 | E136: 353317.08
A137: 1000A22 | B137: Rigshospitalet | C137: 48 Hospitalsodontol | D137: 209128 | E137: 362747.73
A138: 1000A22 | B138: Rigshospitalet | C138: 64 Klinisk neurofys | D138: 209113 | E138: 13490911.18
A139: 1000A22 | B139: Rigshospitalet | C139: 66 Diagn.radiologi | D139: 209110 | E139: 5461778.06
A140: 1000A22 | B140: Rigshospitalet | C140: 84 Anæstesiologi | D140: 209119 | E140: 579216.08
A141: 1000A22 | B141: Rigshospitalet | C141: 84 AnæstesiologiSær | D141: 209419 | E141: 170110.46
A142: 1000A22 | B142: Rigshospitalet | C142: 99 Øvr.DUF specialer | D142: 209199 | E142: 149470.8
A143: 1000A22 | B143: Rigshospitalet | C143: Resultat | E143: 130383394.6
A144: 1000A61 | B144: Region Hovedst. Psyk | C144: 50 Psykiatri | D144: 209122 | E144: 7572227.42
A145: 1000A61 | B145: Region Hovedst. Psyk | C145: 50 Psykiatri Særaft | D145: 209422 | E145: 1274.1
A146: 1000A61 | B146: Region Hovedst. Psyk | C146: 52 Børnepsykiatri | D146: 209117 | E146: 16232520.89
A147: 1000A61 | B147: Region Hovedst. Psyk | C147: 52 BørnepsykiatriSæ | D147: 209417 | E147: 288774.61
A148: 1000A61 | B148: Region Hovedst. Psyk | C148: Resultat | E148: 24094797.02
E150: =+E148+E143+E122+E109+E95+E74+E68 -> 523556304.3
E151: =+E150-E148+O134 -> 499480907.2
E153: =+E151+G51 -> 457721099
A157: Leasing
G158: Forbrug
A159: Profitcenter | C159: Kreditor | E159: Artskonto | G159: DKK
A160: Samlet resultat | G160: =+G163+G166+G169+G172+G175+G178 -> 183913018.3
A161: 1000A12 | B161: Bispebjerg/Frederiks | C161: 9001488 | D161: Kommunekredit - kommuneleasing | E161: Finansiel leasing/dr | F161: 245832 | G161: 5994712.75
A162: 1000A12 | B162: Bispebjerg/Frederiks | C162: 9001488 | D162: Kommunekredit - kommuneleasing | E162: Resultat | G162: 5994712.75
A163: 1000A12 | B163: Bispebjerg/Frederiks | C163: Resultat | G163: 5994712.75
A164: 1000A13 | B164: Bornholms Hospital | C164: 9001488 | D164: Kommunekredit - kommuneleasing | E164: Finansiel leasing/dr | F164: 245832 | G164: 1231967.57
A165: 1000A13 | B165: Bornholms Hospital | C165: 9001488 | D165: Kommunekredit - kommuneleasing | E165: Resultat | G165: 1231967.57
A166: 1000A13 | B166: Bornholms Hospital | C166: Resultat | G166: 1231967.57
A167: 1000A19 | B167: Herlev/Gentofte Hosp | C167: 9001488 | D167: Kommunekredit - kommuneleasing | E167: Finansiel leasing/dr | F167: 245832 | G167: 70373471.1
A168: 1000A19 | B168: Herlev/Gentofte Hosp | C168: 9001488 | D168: Kommunekredit - kommuneleasing | E168: Resultat | G168: 70373471.1
A169: 1000A19 | B169: Herlev/Gentofte Hosp | C169: Resultat | G169: 70373471.1
A170: 1000A20 | B170: Nordsjællands Hospit | C170: 9001488 | D170: Kommunekredit - kommuneleasing | E170: Finansiel leasing/dr | F170: 245832 | G170: 10764718.33
A171: 1000A20 | B171: Nordsjællands Hospit | C171: 9001488 | D171: Kommunekredit - kommuneleasing | E171: Resultat | G171: 10764718.33
A172: 1000A20 | B172: Nordsjællands Hospit | C172: Resultat | G172: 10764718.33
A173: 1000A21 | B173: Amager/Hvidovre Hosp | C173: 9001488 | D173: Kommunekredit - kommuneleasing | E173: Finansiel leasing/dr | F173: 245832 | G173: 23982359.28
A174: 1000A21 | B174: Amager/Hvidovre Hosp | C174: 9001488 | D174: Kommunekredit - kommuneleasing | E174: Resultat | G174: 23982359.28
A175: 1000A21 | B175: Amager/Hvidovre Hosp | C175: Resultat | G175: 23982359.28
A176: 1000A22 | B176: Rigshospitalet | C176: 9001488 | D176: Kommunekredit - kommuneleasing | E176: Finansiel leasing/dr | F176: 245832 | G176: 71565789.32
A177: 1000A22 | B177: Rigshospitalet | C177: 9001488 | D177: Kommunekredit - kommuneleasing | E177: Resultat | G177: 71565789.32
A178: 1000A22 | B178: Rigshospitalet | C178: Resultat | G178: 71565789.32
A181: Vaccine - aktivitet der ikke indberettes til LPR
A182: FIRMAKODE | C182: SAGER | E182: Total 2023
A183: 1200 | B183: Bispebjerg/Frederiksberg | C183: 36835 | D183: Vaccinationsindsats 2023-2024 | E183: 6468.953 | G183: =+E183+E184+E185+E186+E187 -> 26989.398
A184: 1300 | B184: Bornholms Hospital | C184: 36835 | D184: Vaccinationsindsats 2023-2024 | E184: 877.152
A185: 1900 | B185: Herlev/Gentofte Hospital | C185: 36835 | D185: Vaccinationsindsats 2023-2024 | E185: 7435.114
A186: 2000 | B186: Nordsjællands Hospitaler | C186: 36835 | D186: Vaccinationsindsats 2023-2024 | E186: 6137.976
A187: 2100 | B187: Amager/Hvidovre Hospital | C187: 36835 | D187: Vaccinationsindsats 2023-2024 | E187: 6070.203
A188: 3600 | B188: CIMT | C188: 36835 | D188: Vaccinationsindsats 2023-2024 | E188: 19
A189: 3900 | B189: Apoteket | C189: 36835 | D189: Vaccinationsindsats 2023-2024 | E189: 1016
A190: 8100 | B190: Sekretariat | C190: 36835 | D190: Vaccinationsindsats 2023-2024 | E190: 76.662
A191: 8400 | B191: Center for Ejendomme | C191: 36835 | D191: Vaccinationsindsats 2023-2024 | E191: 1652.285
A192: Samlet resultat | E192: 29753.345
A194: Forsikringer
J195: Forbrug | L195: =+J201+J206+J209+J216+J218+J226+J232+J237+J211-Y225 -> 33187717.01 | M195: =+L271 -> 251699.46 | N195: =+M195+L195 -> 33439416.47 | O195: 378491912.1 | P195: =+O195+N195 -> 411931328.5
A196: Profitcenter | C196: Firmakode | E196: IM Funktion | G196: IM Gruppering | H196: Artskonto | J196: DKK
A197: 1000A | B197: Region Hovedstaden | C197: 1200 | D197: Bispebjerg/Frederiksberg | E197: 11001 | F197: Somatiske sygehuse | G197: 010 | H197: AUB og AES | I197: 200503 | J197: 963733.64
A198: 1000A | B198: Region Hovedstaden | C198: 1200 | D198: Bispebjerg/Frederiksberg | E198: 11001 | F198: Somatiske sygehuse | G198: 010 | H198: Personaleforsikring | I198: 200500 | J198: 1100.36
A199: 1000A | B199: Region Hovedstaden | C199: 1200 | D199: Bispebjerg/Frederiksberg | E199: 11001 | F199: Somatiske sygehuse | G199: 030 | H199: Arbejdsskadeforsikr | I199: 200501 | J199: 2844136.21
A200: 1000A | B200: Region Hovedstaden | C200: 1200 | D200: Bispebjerg/Frederiksberg | E200: 11001 | F200: Somatiske sygehuse | G200: 030 | H200: Arbejdsskadeforsikr | I200: 200502 | J200: 3651058
A201: 1000A | B201: Region Hovedstaden | C201: 1200 | D201: Bispebjerg/Frederiksberg | E201: 11001 | F201: Somatiske sygehuse | G201: Resultat | J201: 7460028.21
A202: 1000A | B202: Region Hovedstaden | C202: 1300 | D202: Bornholms Hospital | E202: 11001 | F202: Somatiske sygehuse | G202: 010 | H202: AUB og AES | I202: 200503 | J202: 139302.24
A203: 1000A | B203: Region Hovedstaden | C203: 1300 | D203: Bornholms Hospital | E203: 11001 | F203: Somatiske sygehuse | G203: 010 | H203: Personaleforsikring | I203: 200500 | J203: 10800
A204: 1000A | B204: Region Hovedstaden | C204: 1300 | D204: Bornholms Hospital | E204: 11001 | F204: Somatiske sygehuse | G204: 030 | H204: Arbejdsskadeforsikr | I204: 200502 | J204: 5023113.17
A205: 1000A | B205: Region Hovedstaden | C205: 1300 | D205: Bornholms Hospital | E205: 11001 | F205: Somatiske sygehuse | G205: 210 | H205: Patientforsikringer | I205: 207700 | J205: 83649.97
A206: 1000A | B206: Region Hovedstaden | C206: 1300 | D206: Bornholms Hospital | E206: 11001 | F206: Somatiske sygehuse | G206: Resultat | J206: 5256865.38
A207: 1000A | B207: Region Hovedstaden | C207: 1500 | D207: Steno Diabetes Center CPH | E207: 11001 | F207: Somatiske sygehuse | G207: 030 | H207: Arbejdsskadeforsikr | I207: 200501 | J207: 7500
A208: 1000A | B208: Region Hovedstaden | C208: 1500 | D208: Steno Diabetes Center CPH | E208: 11001 | F208: Somatiske sygehuse | G208: 030 | H208: Arbejdsskadeforsikr | I208: 200502
A209: 1000A | B209: Region Hovedstaden | C209: 1500 | D209: Steno Diabetes Center CPH | E209: 11001 | F209: Somatiske sygehuse | G209: Resultat | J209: 7500
A210: 1000A | B210: Region Hovedstaden | C210: 1500 | D210: Steno Diabetes Center CPH | E210: 15034 | F210: Decentral administra | G210: 010 | H210: AUB og AES | I210: 200503 | J210: 97299.22
A211: 1000A | B211: Region Hovedstaden | C211: 1500 | D211: Steno Diabetes Center CPH | E211: 15034 | F211: Decentral administra | G211: Resultat | J211: 97299.22
A212: 1000A | B212: Region Hovedstaden | C212: 1900 | D212: Herlev/Gentofte Hospital | E212: 11001 | F212: Somatiske sygehuse | G212: 010 | H212: Personaleforsikring | I212: 200500 | J212: 1606445.1
A213: 1000A | B213: Region Hovedstaden | C213: 1900 | D213: Herlev/Gentofte Hospital | E213: 11001 | F213: Somatiske sygehuse | G213: 030 | H213: Arbejdsskadeforsikr | I213: 200502 | J213: 3355789.71
A214: 1000A | B214: Region Hovedstaden | C214: 1900 | D214: Herlev/Gentofte Hospital | E214: 11001 | F214: Somatiske sygehuse | G214: 320 | H214: Forsikring/vægtafgif | I214: 245951 | J214: -831.72
A215: 1000A | B215: Region Hovedstaden | C215: 1900 | D215: Herlev/Gentofte Hospital | E215: 11001 | F215: Somatiske sygehuse | G215: 410 | H215: Forsikring | I215: 250322 | J215: 118243.59
A216: 1000A | B216: Region Hovedstaden | C216: 1900 | D216: Herlev/Gentofte Hospital | E216: 11001 | F216: Somatiske sygehuse | G216: Resultat | J216: 5079646.68
A217: 1000A | B217: Region Hovedstaden | C217: 1900 | D217: Herlev/Gentofte Hospital | E217: 15034 | F217: Decentral administra | G217: 410 | H217: Forsikring | I217: 250322 | J217: -766.34
A218: 1000A | B218: Region Hovedstaden | C218: 1900 | D218: Herlev/Gentofte Hospital | E218: 15034 | F218: Decentral administra | G218: Resultat | J218: -766.34 | L218: Montebello
... 662 more rows

Sheet Skema 5 og 6 2022 (hidden)
A1: Medicin
A2: Særligt område
A3: navn | B3: Sum af Quantity | C3: Sum af Sales_Price | F3: 1000A2206 | G3: HovedOrtoCentret | H3: 204113 | I3: Sanseorganer | J3: LUXTURNA KONC.+SO | K3: -2678115.23
A4: Luxturna, konc.+solv.t.inj.opl, _, 1 dosis | B4: 1 | C4: -2678115.23 | F4: 1000A2206 | G4: HovedOrtoCentret | H4: 204114 | I4: Diverse | J4: LUXTURNA, CSP MLV | K4: 50000
A5: Zolgensma, inf.væske, opløsning, 2x5,5 ml + 3x8,3 ml, 2 x 5,5 ml + 3 x 8,3 ml | B5: 2 | C5: 20235946.66 | F5: 1000A2206 | G5: HovedOrtoCentret | H5: Resultat | K5: -2628115.23
C6: =SUM(C4:C5) -> 17557831.43 | F6: 1000A2209 | G6: Juliane Marie Centre | H6: 204109 | I6: Musculo-skeletal sys | J6: ZOLGENSMA INF.VÆSK | K6: 20235946.66
F7: 1000A2209 | G7: Juliane Marie Centre | H7: 204114 | I7: Diverse | J7: LUXTURNA, CSP MLV | K7: 80000
A8: Udleveret medicin | F8: 1000A2209 | G8: Juliane Marie Centre | H8: Resultat | K8: 20315946.66
A9: Hospital | C9: Total
A10: Rigshospitalet | C10: 1110448336 | F10: Rigshospitalet | J10: Sum af Sales_Price
A11: Bispebjerg og Frederiksberg Hospital | C11: 94551494.7 | F11: 985976190 | G11: SP-datasæt | J11: Hospital | K11: Hospital_code | L11: Total
A12: Amager og Hvidovre Hospital | C12: 84943260.89 | F12: 45267606 | G12: parenteral ernæring lev.til hjemmet | J12: Bispebjerg og Frederiksberg Hospital | K12: 1309 | L12: 94293332.37 | M12: ekskl 500
A13: Steno Diabetes Center Copenhagen | C13: 23183.22 | F13: 8561072 | G13: Dialysevæsker, B05DA og B05DB | J13: Bispebjerg og Frederiksberg Hospital Total | L13: 94293332.37
A14: Herlev og Gentofte Hospital | C14: 398517190.1 | F14: =SUM(F11:F13) -> 1039804868 | J14: Hovedtotal | L14: 94293332.37
A15: Nordsjællands Hospital | C15: 52768347.11
A16: Bornholms Hospital | C16: 12476489.76
A17: Hovedtotal | C17: =SUM(C10:C16) -> 1753728302
A19: Forbrug på privathospitaler
G20: Forbrug JAN - DEC 2022
A21: Profitcenter | C21: Firmakode | E21: Artskonto | G21: DKK
A22: 1000A | B22: Region Hovedstaden | C22: 1200 | D22: Bispebjerg/Frederiksberg | E22: 209410 | F22: 66 Diagn.radiol.sær | G22: 2487.55
A23: 1000A | B23: Region Hovedstaden | C23: 1200 | D23: Bispebjerg/Frederiksberg | E23: 209419 | F23: 84 AnæstesiologiSær | G23: 120679.46
A24: 1000A | B24: Region Hovedstaden | C24: 1200 | D24: Bispebjerg/Frederiksberg | E24: 209110 | F24: 66 Diagn.radiologi | G24: 2964666.12
A25: 1000A | B25: Region Hovedstaden | C25: 1200 | D25: Bispebjerg/Frederiksberg | E25: 209113 | F25: 64 Klinisk neurofys | G25: 7094.79
A26: 1000A | B26: Region Hovedstaden | C26: 1200 | D26: Bispebjerg/Frederiksberg | E26: 209114 | F26: 42 Ortopædisk kirur | G26: 23806396.81
A27: 1000A | B27: Region Hovedstaden | C27: 1200 | D27: Bispebjerg/Frederiksberg | E27: 209116 | F27: 32 Kirurgisk gastro | G27: 13207767.76
A28: 1000A | B28: Region Hovedstaden | C28: 1200 | D28: Bispebjerg/Frederiksberg | E28: 209118 | F28: 33 Plastikkirurgi | G28: 5712.7
A29: 1000A | B29: Region Hovedstaden | C29: 1200 | D29: Bispebjerg/Frederiksberg | E29: 209121 | F29: 12 Reumatologi Gigt | G29: 41409.75
A30: 1000A | B30: Region Hovedstaden | C30: 1200 | D30: Bispebjerg/Frederiksberg | E30: 209123 | F30: 18 Dermato-Venerolo | G30: 7028388.48
A31: 1000A | B31: Region Hovedstaden | C31: 1200 | D31: Bispebjerg/Frederiksberg | E31: 209124 | F31: 06 Kardiologi Medic | G31: 98064.27
A32: 1000A | B32: Region Hovedstaden | C32: 1200 | D32: Bispebjerg/Frederiksberg | E32: 209125 | F32: 10 Medicinske lunge | G32: 60236.94
A33: 1000A | B33: Region Hovedstaden | C33: 1200 | D33: Bispebjerg/Frederiksberg | E33: 209126 | F33: 20 Neuromedicin Med | G33: 3060.12
A34: 1000A | B34: Region Hovedstaden | C34: 1200 | D34: Bispebjerg/Frederiksberg | E34: 209199 | F34: 99 Øvr.DUF specialer | G34: 45110.63
A35: 1000A | B35: Region Hovedstaden | C35: 1200 | D35: Bispebjerg/Frederiksberg | E35: Resultat | G35: 47391075.38
A36: 1000A | B36: Region Hovedstaden | C36: 1300 | D36: Bornholms Hospital | E36: 209110 | F36: 66 Diagn.radiologi | G36: 918437.81
A37: 1000A | B37: Region Hovedstaden | C37: 1300 | D37: Bornholms Hospital | E37: 209113 | F37: 64 Klinisk neurofys | G37: 2052.37
A38: 1000A | B38: Region Hovedstaden | C38: 1300 | D38: Bornholms Hospital | E38: 209199 | F38: 99 Øvr.DUF specialer | G38: 2212341.48
A39: 1000A | B39: Region Hovedstaden | C39: 1300 | D39: Bornholms Hospital | E39: Resultat | G39: 3132831.66
A40: 1000A | B40: Region Hovedstaden | C40: 1900 | D40: Herlev/Gentofte Hospital | E40: 209410 | F40: 66 Diagn.radiol.sær | G40: 29861398.55
A41: 1000A | B41: Region Hovedstaden | C41: 1900 | D41: Herlev/Gentofte Hospital | E41: 209411 | F41: 35 UrologiUrinv.sær | G41: 10714156.31
A42: 1000A | B42: Region Hovedstaden | C42: 1900 | D42: Herlev/Gentofte Hospital | E42: 209414 | F42: 42 OrtopædiskKirSær | G42: 79906.15
A43: 1000A | B43: Region Hovedstaden | C43: 1900 | D43: Herlev/Gentofte Hospital | E43: 209418 | F43: 33 PlastikkirurgiSæ | G43: 1349.12
A44: 1000A | B44: Region Hovedstaden | C44: 1900 | D44: Herlev/Gentofte Hospital | E44: 209419 | F44: 84 AnæstesiologiSær | G44: 2460823.22
A45: 1000A | B45: Region Hovedstaden | C45: 1900 | D45: Herlev/Gentofte Hospital | E45: 209499 | F45: 99 Øvr.DUFspecialSær | G45: 1197.68
A46: 1000A | B46: Region Hovedstaden | C46: 1900 | D46: Herlev/Gentofte Hospital | E46: 209110 | F46: 66 Diagn.radiologi | G46: 12776277.99
A47: 1000A | B47: Region Hovedstaden | C47: 1900 | D47: Herlev/Gentofte Hospital | E47: 209111 | F47: 35 Urologi Urinvejs | G47: 27281150
A48: 1000A | B48: Region Hovedstaden | C48: 1900 | D48: Herlev/Gentofte Hospital | E48: 209113 | F48: 64 Klinisk neurofys | G48: 698851.64
A49: 1000A | B49: Region Hovedstaden | C49: 1900 | D49: Herlev/Gentofte Hospital | E49: 209114 | F49: 42 Ortopædisk kirur | G49: 50881804.39
A50: 1000A | B50: Region Hovedstaden | C50: 1900 | D50: Herlev/Gentofte Hospital | E50: 209115 | F50: 46 Oto-Rhino-Laryng | G50: 44427.44
A51: 1000A | B51: Region Hovedstaden | C51: 1900 | D51: Herlev/Gentofte Hospital | E51: 209116 | F51: 32 Kirurgisk gastro | G51: 11257647.82
A52: 1000A | B52: Region Hovedstaden | C52: 1900 | D52: Herlev/Gentofte Hospital | E52: 209118 | F52: 33 Plastikkirurgi | G52: 16634796.74
A53: 1000A | B53: Region Hovedstaden | C53: 1900 | D53: Herlev/Gentofte Hospital | E53: 209119 | F53: 84 Anæstesiologi | G53: 4612732.77
A54: 1000A | B54: Region Hovedstaden | C54: 1900 | D54: Herlev/Gentofte Hospital | E54: 209123 | F54: 18 Dermato-Venerolo | G54: 5077.75
A55: 1000A | B55: Region Hovedstaden | C55: 1900 | D55: Herlev/Gentofte Hospital | E55: 209124 | F55: 06 Kardiologi Medic | G55: 524841.43
A56: 1000A | B56: Region Hovedstaden | C56: 1900 | D56: Herlev/Gentofte Hospital | E56: 209125 | F56: 10 Medicinske lunge | G56: 721550.64
A57: 1000A | B57: Region Hovedstaden | C57: 1900 | D57: Herlev/Gentofte Hospital | E57: 209126 | F57: 20 Neuromedicin Med | G57: 3129.27
A58: 1000A | B58: Region Hovedstaden | C58: 1900 | D58: Herlev/Gentofte Hospital | E58: 209127 | F58: 38 Gynækologi og ob | G58: 1181263.25
A59: 1000A | B59: Region Hovedstaden | C59: 1900 | D59: Herlev/Gentofte Hospital | E59: 209129 | F59: 07 Medicinsk allerg | G59: 23514.66
A60: 1000A | B60: Region Hovedstaden | C60: 1900 | D60: Herlev/Gentofte Hospital | E60: 209199 | F60: 99 Øvr.DUF specialer | G60: 114399.34
A61: 1000A | B61: Region Hovedstaden | C61: 1900 | D61: Herlev/Gentofte Hospital | E61: Resultat | G61: 169880296.2
A62: 1000A | B62: Region Hovedstaden | C62: 2000 | D62: Nordsjællands Hospital | E62: 209410 | F62: 66 Diagn.radiol.sær | G62: 4836.67
A63: 1000A | B63: Region Hovedstaden | C63: 2000 | D63: Nordsjællands Hospital | E63: 209415 | F63: 46 OtoRhinoLaryngSæ | G63: 2886038.35
A64: 1000A | B64: Region Hovedstaden | C64: 2000 | D64: Nordsjællands Hospital | E64: 209419 | F64: 84 AnæstesiologiSær | G64: 384972.13
A65: 1000A | B65: Region Hovedstaden | C65: 2000 | D65: Nordsjællands Hospital | E65: 209426 | F65: 20 Neuromedic.MedSæ | G65: 3319.2
A66: 1000A | B66: Region Hovedstaden | C66: 2000 | D66: Nordsjællands Hospital | E66: 209110 | F66: 66 Diagn.radiologi | G66: 11003466.11
A67: 1000A | B67: Region Hovedstaden | C67: 2000 | D67: Nordsjællands Hospital | E67: 209113 | F67: 64 Klinisk neurofys | G67: 542987.3
A68: 1000A | B68: Region Hovedstaden | C68: 2000 | D68: Nordsjællands Hospital | E68: 209114 | F68: 42 Ortopædisk kirur | G68: 45279872.81
A69: 1000A | B69: Region Hovedstaden | C69: 2000 | D69: Nordsjællands Hospital | E69: 209115 | F69: 46 Oto-Rhino-Laryng | G69: 12485671.37
A70: 1000A | B70: Region Hovedstaden | C70: 2000 | D70: Nordsjællands Hospital | E70: 209116 | F70: 32 Kirurgisk gastro | G70: 7191914.98
A71: 1000A | B71: Region Hovedstaden | C71: 2000 | D71: Nordsjællands Hospital | E71: 209124 | F71: 06 Kardiologi Medic | G71: 648368.6
A72: 1000A | B72: Region Hovedstaden | C72: 2000 | D72: Nordsjællands Hospital | E72: 209126 | F72: 20 Neuromedicin Med | G72: 204552.22
A73: 1000A | B73: Region Hovedstaden | C73: 2000 | D73: Nordsjællands Hospital | E73: 209127 | F73: 38 Gynækologi og ob | G73: 2200150.45
A74: 1000A | B74: Region Hovedstaden | C74: 2000 | D74: Nordsjællands Hospital | E74: 209199 | F74: 99 Øvr.DUF specialer | G74: 107404.14
A75: 1000A | B75: Region Hovedstaden | C75: 2000 | D75: Nordsjællands Hospital | E75: Resultat | G75: 82943554.33
A76: 1000A | B76: Region Hovedstaden | C76: 2100 | D76: Amager/Hvidovre Hospital | E76: 209410 | F76: 66 Diagn.radiol.sær | G76: -85934.76
A77: 1000A | B77: Region Hovedstaden | C77: 2100 | D77: Amager/Hvidovre Hospital | E77: 209419 | F77: 84 AnæstesiologiSær | G77: 1111583.25
A78: 1000A | B78: Region Hovedstaden | C78: 2100 | D78: Amager/Hvidovre Hospital | E78: 209110 | F78: 66 Diagn.radiologi | G78: 4642900.02
A79: 1000A | B79: Region Hovedstaden | C79: 2100 | D79: Amager/Hvidovre Hospital | E79: 209113 | F79: 64 Klinisk neurofys | G79: 87891.46
A80: 1000A | B80: Region Hovedstaden | C80: 2100 | D80: Amager/Hvidovre Hospital | E80: 209114 | F80: 42 Ortopædisk kirur | G80: 33340452.57
A81: 1000A | B81: Region Hovedstaden | C81: 2100 | D81: Amager/Hvidovre Hospital | E81: 209116 | F81: 32 Kirurgisk gastro | G81: 16657296.83
A82: 1000A | B82: Region Hovedstaden | C82: 2100 | D82: Amager/Hvidovre Hospital | E82: 209119 | F82: 84 Anæstesiologi | G82: 19021.03
A83: 1000A | B83: Region Hovedstaden | C83: 2100 | D83: Amager/Hvidovre Hospital | E83: 209121 | F83: 12 Reumatologi Gigt | G83: 1955.56
A84: 1000A | B84: Region Hovedstaden | C84: 2100 | D84: Amager/Hvidovre Hospital | E84: 209124 | F84: 06 Kardiologi Medic | G84: 68760.82
A85: 1000A | B85: Region Hovedstaden | C85: 2100 | D85: Amager/Hvidovre Hospital | E85: 209125 | F85: 10 Medicinske lunge | G85: 23085.93
A86: 1000A | B86: Region Hovedstaden | C86: 2100 | D86: Amager/Hvidovre Hospital | E86: 209127 | F86: 38 Gynækologi og ob | G86: 462697.94
A87: 1000A | B87: Region Hovedstaden | C87: 2100 | D87: Amager/Hvidovre Hospital | E87: 209199 | F87: 99 Øvr.DUF specialer | G87: 38240.72
A88: 1000A | B88: Region Hovedstaden | C88: 2100 | D88: Amager/Hvidovre Hospital | E88: Resultat | G88: 56367951.37
A89: 1000A | B89: Region Hovedstaden | C89: 2200 | D89: Rigshospitalet | E89: 209410 | F89: 66 Diagn.radiol.sær | G89: -69.14
A90: 1000A | B90: Region Hovedstaden | C90: 2200 | D90: Rigshospitalet | E90: 209415 | F90: 46 OtoRhinoLaryngSæ | G90: 11027704.97
A91: 1000A | B91: Region Hovedstaden | C91: 2200 | D91: Rigshospitalet | E91: 209418 | F91: 33 PlastikkirurgiSæ | G91: 3144.01
A92: 1000A | B92: Region Hovedstaden | C92: 2200 | D92: Rigshospitalet | E92: 209419 | F92: 84 AnæstesiologiSær | G92: 210864.1
A93: 1000A | B93: Region Hovedstaden | C93: 2200 | D93: Rigshospitalet | E93: 209427 | F93: 38 Gynækologi/obSær | G93: 1378885.24
A94: 1000A | B94: Region Hovedstaden | C94: 2200 | D94: Rigshospitalet | E94: 209428 | F94: 48 Hosp.sodontolSær | G94: 785459.29
A95: 1000A | B95: Region Hovedstaden | C95: 2200 | D95: Rigshospitalet | E95: 209110 | F95: 66 Diagn.radiologi | G95: 4046894.93
A96: 1000A | B96: Region Hovedstaden | C96: 2200 | D96: Rigshospitalet | E96: 209111 | F96: 35 Urologi Urinvejs | G96: 7402.73
A97: 1000A | B97: Region Hovedstaden | C97: 2200 | D97: Rigshospitalet | E97: 209112 | F97: 44 Oftalmologi Øjen | G97: 35989137.81
A98: 1000A | B98: Region Hovedstaden | C98: 2200 | D98: Rigshospitalet | E98: 209113 | F98: 64 Klinisk neurofys | G98: 12375470.64
A99: 1000A | B99: Region Hovedstaden | C99: 2200 | D99: Rigshospitalet | E99: 209114 | F99: 42 Ortopædisk kirur | G99: 25811383.2
A100: 1000A | B100: Region Hovedstaden | C100: 2200 | D100: Rigshospitalet | E100: 209115 | F100: 46 Oto-Rhino-Laryng | G100: 34295172.57
A101: 1000A | B101: Region Hovedstaden | C101: 2200 | D101: Rigshospitalet | E101: 209116 | F101: 32 Kirurgisk gastro | G101: 11985.99
A102: 1000A | B102: Region Hovedstaden | C102: 2200 | D102: Rigshospitalet | E102: 209118 | F102: 33 Plastikkirurgi | G102: 4924279.13
A103: 1000A | B103: Region Hovedstaden | C103: 2200 | D103: Rigshospitalet | E103: 209119 | F103: 84 Anæstesiologi | G103: 7417083.22
A104: 1000A | B104: Region Hovedstaden | C104: 2200 | D104: Rigshospitalet | E104: 209121 | F104: 12 Reumatologi Gigt | G104: 876805.64
A105: 1000A | B105: Region Hovedstaden | C105: 2200 | D105: Rigshospitalet | E105: 209124 | F105: 06 Kardiologi Medic | G105: 2789392.65
A106: 1000A | B106: Region Hovedstaden | C106: 2200 | D106: Rigshospitalet | E106: 209125 | F106: 10 Medicinske lunge | G106: 2741.1
A107: 1000A | B107: Region Hovedstaden | C107: 2200 | D107: Rigshospitalet | E107: 209126 | F107: 20 Neuromedicin Med | G107: 48904.61
A108: 1000A | B108: Region Hovedstaden | C108: 2200 | D108: Rigshospitalet | E108: 209127 | F108: 38 Gynækologi og ob | G108: 281466.9
A109: 1000A | B109: Region Hovedstaden | C109: 2200 | D109: Rigshospitalet | E109: 209128 | F109: 48 Hospitalsodontol | G109: 1546356.36
A110: 1000A | B110: Region Hovedstaden | C110: 2200 | D110: Rigshospitalet | E110: 209130 | F110: 42A ortopædisk kirur | G110: 19376290.84
A111: 1000A | B111: Region Hovedstaden | C111: 2200 | D111: Rigshospitalet | E111: 209199 | F111: 99 Øvr.DUF specialer | G111: 183206.26
A112: 1000A | B112: Region Hovedstaden | C112: 2200 | D112: Rigshospitalet | E112: Resultat | G112: 163389963.1
A113: 1000A | B113: Region Hovedstaden | C113: 6100 | D113: Region Hovedst. Psykiatri | E113: 209422 | F113: 50 Psykiatri Særaft | G113: 16361.07
A114: 1000A | B114: Region Hovedstaden | C114: 6100 | D114: Region Hovedst. Psykiatri | E114: 209117 | F114: 52 Børnepsykiatri | G114: 15878802.45
A115: 1000A | B115: Region Hovedstaden | C115: 6100 | D115: Region Hovedst. Psykiatri | E115: 209122 | F115: 50 Psykiatri | G115: 8458535.03
A116: 1000A | B116: Region Hovedstaden | C116: 6100 | D116: Region Hovedst. Psykiatri | E116: Resultat | G116: 24353698.55
A117: 1000A | B117: Region Hovedstaden | C117: Resultat | G117: 547459370.5
G118: =+G117-G116 -> 523105671.9
A119: Modpost 5100 fremmede sygehuse | G119: -547459370.5
G120: =+G117+G119 -> 0
G122: Forbrug JAN - DEC 2022
B123: Profitcenter | D123: PSP-element | F123: Kreditor | G123: DKK
B124: 1000A | C124: Region Hovedstaden | D124: L-22060-00094 | E124: Populationsansvar, Øjenklinikken | F124: Scandinavian Eye Center ApS | G124: 3369100
B125: 1000A | C125: Region Hovedstaden | D125: Resultat | G125: 3369100
A130: Patientindtægter
G131: Forbrug | H131: Forbrug | I131: Forbrug
F132: IM Art | G132: 72 | H132: 78 | I132: Samlet resultat
A133: Firmakode | C133: IM Funktion | E133: IM Gruppering | G133: DKK | H133: DKK | I133: DKK
A134: 1200 | B134: Bispebjerg/Frederiksberg | C134: 11001 | D134: Somatiske sygehuse | E134: Betalinger - andre r | F134: 810 | H134: -75191441.54 | I134: -75191441.54
A135: 1200 | B135: Bispebjerg/Frederiksberg | C135: 11001 | D135: Somatiske sygehuse | E135: Betalinger – private | F135: 820 | G135: -6481140.77 | I135: -6481140.77
A136: 1200 | B136: Bispebjerg/Frederiksberg | C136: Resultat | G136: -6481140.77 | H136: -75191441.54 | I136: -81672582.31
A137: 1300 | B137: Bornholms Hospital | C137: 11001 | D137: Somatiske sygehuse | E137: Betalinger - andre r | F137: 810 | H137: -6005624.6 | I137: -6005624.6
A138: 1300 | B138: Bornholms Hospital | C138: 11001 | D138: Somatiske sygehuse | E138: Betalinger – private | F138: 820 | G138: -416916 | I138: -416916
A139: 1300 | B139: Bornholms Hospital | C139: Resultat | G139: -416916 | H139: -6005624.6 | I139: -6422540.6
A140: 1500 | B140: Steno Diabetes Center CPH | C140: 11001 | D140: Somatiske sygehuse | E140: Betalinger - andre r | F140: 810 | H140: -9978715.27 | I140: -9978715.27
A141: 1500 | B141: Steno Diabetes Center CPH | C141: 11001 | D141: Somatiske sygehuse | E141: Betalinger – private | F141: 820 | G141: -12150 | I141: -12150
A142: 1500 | B142: Steno Diabetes Center CPH | C142: Resultat | G142: -12150 | H142: -9978715.27 | I142: -9990865.27
A143: 1900 | B143: Herlev/Gentofte Hospital | C143: 11001 | D143: Somatiske sygehuse | E143: Betalinger - andre r | F143: 810 | H143: -322031451.8 | I143: -322031451.8
A144: 1900 | B144: Herlev/Gentofte Hospital | C144: 11001 | D144: Somatiske sygehuse | E144: Betalinger – private | F144: 820 | G144: -5381689.39 | I144: -5381689.39
A145: 1900 | B145: Herlev/Gentofte Hospital | C145: Resultat | G145: -5381689.39 | H145: -322031451.8 | I145: -327413141.2
A146: 2000 | B146: Nordsjællands Hospital | C146: 11001 | D146: Somatiske sygehuse | E146: Betalinger - andre r | F146: 810 | H146: -41189971.69 | I146: -41189971.69
A147: 2000 | B147: Nordsjællands Hospital | C147: 11001 | D147: Somatiske sygehuse | E147: Betalinger – private | F147: 820 | G147: -3944961 | I147: -3944961
A148: 2000 | B148: Nordsjællands Hospital | C148: Resultat | G148: -3944961 | H148: -41189971.69 | I148: -45134932.69
A149: 2100 | B149: Amager/Hvidovre Hospital | C149: 11001 | D149: Somatiske sygehuse | E149: Betalinger - andre r | F149: 810 | H149: -133007861.7 | I149: -133007861.7
A150: 2100 | B150: Amager/Hvidovre Hospital | C150: 11001 | D150: Somatiske sygehuse | E150: Betalinger – private | F150: 820 | G150: -7446207.96 | I150: -7446207.96
A151: 2100 | B151: Amager/Hvidovre Hospital | C151: Resultat | G151: -7446207.96 | H151: -133007861.7 | I151: -140454069.7
A152: 2200 | B152: Rigshospitalet | C152: 11001 | D152: Somatiske sygehuse | E152: Betalinger - andre r | F152: 810 | H152: -2460236569 | I152: -2460236569
A153: 2200 | B153: Rigshospitalet | C153: 11001 | D153: Somatiske sygehuse | E153: Betalinger – private | F153: 820 | G153: -10601799.7 | I153: -10601799.7
A154: 2200 | B154: Rigshospitalet | C154: Resultat | G154: -10601799.7 | H154: -2460236569 | I154: -2470838369
A155: 6100 | B155: Region Hovedst. Psykiatri | C155: 11002 | D155: Psykiatriske sygehus | E155: Betalinger - andre r | F155: 810 | H155: -72856494 | I155: -72856494
A156: 6100 | B156: Region Hovedst. Psykiatri | C156: 11002 | D156: Psykiatriske sygehus | E156: Betalinger – private | F156: 820 | G156: -157899 | I156: -157899
A157: 6100 | B157: Region Hovedst. Psykiatri | C157: 15035 | D157: Administration af de | E157: Betalinger - andre r | F157: 810 | H157: -33507 | I157: -33507
A158: 6100 | B158: Region Hovedst. Psykiatri | C158: 15035 | D158: Administration af de | E158: Betalinger – private | F158: 820 | G158: 0 | I158: 0
A159: 6100 | B159: Region Hovedst. Psykiatri | C159: Resultat | G159: -157899 | H159: -72890001 | I159: -73047900
A160: Samlet resultat | G160: -34442763.82 | H160: -3120531637 | I160: -3154974400
I162: =+(I160-I159+G125+G118)/1000 -> -2555451.728
I163: =+Rapport!C68+Rapport!C67 -> -2331707.255
I164: =+I162-I163 -> -223744.4738
A165: Ilt til patienter i eget hjem
J166: Forbrug
A167: Firmakode | C167: Profitcenter | E167: Kreditor | G167: PSP-element | I167: Bilagstekst | J167: DKK
A168: 1200 | B168: Bispebjerg/Frederiksberg | C168: 1000A12235 | D168: L – Lunge- og infekt | E168: 9000061 | F168: Linde Gas A/S | G168: # | H168: Ikke allokeret | I168: AFREGNING FERIEPATIENTER | J168: 265.72
A169: 1200 | B169: Bispebjerg/Frederiksberg | C169: 1000A12235 | D169: L – Lunge- og infekt | E169: 9000061 | F169: Linde Gas A/S | G169: # | H169: Ikke allokeret | I169: EL AFREGNING UDLÆG (LGT) | J169: 1086085.05
A170: 1200 | B170: Bispebjerg/Frederiksberg | C170: 1000A12235 | D170: L – Lunge- og infekt | E170: 9000061 | F170: Linde Gas A/S | G170: # | H170: Ikke allokeret | I170: El forbrug | J170: 74471.84
A171: 1200 | B171: Bispebjerg/Frederiksberg | C171: 1000A12235 | D171: L – Lunge- og infekt | E171: 9000061 | F171: Linde Gas A/S | G171: # | H171: Ikke allokeret | I171: HOMECARE PATIENTER | J171: 2661710.62
A172: 1200 | B172: Bispebjerg/Frederiksberg | C172: 1000A12235 | D172: L – Lunge- og infekt | E172: 9000061 | F172: Linde Gas A/S | G172: # | H172: Ikke allokeret | I172: INOGEN STRØMFORSYNING | J172: 827.45
A173: 1200 | B173: Bispebjerg/Frederiksberg | C173: 1000A12235 | D173: L – Lunge- og infekt | E173: Resultat | J173: 3823360.68
A174: 1300 | B174: Bornholms Hospital | C174: 1000A13125 | D174: Hospitalet Fælles | E174: 9000061 | F174: Linde Gas A/S | G174: L-13060 | H174: Eksterne patienter | I174: CONOXIA 10 L LIV MAXIFLOW | J174: 0.05
A175: 1300 | B175: Bornholms Hospital | C175: 1000A13125 | D175: Hospitalet Fælles | E175: 9000061 | F175: Linde Gas A/S | G175: L-13060 | H175: Eksterne patienter | I175: EL AFREGNING UDLÆG (LGT | J175: 14925.58
A176: 1300 | B176: Bornholms Hospital | C176: 1000A13125 | D176: Hospitalet Fælles | E176: 9000061 | F176: Linde Gas A/S | G176: L-13060 | H176: Eksterne patienter | I176: EL AFREGNING UDLÆG (LGT) | J176: 53350.28
A177: 1300 | B177: Bornholms Hospital | C177: 1000A13125 | D177: Hospitalet Fælles | E177: 9000061 | F177: Linde Gas A/S | G177: L-13060 | H177: Eksterne patienter | I177: EL AFREGNING UDLÆG (LGT) - august 2022 | J177: 37475.45
A178: 1300 | B178: Bornholms Hospital | C178: 1000A13125 | D178: Hospitalet Fælles | E178: 9000061 | F178: Linde Gas A/S | G178: L-13060 | H178: Eksterne patienter | I178: EL AFREGNING UDLÆG (LGT) - dec. 2022 | J178: 13069.33
A179: 1300 | B179: Bornholms Hospital | C179: 1000A13125 | D179: Hospitalet Fælles | E179: 9000061 | F179: Linde Gas A/S | G179: L-13060 | H179: Eksterne patienter | I179: EL AFREGNING UDLÆG (LGT) - januar 2022 | J179: 5933.1
A180: 1300 | B180: Bornholms Hospital | C180: 1000A13125 | D180: Hospitalet Fælles | E180: 9000061 | F180: Linde Gas A/S | G180: L-13060 | H180: Eksterne patienter | I180: EL AFREGNING UDLÆG (LGT) - juli 2022 | J180: 15856.04
A181: 1300 | B181: Bornholms Hospital | C181: 1000A13125 | D181: Hospitalet Fælles | E181: 9000061 | F181: Linde Gas A/S | G181: L-13060 | H181: Eksterne patienter | I181: EL AFREGNING UDLÆG (LGT) - maj 2022 | J181: 15499.24
A182: 1300 | B182: Bornholms Hospital | C182: 1000A13125 | D182: Hospitalet Fælles | E182: 9000061 | F182: Linde Gas A/S | G182: L-13060 | H182: Eksterne patienter | I182: EL AFREGNING UDLÆG (LGT) - nov. 2022 | J182: 59315.98
A183: 1300 | B183: Bornholms Hospital | C183: 1000A13125 | D183: Hospitalet Fælles | E183: 9000061 | F183: Linde Gas A/S | G183: L-13060 | H183: Eksterne patienter | I183: EL AFREGNING UDLÆG (LGT) - okt. 2022 | J183: 19516.32
A184: 1300 | B184: Bornholms Hospital | C184: 1000A13125 | D184: Hospitalet Fælles | E184: 9000061 | F184: Linde Gas A/S | G184: L-13060 | H184: Eksterne patienter | I184: EL AFREGNING UDLÆG (LGT) marts 2022 | J184: 15163.75
A185: 1300 | B185: Bornholms Hospital | C185: 1000A13125 | D185: Hospitalet Fælles | E185: 9000061 | F185: Linde Gas A/S | G185: L-13060 | H185: Eksterne patienter | I185: EL AFREGNING UDLÆG - april 2022 | J185: 34308.76
A186: 1300 | B186: Bornholms Hospital | C186: 1000A13125 | D186: Hospitalet Fælles | E186: 9000061 | F186: Linde Gas A/S | G186: L-13060 | H186: Eksterne patienter | I186: ENTAL MEDICAL CYLINDERS TYPE B LARGE | J186: -1431
A187: 1300 | B187: Bornholms Hospital | C187: 1000A13125 | D187: Hospitalet Fælles | E187: 9000061 | F187: Linde Gas A/S | G187: L-13060 | H187: Eksterne patienter | I187: HOMECARE PATIENTER | J187: 46963.3
A188: 1300 | B188: Bornholms Hospital | C188: 1000A13125 | D188: Hospitalet Fælles | E188: 9000061 | F188: Linde Gas A/S | G188: L-13060 | H188: Eksterne patienter | I188: HOMECARE PATIENTER - Oktober 2022 | J188: 63442.6
A189: 1300 | B189: Bornholms Hospital | C189: 1000A13125 | D189: Hospitalet Fælles | E189: 9000061 | F189: Linde Gas A/S | G189: L-13060 | H189: Eksterne patienter | I189: HOMECARE PATIENTER - april 2022 | J189: 54463.89
A190: 1300 | B190: Bornholms Hospital | C190: 1000A13125 | D190: Hospitalet Fælles | E190: 9000061 | F190: Linde Gas A/S | G190: L-13060 | H190: Eksterne patienter | I190: HOMECARE PATIENTER - august 2022 | J190: 63434.92
A191: 1300 | B191: Bornholms Hospital | C191: 1000A13125 | D191: Hospitalet Fælles | E191: 9000061 | F191: Linde Gas A/S | G191: L-13060 | H191: Eksterne patienter | I191: HOMECARE PATIENTER - december 2022 | J191: 63799.41
A192: 1300 | B192: Bornholms Hospital | C192: 1000A13125 | D192: Hospitalet Fælles | E192: 9000061 | F192: Linde Gas A/S | G192: L-13060 | H192: Eksterne patienter | I192: HOMECARE PATIENTER - feb. 2022 | J192: 53053.11
A193: 1300 | B193: Bornholms Hospital | C193: 1000A13125 | D193: Hospitalet Fælles | E193: 9000061 | F193: Linde Gas A/S | G193: L-13060 | H193: Eksterne patienter | I193: HOMECARE PATIENTER - januar 2022 | J193: 48890.62
A194: 1300 | B194: Bornholms Hospital | C194: 1000A13125 | D194: Hospitalet Fælles | E194: 9000061 | F194: Linde Gas A/S | G194: L-13060 | H194: Eksterne patienter | I194: HOMECARE PATIENTER - juli 2022 | J194: 64079
A195: 1300 | B195: Bornholms Hospital | C195: 1000A13125 | D195: Hospitalet Fælles | E195: 9000061 | F195: Linde Gas A/S | G195: L-13060 | H195: Eksterne patienter | I195: HOMECARE PATIENTER - juni 2022 | J195: 67836.84
A196: 1300 | B196: Bornholms Hospital | C196: 1000A13125 | D196: Hospitalet Fælles | E196: 9000061 | F196: Linde Gas A/S | G196: L-13060 | H196: Eksterne patienter | I196: HOMECARE PATIENTER - maj 2022 | J196: 56614.19
A197: 1300 | B197: Bornholms Hospital | C197: 1000A13125 | D197: Hospitalet Fælles | E197: 9000061 | F197: Linde Gas A/S | G197: L-13060 | H197: Eksterne patienter | I197: HOMECARE PATIENTER - nov. 2022 | J197: 64511.44
A198: 1300 | B198: Bornholms Hospital | C198: 1000A13125 | D198: Hospitalet Fælles | E198: 9000061 | F198: Linde Gas A/S | G198: L-13060 | H198: Eksterne patienter | I198: HOMECARE PATIENTER - sept. 2022 | J198: 65471.08
A199: 1300 | B199: Bornholms Hospital | C199: 1000A13125 | D199: Hospitalet Fælles | E199: 9000061 | F199: Linde Gas A/S | G199: L-13060 | H199: Eksterne patienter | I199: RENTAL MEDICAL CYLINDERS TYPE B LARGE | J199: 1431
A200: 1300 | B200: Bornholms Hospital | C200: 1000A13125 | D200: Hospitalet Fælles | E200: Resultat | J200: 996974.28
A201: 1900 | B201: Herlev/Gentofte Hospital | C201: 1000A19986 | D201: Herlev fælles | E201: 9000061 | F201: Linde Gas A/S | G201: L-19986-11094 | H201: Ilt til patienter/hjemmeilt | I201: Bortkommet Inogen G2 Batteri | J201: 2605.85
A202: 1900 | B202: Herlev/Gentofte Hospital | C202: 1000A19986 | D202: Herlev fælles | E202: 9000061 | F202: Linde Gas A/S | G202: L-19986-11094 | H202: Ilt til patienter/hjemmeilt | I202: Bortkommet strømforsyning inogen | J202: 827.45
A203: 1900 | B203: Herlev/Gentofte Hospital | C203: 1000A19986 | D203: Herlev fælles | E203: 9000061 | F203: Linde Gas A/S | G203: L-19986-11094 | H203: Ilt til patienter/hjemmeilt | I203: EL AFREGNING UDLÆG (LGT) | J203: 2038040.17
A204: 1900 | B204: Herlev/Gentofte Hospital | C204: 1000A19986 | D204: Herlev fælles | E204: 9000061 | F204: Linde Gas A/S | G204: L-19986-11094 | H204: Ilt til patienter/hjemmeilt | I204: Gentofte HOMECARE PATIENTER | J204: 253912.26
A205: 1900 | B205: Herlev/Gentofte Hospital | C205: 1000A19986 | D205: Herlev fælles | E205: 9000061 | F205: Linde Gas A/S | G205: L-19986-11094 | H205: Ilt til patienter/hjemmeilt | I205: HOMECARE PATIENTER | J205: 4144018.56
A206: 1900 | B206: Herlev/Gentofte Hospital | C206: 1000A19986 | D206: Herlev fælles | E206: 9000061 | F206: Linde Gas A/S | G206: L-19986-11094 | H206: Ilt til patienter/hjemmeilt | I206: HOMECARE PATIENTER herlev | J206: 264861.11
A207: 1900 | B207: Herlev/Gentofte Hospital | C207: 1000A19986 | D207: Herlev fælles | E207: 9000061 | F207: Linde Gas A/S | G207: L-19986-11094 | H207: Ilt til patienter/hjemmeilt | I207: gent. HOMECARE PATIENTER, Bortkommet iltudstyr | J207: 382.85
... 543 more rows

Sheet SKEMA 5 OG 6 2021 (hidden)
A1: Udleveret medicin 2021
E2: Hæmatologi | I2: Rigshospitalet
A3: Sum af Sales_Price | E3: Sum af Sales_Price | I3: parenteral ernæring | J3: 43686923
A4: Hospital | B4: Total | E4: Hospital | F4: Name | G4: Total | I4: dialysevæsker | J4: 9760971
A5: 1301 | B5: 1082355199 | E5: 1516 | F5: Blodsygdomme L121 | G5: 1131976.28 | I5: Udleveret fra SP | J5: 1071861593
A6: 1309 | B6: 78789919.22 | F6: Blodsygdomme Amb klinik 1 L124 | G6: 57063956.53 | I6: Sum | J6: 1125309487
A7: 1330 | B7: 88259435.23 | F7: Blodsygdomme Amb Klinik 2 L124 | G7: 22343865.15
A8: 1507 | B8: 94865.74 | F8: Blodsygdomme Amb Klinik2 LA124 | G8: 7865585.65
A9: 1516 | B9: 444537021 | F9: Blodsygdomme L121 IV-rum | G9: 20506.27
A10: 2000 | B10: 61314529.2 | F10: Cytoenhed B 54 D5 HÆM | G10: 193227.24
A11: 4001 | B11: 12131020.43 | E11: 1516 Total | G11: 88619117.12
A12: Hovedtotal | B12: =SUM(B5:B11) -> 1767481990 | E12: Hovedtotal | G12: 88619117.12
A15: Patientindtægter
G16: Forbrug | H16: Forbrug | I16: Forbrug
F17: IM Art | G17: 72 | H17: 78 | I17: Samlet resultat
A18: Firmakode | C18: IM Funktion | E18: IM Gruppering | G18: DKK | H18: DKK | I18: DKK
A19: 1200 | B19: Bispebjerg/Frederiksberg | C19: 11001 | D19: Somatiske sygehuse | E19: Betalinger - andre r | F19: 810 | H19: -71513664.55 | I19: -71513664.55
A20: 1200 | B20: Bispebjerg/Frederiksberg | C20: 11001 | D20: Somatiske sygehuse | E20: Betalinger – private | F20: 820 | G20: -2951398.95 | I20: -2951398.95
A21: 1200 | B21: Bispebjerg/Frederiksberg | C21: 11001 | D21: Somatiske sygehuse | E21: Resultat | G21: -2951398.95 | H21: -71513664.55 | I21: -74465063.5
A22: 1300 | B22: Bornholms Hospital | C22: 11001 | D22: Somatiske sygehuse | E22: Betalinger - andre r | F22: 810 | H22: -7982423.39 | I22: -7982423.39
A23: 1300 | B23: Bornholms Hospital | C23: 11001 | D23: Somatiske sygehuse | E23: Betalinger – private | F23: 820 | G23: -1804399 | I23: -1804399
A24: 1300 | B24: Bornholms Hospital | C24: 11001 | D24: Somatiske sygehuse | E24: Resultat | G24: -1804399 | H24: -7982423.39 | I24: -9786822.39
A25: 1500 | B25: Steno Diabetes Center CPH | C25: 11001 | D25: Somatiske sygehuse | E25: Betalinger - andre r | F25: 810 | H25: -8181013.73 | I25: -8181013.73
A26: 1500 | B26: Steno Diabetes Center CPH | C26: 11001 | D26: Somatiske sygehuse | E26: Resultat | H26: -8181013.73 | I26: -8181013.73
A27: 1900 | B27: Herlev/Gentofte Hospital | C27: 11001 | D27: Somatiske sygehuse | E27: Betalinger - andre r | F27: 810 | H27: -217647109.8 | I27: -217647109.8
A28: 1900 | B28: Herlev/Gentofte Hospital | C28: 11001 | D28: Somatiske sygehuse | E28: Betalinger – private | F28: 820 | G28: -4520209.41 | I28: -4520209.41
A29: 1900 | B29: Herlev/Gentofte Hospital | C29: 11001 | D29: Somatiske sygehuse | E29: Resultat | G29: -4520209.41 | H29: -217647109.8 | I29: -222167319.3
A30: 2000 | B30: Nordsjællands Hospital | C30: 11001 | D30: Somatiske sygehuse | E30: Betalinger - andre r | F30: 810 | H30: -27954389.19 | I30: -27954389.19
A31: 2000 | B31: Nordsjællands Hospital | C31: 11001 | D31: Somatiske sygehuse | E31: Betalinger – private | F31: 820 | G31: -4061666.75 | I31: -4061666.75
A32: 2000 | B32: Nordsjællands Hospital | C32: 11001 | D32: Somatiske sygehuse | E32: Resultat | G32: -4061666.75 | H32: -27954389.19 | I32: -32016055.94
A33: 2100 | B33: Amager/Hvidovre Hospital | C33: 11001 | D33: Somatiske sygehuse | E33: Betalinger - andre r | F33: 810 | H33: -121233769 | I33: -121233769
A34: 2100 | B34: Amager/Hvidovre Hospital | C34: 11001 | D34: Somatiske sygehuse | E34: Betalinger – private | F34: 820 | G34: -2454485.93 | I34: -2454485.93
A35: 2100 | B35: Amager/Hvidovre Hospital | C35: 11001 | D35: Somatiske sygehuse | E35: Resultat | G35: -2454485.93 | H35: -121233769 | I35: -123688254.9
A36: 2200 | B36: Rigshospitalet | C36: 11001 | D36: Somatiske sygehuse | E36: Betalinger - andre r | F36: 810 | H36: -2437047474 | I36: -2437047474
A37: 2200 | B37: Rigshospitalet | C37: 11001 | D37: Somatiske sygehuse | E37: Betalinger – private | F37: 820 | G37: -2780367.18 | I37: -2780367.18
A38: 2200 | B38: Rigshospitalet | C38: 11001 | D38: Somatiske sygehuse | E38: Resultat | G38: -2780367.18 | H38: -2437047474 | I38: -2439827841
A39: 6100 | B39: Region Hovedst. Psykiatri | C39: 11002 | D39: Psykiatriske sygehus | E39: Betalinger - andre r | F39: 810 | H39: -108677694 | I39: -108677694
A40: 6100 | B40: Region Hovedst. Psykiatri | C40: 11002 | D40: Psykiatriske sygehus | E40: Betalinger – private | F40: 820 | G40: -1531255 | I40: -1531255
A41: 6100 | B41: Region Hovedst. Psykiatri | C41: 11002 | D41: Psykiatriske sygehus | E41: Resultat | G41: -1531255 | H41: -108677694 | I41: -110208949
A42: 6100 | B42: Region Hovedst. Psykiatri | C42: 15035 | D42: Administration af de | E42: Betalinger - andre r | F42: 810 | H42: 1838807 | I42: 1838807
A43: 6100 | B43: Region Hovedst. Psykiatri | C43: 15035 | D43: Administration af de | E43: Resultat | H43: 1838807 | I43: 1838807
A44: Samlet resultat | G44: -20103782.22 | H44: -2998398731 | I44: -3018502513 | J44: =+I44-I41-I43 -> -2910132371
A46: Ilt til patienter i eget hjem
G47: Forbrug
A48: Firmakode | C48: PSP-element | E48: Kreditor | G48: DKK
A49: 1200 | B49: Bispebjerg/Frederiksberg | C49: # | D49: Ikke allokeret | E49: 9000061 | F49: Linde Gas A/S | G49: 3310720.2
A50: 1200 | B50: Bispebjerg/Frederiksberg | C50: Resultat | G50: 3310720.2
A51: 1300 | B51: Bornholms Hospital | C51: L-13060 | D51: Eksterne patienter | E51: 9000061 | F51: Linde Gas A/S | G51: 600915.62
A52: 1300 | B52: Bornholms Hospital | C52: Resultat | G52: 600915.62
A53: 1900 | B53: Herlev/Gentofte Hospital | C53: L-19986-11094 | D53: Ilt til patienter/hjemmeilt | E53: 9000061 | F53: Linde Gas A/S | G53: 5454517.62
A54: 1900 | B54: Herlev/Gentofte Hospital | C54: Resultat | G54: 5454517.62
A55: 2000 | B55: Nordsjællands Hospital | C55: L-20820 | D55: Hjemmebo. - respiratoriske hjælpemidler | E55: 9000061 | F55: Linde Gas A/S | G55: 6886353.58
A56: 2000 | B56: Nordsjællands Hospital | C56: Resultat | G56: 6886353.58
A57: 2100 | B57: Amager/Hvidovre Hospital | C57: # | D57: Ikke allokeret | E57: 9000061 | F57: Linde Gas A/S | G57: 5314571.11
A58: 2100 | B58: Amager/Hvidovre Hospital | C58: Resultat | G58: 5314571.11
A59: 2200 | B59: Rigshospitalet | C59: L-22016-00007 | D59: AGA til ompostering | E59: 9000061 | F59: Linde Gas A/S | G59: 2569753.48
A60: 2200 | B60: Rigshospitalet | C60: # | D60: Ikke allokeret | E60: 9000061 | F60: Linde Gas A/S | G60: 3108827.24
A61: 2200 | B61: Rigshospitalet | C61: Resultat | G61: 5678580.72
A62: Samlet resultat | G62: =+G50+G52+G54+G56+G58+G61 -> 27245658.85
A64: Sonderemedier
E65: Forbrug
A66: Firmakode | C66: PSP-element | E66: DKK
A67: 2000 | B67: Nordsjællands Hospital | C67: L-20102-00005 | D67: Sonderemedier | E67: 455841.44
A68: 2000 | B68: Nordsjællands Hospital | C68: Resultat | E68: 455841.44
A69: Samlet resultat | E69: 455841.44
A71: Diætpræperater PKU, Hjemmebehandling ekskl kreditor TolkDanmark
E72: Forbrug
A73: Firmakode | C73: Profitcenter | E73: DKK
A74: 2200 | B74: Rigshospitalet | C74: 229453201 | D74: Diæter | E74: 7435818.67
A75: Samlet resultat | E75: 7435818.67
A77: Tilskudsordninger - tænder
E78: Forbrug
A79: Firmakode | C79: Profitcenter | E79: DKK
A80: 2200 | B80: Rigshospitalet | C80: Resultat | E80: 12296040.56
A81: 2200 | B81: Rigshospitalet | C81: 226251103 | D81: $166.3 | E81: 669359.73
A82: 2200 | B82: Rigshospitalet | C82: 1000A2262517 | D82: Tilskudsordninger | E82: 11626680.83
A83: 2200 | B83: Rigshospitalet | C83: 226251700 | D83: AKK Tilskudsordn. | E83: 7221999.44
A84: 2200 | B84: Rigshospitalet | C84: 226251701 | D84: Kemoterapi | E84: 869931.28
A85: 2200 | B85: Rigshospitalet | C85: 226251702 | D85: Fokussanering | E85: 431450.32
A86: 2200 | B86: Rigshospitalet | C86: 226251703 | D86: Kæberesektioner | E86: 53411.35
A87: 2200 | B87: Rigshospitalet | C87: 226251704 | D87: Sjøgren | E87: 3049888.44
A88: Samlet resultat | E88: 12296040.56
E91: Forbrug
A92: Firmakode | C92: Profitcenter | E92: DKK
A93: 2200 | B93: Rigshospitalet | C93: 1000A | D93: Region Hovedstaden | E93: 4148476.65
A94: 2200 | B94: Rigshospitalet | C94: 1000A22 | D94: Rigshospitalet | E94: 4148476.65
A95: Samlet resultat | E95: 4148476.65 | F95: =+E95+E88 -> 16444517.21
A98: Ekstern finansieret forskning
A99: Økonomi Analyserapport | D99: Forskning
E101: Forbrug
A102: IM Funktion | B102: Firmakode | D102: Bevillingstype | E102: DKK
A103: 11001 | B103: 1200 | C103: Bispebjerg/Frederiksberg | D103: Eksterne midler | E103: 106725.18
A104: 11001 | B104: 1500 | C104: Steno Diabetes Center CPH | D104: Eksterne midler | E104: -8394.59
A105: 11001 | B105: 1900 | C105: Herlev/Gentofte Hospital | D105: Eksterne midler | E105: -2048.77
A106: 11001 | B106: 2000 | C106: Nordsjællands Hospital | D106: Eksterne midler | E106: 0
A107: 11001 | B107: 2100 | C107: Amager/Hvidovre Hospital | D107: Eksterne midler | E107: -75401.51
A108: 11001 | B108: 2200 | C108: Rigshospitalet | D108: Eksterne midler | E108: 186714.46
A109: 11001 | B109: 6100 | C109: Region Hovedst. Psykiatri | D109: Eksterne midler | E109: -63235.82
A110: 11001 | B110: Resultat | E110: 144358.95 | F110: =+E110-E109 -> 207594.77
A112: Tolke - Fremmedesprog
I114: Forbrug
A115: Profitcenter | C115: Firmakode | E115: Kreditor | G115: Artskonto | I115: DKK
A116: 1000A | B116: Region Hovedstaden | C116: 1200 | D116: Bispebjerg/Frederiksberg | E116: 9021743 | F116: TOLKDANMARK ApS | G116: 207402 | H116: Analyser med moms | I116: 1185
A117: 1000A | B117: Region Hovedstaden | C117: 1200 | D117: Bispebjerg/Frederiksberg | E117: 9021743 | F117: TOLKDANMARK ApS | G117: 207937 | H117: Tolke - Fremmedsprog | I117: 1395724.22
A118: 1000A | B118: Region Hovedstaden | C118: 1200 | D118: Bispebjerg/Frederiksberg | E118: 9021743 | F118: TOLKDANMARK ApS | G118: 207938 | H118: Tolke - Døve | I118: 24645
A119: 1000A | B119: Region Hovedstaden | C119: 1200 | D119: Bispebjerg/Frederiksberg | E119: 9021743 | F119: TOLKDANMARK ApS | G119: Resultat | I119: 1421554.22
A120: 1000A | B120: Region Hovedstaden | C120: 1300 | D120: Bornholms Hospital | E120: 9021743 | F120: TOLKDANMARK ApS | G120: 207937 | H120: Tolke - Fremmedsprog | I120: 65346.71
A121: 1000A | B121: Region Hovedstaden | C121: 1300 | D121: Bornholms Hospital | E121: 9021743 | F121: TOLKDANMARK ApS | G121: Resultat | I121: 65346.71
A122: 1000A | B122: Region Hovedstaden | C122: 1500 | D122: Steno Diabetes Center CPH | E122: 9021743 | F122: TOLKDANMARK ApS | G122: 207918 | H122: Øvrige varekøb | I122: 939.51
A123: 1000A | B123: Region Hovedstaden | C123: 1500 | D123: Steno Diabetes Center CPH | E123: 9021743 | F123: TOLKDANMARK ApS | G123: 207937 | H123: Tolke - Fremmedsprog | I123: 191205.37
A124: 1000A | B124: Region Hovedstaden | C124: 1500 | D124: Steno Diabetes Center CPH | E124: 9021743 | F124: TOLKDANMARK ApS | G124: 207938 | H124: Tolke - Døve | I124: 925
A125: 1000A | B125: Region Hovedstaden | C125: 1500 | D125: Steno Diabetes Center CPH | E125: 9021743 | F125: TOLKDANMARK ApS | G125: Resultat | I125: 193069.88
A126: 1000A | B126: Region Hovedstaden | C126: 1900 | D126: Herlev/Gentofte Hospital | E126: 9021743 | F126: TOLKDANMARK ApS | G126: 200704 | H126: Vikarudgift. ekstern | I126: 807.5
A127: 1000A | B127: Region Hovedstaden | C127: 1900 | D127: Herlev/Gentofte Hospital | E127: 9021743 | F127: TOLKDANMARK ApS | G127: 207200 | H127: Øvr beh.artikler | I127: 2529.98
A128: 1000A | B128: Region Hovedstaden | C128: 1900 | D128: Herlev/Gentofte Hospital | E128: 9021743 | F128: TOLKDANMARK ApS | G128: 207918 | H128: Øvrige varekøb | I128: 380.51
A129: 1000A | B129: Region Hovedstaden | C129: 1900 | D129: Herlev/Gentofte Hospital | E129: 9021743 | F129: TOLKDANMARK ApS | G129: 207937 | H129: Tolke - Fremmedsprog | I129: 1611220.23
A130: 1000A | B130: Region Hovedstaden | C130: 1900 | D130: Herlev/Gentofte Hospital | E130: 9021743 | F130: TOLKDANMARK ApS | G130: 207938 | H130: Tolke - Døve | I130: 94396.31
A131: 1000A | B131: Region Hovedstaden | C131: 1900 | D131: Herlev/Gentofte Hospital | E131: 9021743 | F131: TOLKDANMARK ApS | G131: 207957 | H131: Vaskeriydelser | I131: 3539.29
A132: 1000A | B132: Region Hovedstaden | C132: 1900 | D132: Herlev/Gentofte Hospital | E132: 9021743 | F132: TOLKDANMARK ApS | G132: 225001 | H132: Varekøb | I132: 3635
A133: 1000A | B133: Region Hovedstaden | C133: 1900 | D133: Herlev/Gentofte Hospital | E133: 9021743 | F133: TOLKDANMARK ApS | G133: 230021 | H133: Varekøb | I133: 25610
A134: 1000A | B134: Region Hovedstaden | C134: 1900 | D134: Herlev/Gentofte Hospital | E134: 9021743 | F134: TOLKDANMARK ApS | G134: Resultat | I134: 1742118.82
A135: 1000A | B135: Region Hovedstaden | C135: 2000 | D135: Nordsjællands Hospital | E135: 9021743 | F135: TOLKDANMARK ApS | G135: 207937 | H135: Tolke - Fremmedsprog | I135: 1019332.7
A136: 1000A | B136: Region Hovedstaden | C136: 2000 | D136: Nordsjællands Hospital | E136: 9021743 | F136: TOLKDANMARK ApS | G136: 207938 | H136: Tolke - Døve | I136: 29062.5
A137: 1000A | B137: Region Hovedstaden | C137: 2000 | D137: Nordsjællands Hospital | E137: 9021743 | F137: TOLKDANMARK ApS | G137: 225005 | H137: Konsulenter | I137: 2298
A138: 1000A | B138: Region Hovedstaden | C138: 2000 | D138: Nordsjællands Hospital | E138: 9021743 | F138: TOLKDANMARK ApS | G138: Resultat | I138: 1050693.2
A139: 1000A | B139: Region Hovedstaden | C139: 2100 | D139: Amager/Hvidovre Hospital | E139: 9021743 | F139: TOLKDANMARK ApS | G139: 207937 | H139: Tolke - Fremmedsprog | I139: 1814670.83
A140: 1000A | B140: Region Hovedstaden | C140: 2100 | D140: Amager/Hvidovre Hospital | E140: 9021743 | F140: TOLKDANMARK ApS | G140: 207938 | H140: Tolke - Døve | I140: 39025
A141: 1000A | B141: Region Hovedstaden | C141: 2100 | D141: Amager/Hvidovre Hospital | E141: 9021743 | F141: TOLKDANMARK ApS | G141: 225005 | H141: Konsulenter | I141: 0
A142: 1000A | B142: Region Hovedstaden | C142: 2100 | D142: Amager/Hvidovre Hospital | E142: 9021743 | F142: TOLKDANMARK ApS | G142: Resultat | I142: 1853695.83
A143: 1000A | B143: Region Hovedstaden | C143: 2200 | D143: Rigshospitalet | E143: 9021743 | F143: TOLKDANMARK ApS | G143: 207140 | H143: Andre behandling sær | I143: 503.97
A144: 1000A | B144: Region Hovedstaden | C144: 2200 | D144: Rigshospitalet | E144: 9021743 | F144: TOLKDANMARK ApS | G144: 207200 | H144: Øvr beh.artikler | I144: -30
A145: 1000A | B145: Region Hovedstaden | C145: 2200 | D145: Rigshospitalet | E145: 9021743 | F145: TOLKDANMARK ApS | G145: 207452 | H145: Forbrugsvarer | I145: 380.51
A146: 1000A | B146: Region Hovedstaden | C146: 2200 | D146: Rigshospitalet | E146: 9021743 | F146: TOLKDANMARK ApS | G146: 207900 | H146: Forplejning varekøb | I146: 65
A147: 1000A | B147: Region Hovedstaden | C147: 2200 | D147: Rigshospitalet | E147: 9021743 | F147: TOLKDANMARK ApS | G147: 207918 | H147: Øvrige varekøb | I147: 380.51
A148: 1000A | B148: Region Hovedstaden | C148: 2200 | D148: Rigshospitalet | E148: 9021743 | F148: TOLKDANMARK ApS | G148: 207931 | H148: Donorer/analyse | I148: 565.7
A149: 1000A | B149: Region Hovedstaden | C149: 2200 | D149: Rigshospitalet | E149: 9021743 | F149: TOLKDANMARK ApS | G149: 207937 | H149: Tolke - Fremmedsprog | I149: 2979081.88
A150: 1000A | B150: Region Hovedstaden | C150: 2200 | D150: Rigshospitalet | E150: 9021743 | F150: TOLKDANMARK ApS | G150: 207938 | H150: Tolke - Døve | I150: 193190.5
A151: 1000A | B151: Region Hovedstaden | C151: 2200 | D151: Rigshospitalet | E151: 9021743 | F151: TOLKDANMARK ApS | G151: 207957 | H151: Vaskeriydelser | I151: 990
A152: 1000A | B152: Region Hovedstaden | C152: 2200 | D152: Rigshospitalet | E152: 9021743 | F152: TOLKDANMARK ApS | G152: 230021 | H152: Varekøb | I152: 8590
A153: 1000A | B153: Region Hovedstaden | C153: 2200 | D153: Rigshospitalet | E153: 9021743 | F153: TOLKDANMARK ApS | G153: 245501 | H153: Inventar mv | I153: 3380
A154: 1000A | B154: Region Hovedstaden | C154: 2200 | D154: Rigshospitalet | E154: 9021743 | F154: TOLKDANMARK ApS | G154: 250002 | H154: Entreprenør Håndværk | I154: 5397.5
A155: 1000A | B155: Region Hovedstaden | C155: 2200 | D155: Rigshospitalet | E155: 9021743 | F155: TOLKDANMARK ApS | G155: Resultat | I155: 3192495.57
A156: 1000A | B156: Region Hovedstaden | C156: Resultat | I156: 9518974.23
I158: Forbrug
A159: Profitcenter | C159: Firmakode | E159: Artskonto | G159: Kreditor | I159: DKK
A160: 1000A | B160: Region Hovedstaden | C160: 1200 | D160: Bispebjerg/Frederiksberg | E160: 207937 | F160: Tolke - Fremmedsprog | G160: 9016568 | H160: Tolkegruppen Oversættergruppen P/S | I160: 6654.01
A161: 1000A | B161: Region Hovedstaden | C161: 1200 | D161: Bispebjerg/Frederiksberg | E161: 207937 | F161: Tolke - Fremmedsprog | G161: 9029908 | H161: Emilie Lange Tolkning | I161: 449.78
A162: 1000A | B162: Region Hovedstaden | C162: 1200 | D162: Bispebjerg/Frederiksberg | E162: Resultat | I162: 7103.79
A163: 1000A | B163: Region Hovedstaden | C163: 1900 | D163: Herlev/Gentofte Hospital | E163: 207937 | F163: Tolke - Fremmedsprog | G163: 9010629 | H163: INFOCARE SERVICE A/S | I163: 1280
A164: 1000A | B164: Region Hovedstaden | C164: 1900 | D164: Herlev/Gentofte Hospital | E164: 207937 | F164: Tolke - Fremmedsprog | G164: 9029908 | H164: Emilie Lange Tolkning | I164: 513.5
A165: 1000A | B165: Region Hovedstaden | C165: 1900 | D165: Herlev/Gentofte Hospital | E165: 207937 | F165: Tolke - Fremmedsprog | G165: 9029998 | H165: ViTolker ApS | I165: 499
A166: 1000A | B166: Region Hovedstaden | C166: 1900 | D166: Herlev/Gentofte Hospital | E166: Resultat | I166: 2292.5
A167: 1000A | B167: Region Hovedstaden | C167: 2000 | D167: Nordsjællands Hospital | E167: 207937 | F167: Tolke - Fremmedsprog | G167: 9006876 | H167: DANSK FLYGTNINGEHJÆLP | I167: 3854.75
A168: 1000A | B168: Region Hovedstaden | C168: 2000 | D168: Nordsjællands Hospital | E168: 207937 | F168: Tolke - Fremmedsprog | G168: 9036066 | H168: Dansk Tolkeservice | I168: 850
A169: 1000A | B169: Region Hovedstaden | C169: 2000 | D169: Nordsjællands Hospital | E169: Resultat | I169: 4704.75
A170: 1000A | B170: Region Hovedstaden | C170: 2100 | D170: Amager/Hvidovre Hospital | E170: 207937 | F170: Tolke - Fremmedsprog | G170: 9029908 | H170: Emilie Lange Tolkning | I170: 336.5
A171: 1000A | B171: Region Hovedstaden | C171: 2100 | D171: Amager/Hvidovre Hospital | E171: 207937 | F171: Tolke - Fremmedsprog | G171: 9029998 | H171: ViTolker ApS | I171: 499
A172: 1000A | B172: Region Hovedstaden | C172: 2100 | D172: Amager/Hvidovre Hospital | E172: 207937 | F172: Tolke - Fremmedsprog | G172: 9030897 | H172: Helene Rantzau | I172: 2630
A173: 1000A | B173: Region Hovedstaden | C173: 2100 | D173: Amager/Hvidovre Hospital | E173: Resultat | I173: 3465.5
A174: 1000A | B174: Region Hovedstaden | C174: 2200 | D174: Rigshospitalet | E174: 207937 | F174: Tolke - Fremmedsprog | G174: 9029998 | H174: ViTolker ApS | I174: 0
A175: 1000A | B175: Region Hovedstaden | C175: 2200 | D175: Rigshospitalet | E175: 207937 | F175: Tolke - Fremmedsprog | G175: 9035446 | H175: altiva | I175: 1937
A176: 1000A | B176: Region Hovedstaden | C176: 2200 | D176: Rigshospitalet | E176: Resultat | I176: 1937
A177: 1000A | B177: Region Hovedstaden | C177: Resultat | I177: 19503.54 | J177: =+I177+I156 -> 9538477.77
A179: Betalinger fra Staten til finansiering af aktivitet
M180: Forbrug
A181: Regnskabsår | B181: Profitcenter | D181: PSP-element | F181: Bilagstekst | G181: Debitor | I181: Artskonto | K181: Bevillingstype | L181: Bilagsnummer HB | M181: DKK
A182: 2021 | B182: 1000A22 | C182: Rigshospitalet | D182: F-22100-37 | E182: Nationalt Videnscenter for Demens | F182: Sundhedsministeriet F-22100-37 3-4KVT21 | G182: 2000160 | H182: Sundhedsministeriet | I182: Statslige midler | J182: 405501 | K182: Eksterne midler | L182: 1700000692 | M182: -4200000
A183: 2021 | B183: 1000A22 | C183: Rigshospitalet | D183: F-22100-37 | E183: Nationalt Videnscenter for Demens | F183: Sundhedsministeriet F-22100-37 AUG 21 | G183: 2000160 | H183: Sundhedsministeriet | I183: Statslige midler | J183: 405501 | K183: Eksterne midler | L183: 1700000534 | M183: -4200000
A184: 2021 | B184: 1000A22 | C184: Rigshospitalet | D184: F-22100-50 | E184: Frivillige tryghedspersoner til menneske | F184: Sundhedsministeriet F-22100-05 | G184: 2000160 | H184: Sundhedsministeriet | I184: Statslige midler | J184: 405501 | K184: Eksterne midler | L184: 1700000757 | M184: -1800000
A185: 2021 | B185: 1000A22 | C185: Rigshospitalet | D185: F-22100-51 | E185: Udbrede viden om borgere med svære sympt | F185: Sundhedsministeriet | G185: 2000160 | H185: Sundhedsministeriet | I185: Statslige midler | J185: 405501 | K185: Eksterne midler | L185: 1700000617 | M185: -500000
A186: 2021 | B186: 1000A22 | C186: Rigshospitalet | D186: F-22100-53 | E186: Validering og udrulning af værktøj til s | F186: SUNDHEDSMINISTERIET | G186: 2000160 | H186: Sundhedsministeriet | I186: Statslige midler | J186: 405501 | K186: Eksterne midler | L186: 1700000915 | M186: -2500000
A187: 2021 | B187: 1000A22 | C187: Rigshospitalet | D187: F-22100-53 | E187: Validering og udrulning af værktøj til s | F187: Sundhedsministeriet | G187: 2000160 | H187: Sundhedsministeriet | I187: Statslige midler | J187: 405501 | K187: Eksterne midler | L187: 1700000618 | M187: -2000000
A188: 2021 | B188: 1000A22 | C188: Rigshospitalet | D188: F-22105-15 | E188: CCC: Biotek Programmet | F188: BIOTEK midler 2. kvt. 2021 | G188: # | H188: Ikke allokeret | I188: Øv.offentlige kilder | J188: 405503 | K188: Eksterne midler | L188: 200005275 | M188: -223539 | N188: biotek
A189: 2021 | B189: 1000A22 | C189: Rigshospitalet | D189: F-22105-15 | E189: CCC: Biotek Programmet | F189: BIOTEK midler 3. kvt. 2021 | G189: # | H189: Ikke allokeret | I189: Øv.offentlige kilder | J189: 405503 | K189: Eksterne midler | L189: 200007444 | M189: -223539
A190: 2021 | B190: 1000A22 | C190: Rigshospitalet | D190: F-22105-15 | E190: CCC: Biotek Programmet | F190: Sundheds- og Ældreministieriet, Peter Garred | G190: # | H190: Ikke allokeret | I190: Statslige midler | J190: 405501 | K190: Eksterne midler | L190: 200001124 | M190: -223539
A191: 2021 | B191: 1000A22 | C191: Rigshospitalet | D191: F-22150-05 | E191: CCC: Biotek Programmet | F191: BIOTEK midler 2. kvt. 2021 | G191: # | H191: Ikke allokeret | I191: Øv.offentlige kilder | J191: 405503 | K191: Eksterne midler | L191: 200005275 | M191: -353920
A192: 2021 | B192: 1000A22 | C192: Rigshospitalet | D192: F-22150-05 | E192: CCC: Biotek Programmet | F192: BIOTEK midler 3. kvt. 2021 | G192: # | H192: Ikke allokeret | I192: Øv.offentlige kilder | J192: 405503 | K192: Eksterne midler | L192: 200007444 | M192: -353920
A193: 2021 | B193: 1000A22 | C193: Rigshospitalet | D193: F-22150-05 | E193: CCC: Biotek Programmet | F193: Sundheds- og Ældreministieriet, Jens F. Rehfeld | G193: # | H193: Ikke allokeret | I193: Statslige midler | J193: 405501 | K193: Eksterne midler | L193: 200001124 | M193: -353920
A194: 2021 | B194: 1000A22 | C194: Rigshospitalet | D194: F-23111-02 | E194: Biotek Programmet | F194: BIOTEK midler 2. kvt. 2021 | G194: # | H194: Ikke allokeret | I194: Øv.offentlige kilder | J194: 405503 | K194: Eksterne midler | L194: 200005275 | M194: -139335
A195: 2021 | B195: 1000A22 | C195: Rigshospitalet | D195: F-23111-02 | E195: Biotek Programmet | F195: BIOTEK midler 3. kvt. 2021 | G195: # | H195: Ikke allokeret | I195: Øv.offentlige kilder | J195: 405503 | K195: Eksterne midler | L195: 200007444 | M195: -139335
A196: 2021 | B196: 1000A22 | C196: Rigshospitalet | D196: F-23111-02 | E196: Biotek Programmet | F196: Sundheds- og Ældreministieriet, Peter Ø. Jensen | G196: # | H196: Ikke allokeret | I196: Statslige midler | J196: 405501 | K196: Eksterne midler | L196: 200001124 | M196: -139335
A197: 2021 | B197: 1000A22 | C197: Rigshospitalet | D197: F-23386-11 | E197: Biotekbevillingen | F197: BIOTEK midler 2. kvt. 2021 | G197: # | H197: Ikke allokeret | I197: Øv.offentlige kilder | J197: 405503 | K197: Eksterne midler | L197: 200005275 | M197: -197665
A198: 2021 | B198: 1000A22 | C198: Rigshospitalet | D198: F-23386-11 | E198: Biotekbevillingen | F198: BIOTEK midler 3. kvt. 2021 | G198: # | H198: Ikke allokeret | I198: Øv.offentlige kilder | J198: 405503 | K198: Eksterne midler | L198: 200007444 | M198: -197665
A199: 2021 | B199: 1000A22 | C199: Rigshospitalet | D199: F-23386-11 | E199: Biotekbevillingen | F199: Sundheds- og Ældreministieriet, Claus H. Nielsen | G199: # | H199: Ikke allokeret | I199: Statslige midler | J199: 405501 | K199: Eksterne midler | L199: 200001124 | M199: -197665
A200: 2021 | B200: 1000A22 | C200: Rigshospitalet | D200: F-23712-01 | E200: Cancer invasion og ekstracellulær proteo | F200: BIOTEK midler 2. kvt. 2021 | G200: # | H200: Ikke allokeret | I200: Øv.offentlige kilder | J200: 405503 | K200: Eksterne midler | L200: 200005275 | M200: -594262
A201: 2021 | B201: 1000A22 | C201: Rigshospitalet | D201: F-23712-01 | E201: Cancer invasion og ekstracellulær proteo | F201: BIOTEK midler 3. kvt. 2021 | G201: # | H201: Ikke allokeret | I201: Øv.offentlige kilder | J201: 405503 | K201: Eksterne midler | L201: 200007444 | M201: -594262
A202: 2021 | B202: 1000A22 | C202: Rigshospitalet | D202: F-23712-01 | E202: Cancer invasion og ekstracellulær proteo | F202: Sundheds- og Ældreministieriet, Niels Behrendt | G202: # | H202: Ikke allokeret | I202: Statslige midler | J202: 405501 | K202: Eksterne midler | L202: 200001124 | M202: -594262
A203: 2021 | B203: 1000A22 | C203: Rigshospitalet | D203: F-22150-06 | E203: BioTek programmet. Af | F203: BIOTEK midler 2. kvt. 2021 | G203: # | H203: Ikke allokeret | I203: Øv.offentlige kilder | J203: 405503 | K203: Eksterne midler | L203: 200005275 | M203: 1725000
A204: 2021 | B204: 1000A22 | C204: Rigshospitalet | D204: F-22150-06 | E204: BioTek programmet. Af | F204: BIOTEK midler 3. kvt. 2021 | G204: # | H204: Ikke allokeret | I204: Statslige midler | J204: 405501 | K204: Eksterne midler | L204: 200007444 | M204: 1725000
A205: 2021 | B205: 1000A22 | C205: Rigshospitalet | D205: F-22150-06 | E205: BioTek programmet. Af | F205: Sundhedsministeriet BIOTEKNOLOGI | G205: 6000449 | H205: Uanbringelige poster | I205: Statslige midler | J205: 405501 | K205: Eksterne midler | L205: 200007419 | M205: -1725000
A206: 2021 | B206: 1000A22 | C206: Rigshospitalet | D206: F-22150-06 | E206: BioTek programmet. Af | F206: Sundhedsministeriet BIOTEKNOLOGISK 4.KV21 | G206: 2000160 | H206: Sundhedsministeriet | I206: Statslige midler | J206: 405501 | K206: Eksterne midler | L206: 1700000930 | M206: -1725000
A207: 2021 | B207: 1000A22 | C207: Rigshospitalet | D207: F-22150-06 | E207: BioTek programmet. Af | F207: Sundhedsministeriet Bioteknologis 2 kvt. | G207: 2000160 | H207: Sundhedsministeriet | I207: Øv.offentlige kilder | J207: 405503 | K207: Eksterne midler | L207: 1700000432 | M207: -1725000
A208: 2021 | B208: 1000A22 | C208: Rigshospitalet | D208: F-22190-02 | E208: PRION-KONTO. | F208: Sundheds og Ældreministeriet - CR 1. kvt 2021 | G208: # | H208: Ikke allokeret | I208: Statslige midler | J208: 405501 | K208: Eksterne midler | L208: 200006660 | M208: -650000 | N208: Creutzfeld
A209: 2021 | B209: 1000A22 | C209: Rigshospitalet | D209: F-22190-02 | E209: PRION-KONTO. | F209: Sundhedsministeriet CREUTZFELDT JAK 4.KV21 | G209: 2000160 | H209: Sundhedsministeriet | I209: Statslige midler | J209: 405501 | K209: Eksterne midler | L209: 1700000929 | M209: -650000
A210: 2021 | B210: 1000A22 | C210: Rigshospitalet | D210: F-22190-02 | E210: PRION-KONTO. | F210: Sundhedsministeriet CREUTZFELDT JAKOB Q3-21 | G210: 6000449 | H210: Uanbringelige poster | I210: Statslige midler | J210: 405501 | K210: Eksterne midler | L210: 200008794 | M210: -650000
A211: 2021 | B211: 1000A22 | C211: Rigshospitalet | D211: F-22190-02 | E211: PRION-KONTO. | F211: Sundhedsministeriet/2kvt./Jakob Creutzfeldt | G211: 2000160 | H211: Sundhedsministeriet | I211: Statslige midler | J211: 405501 | K211: Eksterne midler | L211: 1700000582 | M211: -650000
A212: 2021 | B212: 1000A22 | C212: Rigshospitalet | D212: F-22171-26 | E212: Aktiviteter ved Forum for Mænds Sundhed | F212: SUNDHEDSSTYRELSEN/Svend Aage Madsen | G212: 2000210 | H212: Sundhedsstyrelsen | I212: Øv.offentlige kilder | J212: 405503 | K212: Eksterne midler | L212: 1700000723 | M212: -1000000 | N212: Mænds sundhed
A213: 2021 | B213: 1000A22 | C213: Rigshospitalet | D213: F-22171-26 | E213: Aktiviteter ved Forum for Mænds Sundhed | F213: Sundhedsstyrelsen jan 2021 - Svend Aaage Madsen | G213: # | H213: Ikke allokeret | I213: Statslige midler | J213: 405501 | K213: Eksterne midler | L213: 200000879 | M213: -1000000
A214: 2021 | B214: 1000A22 | C214: Rigshospitalet | D214: F-22348-16 | E214: Videncenter for Voldtægtsofre | F214: Sundheds og Ældreministeriet - Bent Ottesen | G214: # | H214: Ikke allokeret | I214: Statslige midler | J214: 405501 | K214: Eksterne midler | L214: 200000578 | M214: -3411134.24 | N214: Voldtægtsofre
A215: 2021 | B215: 1000A22 | C215: Rigshospitalet | D215: F-22348-18 | E215: Seksuelt misbrugte børn | F215: Sundhedsministeriet F-22348-18 | G215: 2000160 | H215: Sundhedsministeriet | I215: Statslige midler | J215: 405501 | K215: Eksterne midler | L215: 1700001076 | M215: -2000000 | N215: seksuelt misbrugte børn
... 355 more rows

Sheet 2019 (hidden)
A1: Patientindtægter
G2: Forbrug | H2: Forbrug | I2: Forbrug | J2: Forbrug | K2: Forbrug
F3: IM Art | G3: 72 | H3: 76 | I3: 78 | J3: 79 | K3: Samlet resultat
A4: Firmakode | C4: IM Gruppering | E4: Artskonto | G4: DKK | H4: DKK | I4: DKK | J4: DKK | K4: DKK
A5: 1200 | B5: Bispebjerg/Frederiksberg | C5: Betalinger - andre r | D5: 810 | E5: Hovedfunktion DRG | F5: 400411 | I5: -9631250 | K5: -9631250
A6: 1200 | B6: Bispebjerg/Frederiksberg | C6: Betalinger - andre r | D6: 810 | E6: Højt Spec. mark up | F6: 400113 | I6: 174629 | K6: 174629
A7: 1200 | B7: Bispebjerg/Frederiksberg | C7: Betalinger - andre r | D7: 810 | E7: Højt special.funktio | F7: 400101 | I7: -7706704 | K7: -7706704
A8: 1200 | B8: Bispebjerg/Frederiksberg | C8: Betalinger - andre r | D8: 810 | E8: Reg.- og hoved funk | F8: 400420 | I8: -83871085 | K8: -83871085
A9: 1200 | B9: Bispebjerg/Frederiksberg | C9: Betalinger - andre r | D9: 810 | E9: Resultat | I9: -101034410 | K9: -101034410
A10: 1200 | B10: Bispebjerg/Frederiksberg | C10: Betalinger – private | D10: 820 | E10: Beh.udl.statsborgere | F10: 402813 | G10: -9247803.28 | K10: -9247803.28
A11: 1200 | B11: Bispebjerg/Frederiksberg | C11: Betalinger – private | D11: 820 | E11: Resultat | G11: -9247803.28 | K11: -9247803.28
A12: 1200 | B12: Bispebjerg/Frederiksberg | C12: Resultat | G12: -9247803.28 | I12: -101034410 | K12: -110282213.3
A13: 1300 | B13: Bornholms Hospital | C13: Betalinger - andre r | D13: 810 | E13: Reg.- og hoved funk | F13: 400420 | I13: -5601978 | K13: -5601978
A14: 1300 | B14: Bornholms Hospital | C14: Betalinger - andre r | D14: 810 | E14: Regionsfunktion DRG | F14: 400401 | I14: -832756 | K14: -832756
A15: 1300 | B15: Bornholms Hospital | C15: Betalinger - andre r | D15: 810 | E15: Resultat | I15: -6434734 | K15: -6434734
A16: 1300 | B16: Bornholms Hospital | C16: Betalinger – private | D16: 820 | E16: Beh.udl.statsborgere | F16: 402813 | G16: -1935776.14 | K16: -1935776.14
A17: 1300 | B17: Bornholms Hospital | C17: Betalinger – private | D17: 820 | E17: Resultat | G17: -1935776.14 | K17: -1935776.14
A18: 1300 | B18: Bornholms Hospital | C18: Resultat | G18: -1935776.14 | I18: -6434734 | K18: -8370510.14
A19: 1500 | B19: Steno Diabetes Center CPH | C19: Betalinger - andre r | D19: 810 | E19: Hovedfunktion DRG | F19: 400411 | I19: -5135216 | K19: -5135216
A20: 1500 | B20: Steno Diabetes Center CPH | C20: Betalinger - andre r | D20: 810 | E20: Reg.- og hoved funk | F20: 400420 | I20: -4348762 | K20: -4348762
A21: 1500 | B21: Steno Diabetes Center CPH | C21: Betalinger - andre r | D21: 810 | E21: Resultat | I21: -9483978 | K21: -9483978
A22: 1500 | B22: Steno Diabetes Center CPH | C22: Resultat | I22: -9483978 | K22: -9483978
A23: 1900 | B23: Herlev/Gentofte Hospital | C23: Betalinger - andre r | D23: 810 | E23: Hovedfunktion DRG | F23: 400411 | I23: 3305464 | K23: 3305464
A24: 1900 | B24: Herlev/Gentofte Hospital | C24: Betalinger - andre r | D24: 810 | E24: Højt Spec. mark up | F24: 400113 | I24: 5409441 | K24: 5409441
A25: 1900 | B25: Herlev/Gentofte Hospital | C25: Betalinger - andre r | D25: 810 | E25: Højt special.funktio | F25: 400101 | I25: -135539805 | K25: -135539805
A26: 1900 | B26: Herlev/Gentofte Hospital | C26: Betalinger - andre r | D26: 810 | E26: Reg.- og hoved funk | F26: 400420 | I26: -99541134 | K26: -99541134
A27: 1900 | B27: Herlev/Gentofte Hospital | C27: Betalinger - andre r | D27: 810 | E27: Resultat | I27: -226366034 | K27: -226366034
A28: 1900 | B28: Herlev/Gentofte Hospital | C28: Betalinger – private | D28: 820 | E28: Beh.udl.statsborgere | F28: 402813 | G28: -6210216.67 | K28: -6210216.67
A29: 1900 | B29: Herlev/Gentofte Hospital | C29: Betalinger – private | D29: 820 | E29: Resultat | G29: -6210216.67 | K29: -6210216.67
A30: 1900 | B30: Herlev/Gentofte Hospital | C30: Resultat | G30: -6210216.67 | I30: -226366034 | K30: -232576250.7
A31: 2000 | B31: Nordsjællands Hospital | C31: Betalinger - andre r | D31: 810 | E31: Ambulant behandling | F31: 400103 | I31: -948598 | K31: -948598
A32: 2000 | B32: Nordsjællands Hospital | C32: Betalinger - andre r | D32: 810 | E32: Højt special.funktio | F32: 400101 | I32: -17347365 | K32: -17347365
A33: 2000 | B33: Nordsjællands Hospital | C33: Betalinger - andre r | D33: 810 | E33: Reg.- og hoved funk | F33: 400420 | I33: -18538551 | K33: -18538551
A34: 2000 | B34: Nordsjællands Hospital | C34: Betalinger - andre r | D34: 810 | E34: Sengedage - Regioner | F34: 400102 | I34: -6639677 | K34: -6639677
A35: 2000 | B35: Nordsjællands Hospital | C35: Betalinger - andre r | D35: 810 | E35: Resultat | I35: -43474191 | K35: -43474191
A36: 2000 | B36: Nordsjællands Hospital | C36: Betalinger – private | D36: 820 | E36: Beh.udl.statsborgere | F36: 402813 | G36: -4069591.91 | K36: -4069591.91
A37: 2000 | B37: Nordsjællands Hospital | C37: Betalinger – private | D37: 820 | E37: Resultat | G37: -4069591.91 | K37: -4069591.91
A38: 2000 | B38: Nordsjællands Hospital | C38: Resultat | G38: -4069591.91 | I38: -43474191 | K38: -47543782.91
A39: 2100 | B39: Amager/Hvidovre Hospital | C39: Betalinger - andre r | D39: 810 | E39: Hovedfunktion DRG | F39: 400411 | I39: -5608234 | K39: -5608234
A40: 2100 | B40: Amager/Hvidovre Hospital | C40: Betalinger - andre r | D40: 810 | E40: Højt Spec. mark up | F40: 400113 | I40: 1392157.52 | K40: 1392157.52
A41: 2100 | B41: Amager/Hvidovre Hospital | C41: Betalinger - andre r | D41: 810 | E41: Højt special.funktio | F41: 400101 | I41: -41331056 | K41: -41331056
A42: 2100 | B42: Amager/Hvidovre Hospital | C42: Betalinger - andre r | D42: 810 | E42: Reg.- og hoved funk | F42: 400420 | I42: -84672575 | K42: -84672575
A43: 2100 | B43: Amager/Hvidovre Hospital | C43: Betalinger - andre r | D43: 810 | E43: Resultat | I43: -130219707.5 | K43: -130219707.5
A44: 2100 | B44: Amager/Hvidovre Hospital | C44: Betalinger – private | D44: 820 | E44: Beh.udl.statsborgere | F44: 402813 | G44: -5326917.27 | K44: -5326917.27
A45: 2100 | B45: Amager/Hvidovre Hospital | C45: Betalinger – private | D45: 820 | E45: Resultat | G45: -5326917.27 | K45: -5326917.27
A46: 2100 | B46: Amager/Hvidovre Hospital | C46: Resultat | G46: -5326917.27 | I46: -130219707.5 | K46: -135546624.8
A47: 2200 | B47: Rigshospitalet | C47: Betalinger - andre r | D47: 810 | E47: Ambulant behandling | F47: 400103 | I47: 392079.89 | K47: 392079.89
A48: 2200 | B48: Rigshospitalet | C48: Betalinger - andre r | D48: 810 | E48: Analyser, højt spec. | F48: 402101 | I48: -36216 | K48: -36216
A49: 2200 | B49: Rigshospitalet | C49: Betalinger - andre r | D49: 810 | E49: Beh.art, hoved/regio | F49: 402602 | I49: 53912 | K49: 53912
A50: 2200 | B50: Rigshospitalet | C50: Betalinger - andre r | D50: 810 | E50: Beh.art, højt spec. | F50: 402601 | I50: -20437 | K50: -20437
A51: 2200 | B51: Rigshospitalet | C51: Betalinger - andre r | D51: 810 | E51: Højt Spec. beh. | F51: 400130 | I51: 405974 | K51: 405974
A52: 2200 | B52: Rigshospitalet | C52: Betalinger - andre r | D52: 810 | E52: Højt Spec. mark up | F52: 400123 | I52: -3336649 | K52: -3336649
A53: 2200 | B53: Rigshospitalet | C53: Betalinger - andre r | D53: 810 | E53: Højt Spec. mark up | F53: 400113 | I53: -223634067.4 | K53: -223634067.4
A54: 2200 | B54: Rigshospitalet | C54: Betalinger - andre r | D54: 810 | E54: Højt Spec. medicin | F54: 400131 | I54: -102688401.7 | K54: -102688401.7
A55: 2200 | B55: Rigshospitalet | C55: Betalinger - andre r | D55: 810 | E55: Højt Spec. reg tidl | F55: 400120 | I55: -7703897.44 | K55: -7703897.44
A56: 2200 | B56: Rigshospitalet | C56: Betalinger - andre r | D56: 810 | E56: Højt special.funktio | F56: 400101 | I56: -1646615588 | K56: -1646615588
A57: 2200 | B57: Rigshospitalet | C57: Betalinger - andre r | D57: 810 | E57: Medicin, hoved/regio | F57: 402302 | I57: -70249359.96 | K57: -70249359.96
A58: 2200 | B58: Rigshospitalet | C58: Betalinger - andre r | D58: 810 | E58: Medicin, højt spec. | F58: 402301 | I58: 1398321.46 | K58: 1398321.46
A59: 2200 | B59: Rigshospitalet | C59: Betalinger - andre r | D59: 810 | E59: Operationer | F59: 400104 | I59: 2544 | K59: 2544
A60: 2200 | B60: Rigshospitalet | C60: Betalinger - andre r | D60: 810 | E60: Reg.- og hoved funk | F60: 400420 | I60: -189855004 | K60: -189855004
A61: 2200 | B61: Rigshospitalet | C61: Betalinger - andre r | D61: 810 | E61: Reg.- og hoved funk | F61: 400430 | I61: 925286 | K61: 925286
A62: 2200 | B62: Rigshospitalet | C62: Betalinger - andre r | D62: 810 | E62: Sengedage - Regioner | F62: 400102 | I62: -507429.62 | K62: -507429.62
A63: 2200 | B63: Rigshospitalet | C63: Betalinger - andre r | D63: 810 | E63: Øvrige ydelser | F63: 400170 | I63: -11320 | K63: -11320
A64: 2200 | B64: Rigshospitalet | C64: Betalinger - andre r | D64: 810 | E64: Resultat | I64: -2241480253 | K64: -2241480253
A65: 2200 | B65: Rigshospitalet | C65: Betalinger – private | D65: 820 | E65: Beh.udl.statsborgere | F65: 402813 | G65: -2671582 | K65: -2671582
A66: 2200 | B66: Rigshospitalet | C66: Betalinger – private | D66: 820 | E66: Resultat | G66: -2671582 | K66: -2671582
A67: 2200 | B67: Rigshospitalet | C67: Resultat | G67: -2671582 | I67: -2241480253 | K67: -2244151835
A68: 6100 | B68: Region Hovedst. Psykiatri | C68: Betalinger - andre r | D68: 810 | E68: Ambulant behandling | F68: 400103 | I68: -7612188 | K68: -7612188
A69: 6100 | B69: Region Hovedst. Psykiatri | C69: Betalinger - andre r | D69: 810 | E69: Eft.reg.senged.Regio | F69: 400180 | I69: -1350492 | K69: -1350492
A70: 6100 | B70: Region Hovedst. Psykiatri | C70: Betalinger - andre r | D70: 810 | E70: Højt special.funktio | F70: 400101 | I70: -31862927 | K70: -31862927
A71: 6100 | B71: Region Hovedst. Psykiatri | C71: Betalinger - andre r | D71: 810 | E71: Sengedage - Regioner | F71: 400102 | I71: -51212635 | K71: -51212635
A72: 6100 | B72: Region Hovedst. Psykiatri | C72: Betalinger - andre r | D72: 810 | E72: Resultat | I72: -92038242 | K72: -92038242
A73: 6100 | B73: Region Hovedst. Psykiatri | C73: Betalinger – private | D73: 820 | E73: Ambulante behandling | F73: 400111 | J73: -31178 | K73: -31178
A74: 6100 | B74: Region Hovedst. Psykiatri | C74: Betalinger – private | D74: 820 | E74: Sengedage - Andre | F74: 400110 | J74: -1366925 | K74: -1366925
A75: 6100 | B75: Region Hovedst. Psykiatri | C75: Betalinger – private | D75: 820 | E75: Resultat | J75: -1398103 | K75: -1398103
A76: 6100 | B76: Region Hovedst. Psykiatri | C76: Betalinger – staten | D76: 840 | E76: Ambulante behandling | F76: 400107 | H76: -7496 | K76: -7496
A77: 6100 | B77: Region Hovedst. Psykiatri | C77: Betalinger – staten | D77: 840 | E77: Eft.reg.senged.Stat | F77: 400186 | H77: 29024 | K77: 29024
A78: 6100 | B78: Region Hovedst. Psykiatri | C78: Betalinger – staten | D78: 840 | E78: Efterreg.amb. behand | F78: 400187 | H78: 1815 | K78: 1815
A79: 6100 | B79: Region Hovedst. Psykiatri | C79: Betalinger – staten | D79: 840 | E79: Resultat | H79: 23343 | K79: 23343
A80: 6100 | B80: Region Hovedst. Psykiatri | C80: Resultat | H80: 23343 | I80: -92038242 | J80: -1398103 | K80: -93413002
A81: Samlet resultat | G81: -29461887.27 | H81: 23343 | I81: -2850531549 | J81: -1398103 | K81: -2881368197
A83: Tolke - Fremmedesprog
I84: Forbrug
A85: Regnskabsår | B85: Profitcenter | D85: IM Gruppering | E85: Artskonto | G85: Kreditor | I85: DKK
A86: 2019 | B86: 1000A | C86: Region Hovedstaden | D86: Materiale- og aktivi | E86: Tolke - Fremmedsprog | F86: 207937 | G86: 7000011 | H86: Engangskreditor - udlæg | I86: 382
A87: 2019 | B87: 1000A | C87: Region Hovedstaden | D87: Materiale- og aktivi | E87: Tolke - Fremmedsprog | F87: 207937 | G87: 9000317 | H87: SAHVA A/S | I87: 917.73
A88: 2019 | B88: 1000A | C88: Region Hovedstaden | D88: Materiale- og aktivi | E88: Tolke - Fremmedsprog | F88: 207937 | G88: 9000401 | H88: Dantaxi 4x48 F.m.b.a. | I88: 1725.6
A89: 2019 | B89: 1000A | C89: Region Hovedstaden | D89: Materiale- og aktivi | E89: Tolke - Fremmedsprog | F89: 207937 | G89: 9000566 | H89: SK Tolkeservice Aps | I89: -349
A90: 2019 | B90: 1000A | C90: Region Hovedstaden | D90: Materiale- og aktivi | E90: Tolke - Fremmedsprog | F90: 207937 | G90: 9000672 | H90: Tolkeservice Danmark ApS | I90: 588.9
A91: 2019 | B91: 1000A | C91: Region Hovedstaden | D91: Materiale- og aktivi | E91: Tolke - Fremmedsprog | F91: 207937 | G91: 9001951 | H91: Koch v/Heidi Ryberg | I91: 1597.5
A92: 2019 | B92: 1000A | C92: Region Hovedstaden | D92: Materiale- og aktivi | E92: Tolke - Fremmedsprog | F92: 207937 | G92: 9005608 | H92: SOCIAL MEDICINSK TOLKESERVICE A/S | I92: 634.11
A93: 2019 | B93: 1000A | C93: Region Hovedstaden | D93: Materiale- og aktivi | E93: Tolke - Fremmedsprog | F93: 207937 | G93: 9014508 | H93: Anno14 | I93: 670
A94: 2019 | B94: 1000A | C94: Region Hovedstaden | D94: Materiale- og aktivi | E94: Tolke - Fremmedsprog | F94: 207937 | G94: 9016582 | H94: AHZ Tigrina Tolk - Abraham Haile | I94: 1101.95
A95: 2019 | B95: 1000A | C95: Region Hovedstaden | D95: Materiale- og aktivi | E95: Tolke - Fremmedsprog | F95: 207937 | G95: 9021503 | H95: Sprog Kommunikation og Tolketjenest | I95: 4724.5
A96: 2019 | B96: 1000A | C96: Region Hovedstaden | D96: Materiale- og aktivi | E96: Tolke - Fremmedsprog | F96: 207937 | G96: 9021743 | H96: TOLKDANMARK ApS | I96: 11392570.87
A97: 2019 | B97: 1000A | C97: Region Hovedstaden | D97: Materiale- og aktivi | E97: Tolke - Fremmedsprog | F97: 207937 | G97: 9026995 | H97: Albansk Tolk og Støttepædagog | I97: 7700
A98: 2019 | B98: 1000A | C98: Region Hovedstaden | D98: Materiale- og aktivi | E98: Tolke - Fremmedsprog | F98: 207937 | G98: 9029102 | H98: Tolk/Oversætter v/Dorthea Berthelse | I98: 1177.8
A99: 2019 | B99: 1000A | C99: Region Hovedstaden | D99: Materiale- og aktivi | E99: Tolke - Fremmedsprog | F99: 207937 | G99: 9029233 | H99: Anna Lupa | I99: -2800
A100: 2019 | B100: 1000A | C100: Region Hovedstaden | D100: Materiale- og aktivi | E100: Tolke - Fremmedsprog | F100: 207937 | G100: 9029908 | H100: Emilie Lange Tolkning | I100: 1338.72
A101: 2019 | B101: 1000A | C101: Region Hovedstaden | D101: Materiale- og aktivi | E101: Tolke - Fremmedsprog | F101: 207937 | G101: 9029998 | H101: ViTolker ApS | I101: 1247.5
A102: 2019 | B102: 1000A | C102: Region Hovedstaden | D102: Materiale- og aktivi | E102: Tolke - Fremmedsprog | F102: 207937 | G102: 9030039 | H102: Nordisk Sproglink Vappu Elina Vähäl | I102: 8216
A103: 2019 | B103: 1000A | C103: Region Hovedstaden | D103: Materiale- og aktivi | E103: Tolke - Fremmedsprog | F103: 207937 | G103: 9030349 | H103: KD Link v/Li Ou Müller | I103: 1337
A104: 2019 | B104: 1000A | C104: Region Hovedstaden | D104: Materiale- og aktivi | E104: Tolke - Fremmedsprog | F104: 207937 | G104: 9030444 | H104: Translatør og tolk Michael Abildgaa | I104: 3948
A105: 2019 | B105: 1000A | C105: Region Hovedstaden | D105: Materiale- og aktivi | E105: Tolke - Fremmedsprog | F105: 207937 | G105: 9030911 | H105: Kolding Tolkebureau I/S | I105: 6948
A106: 2019 | B106: 1000A | C106: Region Hovedstaden | D106: Materiale- og aktivi | E106: Tolke - Fremmedsprog | F106: 207937 | G106: # | H106: Ikke allokeret | I106: =+I111+I115+I118+I124+I128+I136+I150 -> -771507.1
A107: 2019 | B107: 1000A | C107: Region Hovedstaden | D107: Materiale- og aktivi | E107: Tolke - Fremmedsprog | F107: 207937 | G107: Resultat | I107: =SUM(I86:I106) -> 10662170.08
A108: 2019 | B108: 1000A12 | C108: Bispebjerg/Frederiks | D108: Materiale- og aktivi | E108: Tolke - Fremmedsprog | F108: 207937 | G108: 9014508 | H108: Anno14 | I108: 670
A109: 2019 | B109: 1000A12 | C109: Bispebjerg/Frederiks | D109: Materiale- og aktivi | E109: Tolke - Fremmedsprog | F109: 207937 | G109: 9021503 | H109: Sprog Kommunikation og Tolketjenest | I109: 336.5
A110: 2019 | B110: 1000A12 | C110: Bispebjerg/Frederiks | D110: Materiale- og aktivi | E110: Tolke - Fremmedsprog | F110: 207937 | G110: 9021743 | H110: TOLKDANMARK ApS | I110: 1228099.16
A111: 2019 | B111: 1000A12 | C111: Bispebjerg/Frederiks | D111: Materiale- og aktivi | E111: Tolke - Fremmedsprog | F111: 207937 | G111: # | H111: Ikke allokeret | I111: 44583.9
A112: 2019 | B112: 1000A12 | C112: Bispebjerg/Frederiks | D112: Materiale- og aktivi | E112: Tolke - Fremmedsprog | F112: 207937 | G112: Resultat | I112: =SUM(I108:I111) -> 1273689.56
A113: 2019 | B113: 1000A13 | C113: Bornholms Hospital | D113: Materiale- og aktivi | E113: Tolke - Fremmedsprog | F113: 207937 | G113: 7000011 | H113: Engangskreditor - udlæg | I113: 382
A114: 2019 | B114: 1000A13 | C114: Bornholms Hospital | D114: Materiale- og aktivi | E114: Tolke - Fremmedsprog | F114: 207937 | G114: 9021743 | H114: TOLKDANMARK ApS | I114: 58870.68
A115: 2019 | B115: 1000A13 | C115: Bornholms Hospital | D115: Materiale- og aktivi | E115: Tolke - Fremmedsprog | F115: 207937 | G115: # | H115: Ikke allokeret | I115: 191
A116: 2019 | B116: 1000A13 | C116: Bornholms Hospital | D116: Materiale- og aktivi | E116: Tolke - Fremmedsprog | F116: 207937 | G116: Resultat | I116: 59443.68
A117: 2019 | B117: 1000A15 | C117: Steno Diabetes Cente | D117: Materiale- og aktivi | E117: Tolke - Fremmedsprog | F117: 207937 | G117: 9021743 | H117: TOLKDANMARK ApS | I117: 343512.39
A118: 2019 | B118: 1000A15 | C118: Steno Diabetes Cente | D118: Materiale- og aktivi | E118: Tolke - Fremmedsprog | F118: 207937 | G118: # | H118: Ikke allokeret | I118: 12431
A119: 2019 | B119: 1000A15 | C119: Steno Diabetes Cente | D119: Materiale- og aktivi | E119: Tolke - Fremmedsprog | F119: 207937 | G119: Resultat | I119: 355943.39
A120: 2019 | B120: 1000A19 | C120: Herlev/Gentofte Hosp | D120: Materiale- og aktivi | E120: Tolke - Fremmedsprog | F120: 207937 | G120: 9005608 | H120: SOCIAL MEDICINSK TOLKESERVICE A/S | I120: 0
A121: 2019 | B121: 1000A19 | C121: Herlev/Gentofte Hosp | D121: Materiale- og aktivi | E121: Tolke - Fremmedsprog | F121: 207937 | G121: 9016582 | H121: AHZ Tigrina Tolk - Abraham Haile | I121: 1101.95
A122: 2019 | B122: 1000A19 | C122: Herlev/Gentofte Hosp | D122: Materiale- og aktivi | E122: Tolke - Fremmedsprog | F122: 207937 | G122: 9021743 | H122: TOLKDANMARK ApS | I122: 2064238.49
A123: 2019 | B123: 1000A19 | C123: Herlev/Gentofte Hosp | D123: Materiale- og aktivi | E123: Tolke - Fremmedsprog | F123: 207937 | G123: 9026995 | H123: Albansk Tolk og Støttepædagog | I123: 7700
A124: 2019 | B124: 1000A19 | C124: Herlev/Gentofte Hosp | D124: Materiale- og aktivi | E124: Tolke - Fremmedsprog | F124: 207937 | G124: # | H124: Ikke allokeret | I124: 125995
A125: 2019 | B125: 1000A19 | C125: Herlev/Gentofte Hosp | D125: Materiale- og aktivi | E125: Tolke - Fremmedsprog | F125: 207937 | G125: Resultat | I125: =SUM(I120:I124) -> 2199035.44
A126: 2019 | B126: 1000A20 | C126: Nordsjællands Hospit | D126: Materiale- og aktivi | E126: Tolke - Fremmedsprog | F126: 207937 | G126: 9000672 | H126: Tolkeservice Danmark ApS | I126: 588.9
A127: 2019 | B127: 1000A20 | C127: Nordsjællands Hospit | D127: Materiale- og aktivi | E127: Tolke - Fremmedsprog | F127: 207937 | G127: 9021743 | H127: TOLKDANMARK ApS | I127: 1262309.16
A128: 2019 | B128: 1000A20 | C128: Nordsjællands Hospit | D128: Materiale- og aktivi | E128: Tolke - Fremmedsprog | F128: 207937 | G128: # | H128: Ikke allokeret | I128: 16345.6
A129: 2019 | B129: 1000A20 | C129: Nordsjællands Hospit | D129: Materiale- og aktivi | E129: Tolke - Fremmedsprog | F129: 207937 | G129: Resultat | I129: =SUM(I126:I128) -> 1279243.66
A130: 2019 | B130: 1000A21 | C130: Amager/Hvidovre Hosp | D130: Materiale- og aktivi | E130: Tolke - Fremmedsprog | F130: 207937 | G130: 9005608 | H130: SOCIAL MEDICINSK TOLKESERVICE A/S | I130: 230.12
A131: 2019 | B131: 1000A21 | C131: Amager/Hvidovre Hosp | D131: Materiale- og aktivi | E131: Tolke - Fremmedsprog | F131: 207937 | G131: 9021743 | H131: TOLKDANMARK ApS | I131: 2810338.36
A132: 2019 | B132: 1000A21 | C132: Amager/Hvidovre Hosp | D132: Materiale- og aktivi | E132: Tolke - Fremmedsprog | F132: 207937 | G132: 9029102 | H132: Tolk/Oversætter v/Dorthea Berthelse | I132: 785.2
A133: 2019 | B133: 1000A21 | C133: Amager/Hvidovre Hosp | D133: Materiale- og aktivi | E133: Tolke - Fremmedsprog | F133: 207937 | G133: 9029233 | H133: Anna Lupa | I133: -2800
A134: 2019 | B134: 1000A21 | C134: Amager/Hvidovre Hosp | D134: Materiale- og aktivi | E134: Tolke - Fremmedsprog | F134: 207937 | G134: 9029998 | H134: ViTolker ApS | I134: 1247.5
A135: 2019 | B135: 1000A21 | C135: Amager/Hvidovre Hosp | D135: Materiale- og aktivi | E135: Tolke - Fremmedsprog | F135: 207937 | G135: 9030444 | H135: Translatør og tolk Michael Abildgaa | I135: 3948
A136: 2019 | B136: 1000A21 | C136: Amager/Hvidovre Hosp | D136: Materiale- og aktivi | E136: Tolke - Fremmedsprog | F136: 207937 | G136: # | H136: Ikke allokeret | I136: -971387.6
A137: 2019 | B137: 1000A21 | C137: Amager/Hvidovre Hosp | D137: Materiale- og aktivi | E137: Tolke - Fremmedsprog | F137: 207937 | G137: Resultat | I137: =SUM(I130:I136) -> 1842361.58
A138: 2019 | B138: 1000A22 | C138: Rigshospitalet | D138: Materiale- og aktivi | E138: Tolke - Fremmedsprog | F138: 207937 | G138: 9000317 | H138: SAHVA A/S | I138: 917.73
A139: 2019 | B139: 1000A22 | C139: Rigshospitalet | D139: Materiale- og aktivi | E139: Tolke - Fremmedsprog | F139: 207937 | G139: 9000401 | H139: Dantaxi 4x48 F.m.b.a. | I139: 1725.6
A140: 2019 | B140: 1000A22 | C140: Rigshospitalet | D140: Materiale- og aktivi | E140: Tolke - Fremmedsprog | F140: 207937 | G140: 9000566 | H140: SK Tolkeservice Aps | I140: -349
A141: 2019 | B141: 1000A22 | C141: Rigshospitalet | D141: Materiale- og aktivi | E141: Tolke - Fremmedsprog | F141: 207937 | G141: 9001951 | H141: Koch v/Heidi Ryberg | I141: 1597.5
A142: 2019 | B142: 1000A22 | C142: Rigshospitalet | D142: Materiale- og aktivi | E142: Tolke - Fremmedsprog | F142: 207937 | G142: 9005608 | H142: SOCIAL MEDICINSK TOLKESERVICE A/S | I142: 403.99
A143: 2019 | B143: 1000A22 | C143: Rigshospitalet | D143: Materiale- og aktivi | E143: Tolke - Fremmedsprog | F143: 207937 | G143: 9021503 | H143: Sprog Kommunikation og Tolketjenest | I143: 4388
A144: 2019 | B144: 1000A22 | C144: Rigshospitalet | D144: Materiale- og aktivi | E144: Tolke - Fremmedsprog | F144: 207937 | G144: 9021743 | H144: TOLKDANMARK ApS | I144: 3625202.63
A145: 2019 | B145: 1000A22 | C145: Rigshospitalet | D145: Materiale- og aktivi | E145: Tolke - Fremmedsprog | F145: 207937 | G145: 9029102 | H145: Tolk/Oversætter v/Dorthea Berthelse | I145: 392.6
A146: 2019 | B146: 1000A22 | C146: Rigshospitalet | D146: Materiale- og aktivi | E146: Tolke - Fremmedsprog | F146: 207937 | G146: 9029908 | H146: Emilie Lange Tolkning | I146: 1338.72
A147: 2019 | B147: 1000A22 | C147: Rigshospitalet | D147: Materiale- og aktivi | E147: Tolke - Fremmedsprog | F147: 207937 | G147: 9030039 | H147: Nordisk Sproglink Vappu Elina Vähäl | I147: 8216
A148: 2019 | B148: 1000A22 | C148: Rigshospitalet | D148: Materiale- og aktivi | E148: Tolke - Fremmedsprog | F148: 207937 | G148: 9030349 | H148: KD Link v/Li Ou Müller | I148: 1337
A149: 2019 | B149: 1000A22 | C149: Rigshospitalet | D149: Materiale- og aktivi | E149: Tolke - Fremmedsprog | F149: 207937 | G149: 9030911 | H149: Kolding Tolkebureau I/S | I149: 6948
A150: 2019 | B150: 1000A22 | C150: Rigshospitalet | D150: Materiale- og aktivi | E150: Tolke - Fremmedsprog | F150: 207937 | G150: # | H150: Ikke allokeret | I150: 334
A151: 2019 | B151: 1000A22 | C151: Rigshospitalet | D151: Materiale- og aktivi | E151: Tolke - Fremmedsprog | F151: 207937 | G151: Resultat | I151: =SUM(I138:I150) -> 3652452.77
A152: Samlet resultat | I152: =+I107 -> 10662170.08
A155: Eksterne midler
C156: Forbrug
A157: Profitcenter | C157: DKK
A158: 1000A | B158: Region Hovedstaden | C158: =SUM(C159:C166) -> -1667185.26
A159: 1000A12 | B159: Bispebjerg/Frederiks | C159: -130
A160: 1000A13 | B160: Bornholms Hospital | C160: 0
A161: 1000A15 | B161: Steno Diabetes Cente | C161: -2050338.06
A162: 1000A19 | B162: Herlev/Gentofte Hosp | C162: 626805.03
A163: 1000A20 | B163: Nordsjællands Hospit | C163: 492.78
A164: 1000A21 | B164: Amager/Hvidovre Hosp | C164: 134452.59
A165: 1000A22 | B165: Rigshospitalet | C165: -378467.6
A166: 1000A61 | B166: Region Hovedst. Psyk | C166: 0
A168: Hjemmeilt
J169: Forbrug
A170: Profitcenter | C170: Firmakode | E170: PSP-element | G170: Kreditor | I170: Bilagstekst | J170: DKK
A171: 1000A | B171: Region Hovedstaden | C171: 1200 | D171: Bispebjerg/Frederiksberg | E171: # | F171: Ikke allokeret | G171: 9000061 | H171: Linde Gas A/S | I171: EL-AFREGNING, UDLÆG (LGT) | J171: 567846.95
A172: 1000A | B172: Region Hovedstaden | C172: 1200 | D172: Bispebjerg/Frederiksberg | E172: # | F172: Ikke allokeret | G172: 9000061 | H172: Linde Gas A/S | I172: HOMECARE PATIENTER | J172: 4205148.15
A173: 1000A | B173: Region Hovedstaden | C173: 1200 | D173: Bispebjerg/Frederiksberg | E173: # | F173: Ikke allokeret | G173: 9000061 | H173: Linde Gas A/S | I173: Resultat | J173: =SUM(J171:J172) -> 4772995.1
A174: 1000A | B174: Region Hovedstaden | C174: 1300 | D174: Bornholms Hospital | E174: L-13060 | F174: Eksterne patienter | G174: 9000061 | H174: Linde Gas A/S | I174: HOMECARE PATIENTER | J174: 342007.78
A175: 1000A | B175: Region Hovedstaden | C175: 1300 | D175: Bornholms Hospital | E175: L-13060 | F175: Eksterne patienter | G175: 9000061 | H175: Linde Gas A/S | I175: HOMECARE PATIENTER - august 2019 | J175: 68867.15
A176: 1000A | B176: Region Hovedstaden | C176: 1300 | D176: Bornholms Hospital | E176: L-13060 | F176: Eksterne patienter | G176: 9000061 | H176: Linde Gas A/S | I176: HOMECARE PATIENTER - december 2019 | J176: 38420.4
A177: 1000A | B177: Region Hovedstaden | C177: 1300 | D177: Bornholms Hospital | E177: L-13060 | F177: Eksterne patienter | G177: 9000061 | H177: Linde Gas A/S | I177: HOMECARE PATIENTER - juli 2019 | J177: 66579.24
A178: 1000A | B178: Region Hovedstaden | C178: 1300 | D178: Bornholms Hospital | E178: L-13060 | F178: Eksterne patienter | G178: 9000061 | H178: Linde Gas A/S | I178: HOMECARE PATIENTER - marts 2019 | J178: 63191.35
A179: 1000A | B179: Region Hovedstaden | C179: 1300 | D179: Bornholms Hospital | E179: L-13060 | F179: Eksterne patienter | G179: 9000061 | H179: Linde Gas A/S | I179: HOMECARE PATIENTER - nov. 2019 | J179: 40110.54
A180: 1000A | B180: Region Hovedstaden | C180: 1300 | D180: Bornholms Hospital | E180: L-13060 | F180: Eksterne patienter | G180: 9000061 | H180: Linde Gas A/S | I180: HOMECARE PATIENTER - sept. 2019 | J180: 74959.02
A181: 1000A | B181: Region Hovedstaden | C181: 1300 | D181: Bornholms Hospital | E181: L-13060 | F181: Eksterne patienter | G181: 9000061 | H181: Linde Gas A/S | I181: HOMECARE PATIENTER, oktober 2019 | J181: 35489.72
A182: 1000A | B182: Region Hovedstaden | C182: 1300 | D182: Bornholms Hospital | E182: L-13060 | F182: Eksterne patienter | G182: 9000061 | H182: Linde Gas A/S | I182: Resultat | J182: =SUM(J174:J181) -> 729625.2
A183: 1000A | B183: Region Hovedstaden | C183: 1900 | D183: Herlev/Gentofte Hospital | E183: L-19986-11094 | F183: Ilt til patienter/hjemmeilt | G183: 9000061 | H183: Linde Gas A/S | I183: 2019/1 gent HOMECARE PATIENTER | J183: 288463.8
A184: 1000A | B184: Region Hovedstaden | C184: 1900 | D184: Herlev/Gentofte Hospital | E184: L-19986-11094 | F184: Ilt til patienter/hjemmeilt | G184: 9000061 | H184: Linde Gas A/S | I184: 2019/1 gent. EL-AFREGNING, UDLÆG (LGT) | J184: 38180.49
A185: 1000A | B185: Region Hovedstaden | C185: 1900 | D185: Herlev/Gentofte Hospital | E185: L-19986-11094 | F185: Ilt til patienter/hjemmeilt | G185: 9000061 | H185: Linde Gas A/S | I185: 2019/1 herlev EL-AFREGNING, UDLÆG (LGT) | J185: 29298.26
A186: 1000A | B186: Region Hovedstaden | C186: 1900 | D186: Herlev/Gentofte Hospital | E186: L-19986-11094 | F186: Ilt til patienter/hjemmeilt | G186: 9000061 | H186: Linde Gas A/S | I186: 2019/1 herlev HOMECARE PATIENTER | J186: 260100.06
A187: 1000A | B187: Region Hovedstaden | C187: 1900 | D187: Herlev/Gentofte Hospital | E187: L-19986-11094 | F187: Ilt til patienter/hjemmeilt | G187: 9000061 | H187: Linde Gas A/S | I187: 2019/10 gent. HOMECARE PATIENTER | J187: 135500.9
A188: 1000A | B188: Region Hovedstaden | C188: 1900 | D188: Herlev/Gentofte Hospital | E188: L-19986-11094 | F188: Ilt til patienter/hjemmeilt | G188: 9000061 | H188: Linde Gas A/S | I188: 2019/10 herlev HOMECARE PATIENTER | J188: 112048.94
A189: 1000A | B189: Region Hovedstaden | C189: 1900 | D189: Herlev/Gentofte Hospital | E189: L-19986-11094 | F189: Ilt til patienter/hjemmeilt | G189: 9000061 | H189: Linde Gas A/S | I189: 2019/10 herlev hjemmeilt | J189: 40145.71
A190: 1000A | B190: Region Hovedstaden | C190: 1900 | D190: Herlev/Gentofte Hospital | E190: L-19986-11094 | F190: Ilt til patienter/hjemmeilt | G190: 9000061 | H190: Linde Gas A/S | I190: 2019/11 gent. HOMECARE PATIENTER | J190: 156938.98
A191: 1000A | B191: Region Hovedstaden | C191: 1900 | D191: Herlev/Gentofte Hospital | E191: L-19986-11094 | F191: Ilt til patienter/hjemmeilt | G191: 9000061 | H191: Linde Gas A/S | I191: 2019/11 gent. hjemmeilt | J191: 38940.9
A192: 1000A | B192: Region Hovedstaden | C192: 1900 | D192: Herlev/Gentofte Hospital | E192: L-19986-11094 | F192: Ilt til patienter/hjemmeilt | G192: 9000061 | H192: Linde Gas A/S | I192: 2019/11 herlev HOMECARE PATIENTER | J192: 128437.1
A193: 1000A | B193: Region Hovedstaden | C193: 1900 | D193: Herlev/Gentofte Hospital | E193: L-19986-11094 | F193: Ilt til patienter/hjemmeilt | G193: 9000061 | H193: Linde Gas A/S | I193: 2019/11 herlev hjemmeilt | J193: 71474
A194: 1000A | B194: Region Hovedstaden | C194: 1900 | D194: Herlev/Gentofte Hospital | E194: L-19986-11094 | F194: Ilt til patienter/hjemmeilt | G194: 9000061 | H194: Linde Gas A/S | I194: 2019/12 gent. HOMECARE PATIENTER | J194: 151809.07
A195: 1000A | B195: Region Hovedstaden | C195: 1900 | D195: Herlev/Gentofte Hospital | E195: L-19986-11094 | F195: Ilt til patienter/hjemmeilt | G195: 9000061 | H195: Linde Gas A/S | I195: 2019/12 gentofte hjemmeilt | J195: 30283.33
A196: 1000A | B196: Region Hovedstaden | C196: 1900 | D196: Herlev/Gentofte Hospital | E196: L-19986-11094 | F196: Ilt til patienter/hjemmeilt | G196: 9000061 | H196: Linde Gas A/S | I196: 2019/12 herlev HOMECARE PATIENTER | J196: 128201.58
A197: 1000A | B197: Region Hovedstaden | C197: 1900 | D197: Herlev/Gentofte Hospital | E197: L-19986-11094 | F197: Ilt til patienter/hjemmeilt | G197: 9000061 | H197: Linde Gas A/S | I197: 2019/3 gent. HOMECARE PATIENTER | J197: 288395.88
A198: 1000A | B198: Region Hovedstaden | C198: 1900 | D198: Herlev/Gentofte Hospital | E198: L-19986-11094 | F198: Ilt til patienter/hjemmeilt | G198: 9000061 | H198: Linde Gas A/S | I198: 2019/3 gentofte hjemmeilt | J198: 447330.32
A199: 1000A | B199: Region Hovedstaden | C199: 1900 | D199: Herlev/Gentofte Hospital | E199: L-19986-11094 | F199: Ilt til patienter/hjemmeilt | G199: 9000061 | H199: Linde Gas A/S | I199: 2019/3 herlev HOMECARE PATIENTER | J199: 238756.45
A200: 1000A | B200: Region Hovedstaden | C200: 1900 | D200: Herlev/Gentofte Hospital | E200: L-19986-11094 | F200: Ilt til patienter/hjemmeilt | G200: 9000061 | H200: Linde Gas A/S | I200: 2019/3 herlev hjemmeilt | J200: 176334.05
A201: 1000A | B201: Region Hovedstaden | C201: 1900 | D201: Herlev/Gentofte Hospital | E201: L-19986-11094 | F201: Ilt til patienter/hjemmeilt | G201: 9000061 | H201: Linde Gas A/S | I201: 2019/4 gent. hjemmeilt | J201: 325716.04
A202: 1000A | B202: Region Hovedstaden | C202: 1900 | D202: Herlev/Gentofte Hospital | E202: L-19986-11094 | F202: Ilt til patienter/hjemmeilt | G202: 9000061 | H202: Linde Gas A/S | I202: 2019/4 gentofte hjemmeilt | J202: 35084.38
A203: 1000A | B203: Region Hovedstaden | C203: 1900 | D203: Herlev/Gentofte Hospital | E203: L-19986-11094 | F203: Ilt til patienter/hjemmeilt | G203: 9000061 | H203: Linde Gas A/S | I203: 2019/4 herlev hjemmeilt | J203: 289163.24
A204: 1000A | B204: Region Hovedstaden | C204: 1900 | D204: Herlev/Gentofte Hospital | E204: L-19986-11094 | F204: Ilt til patienter/hjemmeilt | G204: 9000061 | H204: Linde Gas A/S | I204: 2019/5 el herlev hjemmeilt | J204: 77367.5
... 555 more rows

Sheet 2020 (hidden)
A1: Patient indtægter - Mellemregionalafregning mv.
G2: Forbrug | H2: Forbrug | I2: Forbrug
F3: IM Art | G3: 72 | H3: 78 | I3: Samlet resultat
A4: Firmakode | C4: IM Funktion | E4: IM Gruppering | G4: DKK | H4: DKK | I4: DKK
A5: 1200 | B5: Bispebjerg/Frederiksberg | C5: 11001 | D5: Somatiske sygehuse | E5: Betalinger - andre r | F5: 810 | H5: -75403758.34 | I5: -75403758.34
A6: 1200 | B6: Bispebjerg/Frederiksberg | C6: 11001 | D6: Somatiske sygehuse | E6: Betalinger – private | F6: 820 | G6: -2342534.06 | I6: -2342534.06
A7: 1200 | B7: Bispebjerg/Frederiksberg | C7: 11001 | D7: Somatiske sygehuse | E7: Resultat | G7: -2342534.06 | H7: -75403758.34 | I7: -77746292.4
A8: 1200 | B8: Bispebjerg/Frederiksberg | C8: Resultat | G8: -2342534.06 | H8: -75403758.34 | I8: -77746292.4
A9: 1300 | B9: Bornholms Hospital | C9: 11001 | D9: Somatiske sygehuse | E9: Betalinger - andre r | F9: 810 | H9: -3583027 | I9: -3583027
A10: 1300 | B10: Bornholms Hospital | C10: 11001 | D10: Somatiske sygehuse | E10: Betalinger – private | F10: 820 | G10: -1883177 | I10: -1883177
A11: 1300 | B11: Bornholms Hospital | C11: 11001 | D11: Somatiske sygehuse | E11: Resultat | G11: -1883177 | H11: -3583027 | I11: -5466204
A12: 1300 | B12: Bornholms Hospital | C12: Resultat | G12: -1883177 | H12: -3583027 | I12: -5466204
A13: 1500 | B13: Steno Diabetes Center CPH | C13: 15034 | D13: Decentral administra | E13: Betalinger - andre r | F13: 810 | H13: -5900717 | I13: -5900717
A14: 1500 | B14: Steno Diabetes Center CPH | C14: 15034 | D14: Decentral administra | E14: Resultat | H14: -5900717 | I14: -5900717
A15: 1500 | B15: Steno Diabetes Center CPH | C15: Resultat | H15: -5900717 | I15: -5900717
A16: 1900 | B16: Herlev/Gentofte Hospital | C16: 11001 | D16: Somatiske sygehuse | E16: Betalinger - andre r | F16: 810 | H16: -242753907.4 | I16: -242753907.4
A17: 1900 | B17: Herlev/Gentofte Hospital | C17: 11001 | D17: Somatiske sygehuse | E17: Betalinger – private | F17: 820 | G17: -5714089.71 | I17: -5714089.71
A18: 1900 | B18: Herlev/Gentofte Hospital | C18: 11001 | D18: Somatiske sygehuse | E18: Resultat | G18: -5714089.71 | H18: -242753907.4 | I18: -248467997.1
A19: 1900 | B19: Herlev/Gentofte Hospital | C19: Resultat | G19: -5714089.71 | H19: -242753907.4 | I19: -248467997.1
A20: 2000 | B20: Nordsjællands Hospital | C20: 11001 | D20: Somatiske sygehuse | E20: Betalinger - andre r | F20: 810 | H20: -25672113 | I20: -25672113
A21: 2000 | B21: Nordsjællands Hospital | C21: 11001 | D21: Somatiske sygehuse | E21: Betalinger – private | F21: 820 | G21: -2525540 | I21: -2525540
A22: 2000 | B22: Nordsjællands Hospital | C22: 11001 | D22: Somatiske sygehuse | E22: Resultat | G22: -2525540 | H22: -25672113 | I22: -28197653
A23: 2000 | B23: Nordsjællands Hospital | C23: Resultat | G23: -2525540 | H23: -25672113 | I23: -28197653
A24: 2100 | B24: Amager/Hvidovre Hospital | C24: 11001 | D24: Somatiske sygehuse | E24: Betalinger - andre r | F24: 810 | H24: -107239012.6 | I24: -107239012.6
A25: 2100 | B25: Amager/Hvidovre Hospital | C25: 11001 | D25: Somatiske sygehuse | E25: Betalinger – private | F25: 820 | G25: -3847871.53 | I25: -3847871.53
A26: 2100 | B26: Amager/Hvidovre Hospital | C26: 11001 | D26: Somatiske sygehuse | E26: Resultat | G26: -3847871.53 | H26: -107239012.6 | I26: -111086884.2
A27: 2100 | B27: Amager/Hvidovre Hospital | C27: Resultat | G27: -3847871.53 | H27: -107239012.6 | I27: -111086884.2
A28: 2200 | B28: Rigshospitalet | C28: 11001 | D28: Somatiske sygehuse | E28: Betalinger - andre r | F28: 810 | H28: -2402677108 | I28: -2402677108
A29: 2200 | B29: Rigshospitalet | C29: 11001 | D29: Somatiske sygehuse | E29: Betalinger – private | F29: 820 | G29: -4604888 | I29: -4604888
A30: 2200 | B30: Rigshospitalet | C30: 11001 | D30: Somatiske sygehuse | E30: Resultat | G30: -4604888 | H30: -2402677108 | I30: -2407281996
A31: 2200 | B31: Rigshospitalet | C31: Resultat | G31: -4604888 | H31: -2402677108 | I31: -2407281996
A32: Samlet resultat | G32: -20918100.3 | H32: -2863229644 | I32: -2884147744
A34: Ilt til patienter i eget hjem
F35: Forbrug
A36: Profitcenter | C36: Kreditor | D36: PSP-element | F36: DKK
A37: 1000A | B37: Region Hovedstaden | C37: 9000061 Linde Gas A/S | D37: L-13060 | E37: Eksterne patienter | F37: 564178.29
A38: 1000A | B38: Region Hovedstaden | C38: 9000061 Linde Gas A/S | D38: L-19986-11094 | E38: Ilt til patienter/hjemmeilt | F38: 4781988.06
A39: 1000A | B39: Region Hovedstaden | C39: 9000061 Linde Gas A/S | D39: L-20820 | E39: Hjemmebo. - respiratoriske hjælpemidler | F39: 6069867.83
A40: 1000A | B40: Region Hovedstaden | C40: 9000061 Linde Gas A/S | D40: L-22016-00007 | E40: AGA til ompostering | F40: 5394921.17
A41: 1000A | B41: Region Hovedstaden | C41: 9000061 Linde Gas A/S | D41: # | E41: Ikke allokeret | F41: =+F43+F51 -> 7627972.11
A42: 1000A | B42: Region Hovedstaden | C42: 9000061 Linde Gas A/S | D42: Resultat | F42: =SUM(F37:F41) -> 24438927.46
A43: 1000A12 | B43: Bispebjerg/Frederiks | C43: 9000061 Linde Gas A/S | D43: # | E43: Ikke allokeret | F43: 2990786.38
A44: 1000A12 | B44: Bispebjerg/Frederiks | C44: 9000061 Linde Gas A/S | D44: Resultat | F44: 2990786.38 | H44: Profitcenter | J44: Bilagsart | K44: DKK
A45: 1000A13 | B45: Bornholms Hospital | C45: 9000061 Linde Gas A/S | D45: L-13060 | E45: Eksterne patienter | F45: 564178.29 | H45: 1000A | I45: Region Hovedstaden | J45: Udlæg eksterne | K45: 6674.89
A46: 1000A13 | B46: Bornholms Hospital | C46: 9000061 Linde Gas A/S | D46: Resultat | F46: 564178.29
A47: 1000A19 | B47: Herlev/Gentofte Hosp | C47: 9000061 Linde Gas A/S | D47: L-19986-11094 | E47: Ilt til patienter/hjemmeilt | F47: 4781988.06
A48: 1000A19 | B48: Herlev/Gentofte Hosp | C48: 9000061 Linde Gas A/S | D48: Resultat | F48: 4781988.06
A49: 1000A20 | B49: Nordsjællands Hospit | C49: 9000061 Linde Gas A/S | D49: L-20820 | E49: Hjemmebo. - respiratoriske hjælpemidler | F49: 6069867.83
A50: 1000A20 | B50: Nordsjællands Hospit | C50: 9000061 Linde Gas A/S | D50: Resultat | F50: 6069867.83
A51: 1000A21 | B51: Amager/Hvidovre Hosp | C51: 9000061 Linde Gas A/S | D51: # | E51: Ikke allokeret | F51: 4637185.73
A52: 1000A21 | B52: Amager/Hvidovre Hosp | C52: 9000061 Linde Gas A/S | D52: Resultat | F52: 4637185.73
A53: 1000A22 | B53: Rigshospitalet | C53: 9000061 Linde Gas A/S | D53: L-22016-00007 | E53: AGA til ompostering | F53: 5394921.17
A54: 1000A22 | B54: Rigshospitalet | C54: 9000061 Linde Gas A/S | D54: Resultat | F54: 5394921.17
A56: Sonderemedier
F57: Forbrug
A58: Profitcenter | C58: Bevillingstype | D58: PSP-element | F58: DKK
A59: 1000A | B59: Region Hovedstaden | C59: Rammebevillinger | D59: L-20102-00005 | E59: Sonderemedier | F59: 362307.22
A60: 1000A | B60: Region Hovedstaden | C60: Rammebevillinger | D60: Resultat | F60: 362307.22
A61: 1000A | B61: Region Hovedstaden | C61: Resultat | F61: 362307.22
A62: 1000A20 | B62: Nordsjællands Hospit | C62: Rammebevillinger | D62: L-20102-00005 | E62: Sonderemedier | F62: 362307.22
A63: 1000A20 | B63: Nordsjællands Hospit | C63: Rammebevillinger | D63: Resultat | F63: 362307.22
A64: 1000A20 | B64: Nordsjællands Hospit | C64: Resultat | F64: 362307.22
A66: Diætpræperater PKU, Hjemmebehandling ekskl kreditor TolkDanmark
E67: Forbrug
A68: Profitcenter | C68: Kreditor | E68: DKK
A69: 229453201 | B69: Diæter | C69: 9000003 | D69: MEDIQ DANMARK A/S | E69: 3653.17 | I69: 9009910 | J69: BENT HOLM-NEC LTD A/S NEC LTD A/S | K69: 12947312
A70: 229453201 | B70: Diæter | C70: 9000051 | D70: A&C CATERING A/S | E70: 32.57 | I70: 9028343 | J70: Evibra Danmark B.V | K70: 460452
A71: 229453201 | B71: Diæter | C71: 9000221 | D71: NUTRICIA A/S | E71: 1597369.26 | I71: 9027404 | J71: metaX GmbH Institut für Diätetik | K71: 169090
A72: 229453201 | B72: Diæter | C72: 9000427 | D72: UNILABS A/S | E72: 24816.96 | I72: 9010204 | J72: metaX Institut für Diätetik GmbH | K72: 6668038
A73: 229453201 | B73: Diæter | C73: 9000553 | D73: FILIAL AV NORDICINFU CARE AB, SVERI | E73: 2916 | I73: 9026522 | J73: NAVAMEDIC DANMARK, FILIAL AF NAVAME | K73: 4327771
A74: 229453201 | B74: Diæter | C74: 9000736 | D74: LINDPRO A/S - Brug 9002181 | E74: 21013.4 | I74: 9000221 | J74: NUTRICIA A/S | K74: 1597369
A75: 229453201 | B75: Diæter | C75: 9001028 | D75: Randers Hospital | E75: 1385.2 | I75: 9009294 | J75: POA PHARMA SCANDINAVIA, FILIAL AFPO | K75: 1652299
A76: 229453201 | B76: Diæter | C76: 9001073 | D76: Region Sjælland | E76: 1222.29
A77: 229453201 | B77: Diæter | C77: 9001488 | D77: Kommunekredit - kommuneleasing | E77: 272.02 | K77: 27822331
A78: 229453201 | B78: Diæter | C78: 9009294 | D78: POA PHARMA SCANDINAVIA, FILIAL AFPO | E78: 1652299.43
A79: 229453201 | B79: Diæter | C79: 9009910 | D79: BENT HOLM-NEC LTD A/S NEC LTD A/S | E79: 12924643.55 | G79: =+K69-E79 -> 22668.45 | I79: 405282 | J79: Vare/tjenesteydelser | K79: -2123512
A80: 229453201 | B80: Diæter | C80: 9010204 | D80: metaX Institut für Diätetik GmbH | E80: 6668037.5 | I80: 405284 | J80: Øvrige indtægter | K80: -16419135
A81: 229453201 | B81: Diæter | C81: 9026522 | D81: NAVAMEDIC DANMARK, FILIAL AF NAVAME | E81: 4327771.06
A82: 229453201 | B82: Diæter | C82: 9027404 | D82: metaX GmbH Institut für Diätetik | E82: 169089.81 | K82: -18542647
A83: 229453201 | B83: Diæter | C83: 9028343 | D83: Evibra Danmark B.V | E83: 460451.93
A84: 229453201 | B84: Diæter | C84: # | D84: Ikke allokeret | E84: -18516632.96
A85: 229453201 | B85: Diæter | C85: Resultat | E85: 9338341.19 | K85: =+K82+K77 -> 9279684
A87: Tilskudsordninger - tænder
C88: Forbrug
A89: Profitcenter | C89: DKK
A90: 1000A2262517 | B90: Tilskudsordninger | C90: 10418662.6 | F90: =+C90+E108+C98+C99+C100 -> 16893227.4
A91: 226251700 | B91: Strålebehandling | C91: 6372145.85
A92: 226251701 | B92: Kemoterapi | C92: 764348.08
A93: 226251702 | B93: Fokussanering | C93: 261407.74
A94: 226251703 | B94: Kæberesektioner | C94: 96722.8
A95: 226251704 | B95: Sjøgren | C95: 2924038.13
A98: 226251103 | B98: $166.3 | C98: 1106797.8
B99: nefro | C99: 331575
B100: hjerteklapenheden | C100: 24597
E103: Forbrug
A104: Profitcenter | C104: PSP-element | E104: DKK
A105: 1000A | B105: Region Hovedstaden | C105: L-22060-00086 | D105: Bøjletilretning vedr. kæbeanomalier. Pro | E105: 5011595
A106: 1000A | B106: Region Hovedstaden | C106: Resultat | E106: 5011595
A107: 1000A22 | B107: Rigshospitalet | C107: L-22060-00086 | D107: Bøjletilretning vedr. kæbeanomalier. Pro | E107: 5011595
A108: 1000A22 | B108: Rigshospitalet | C108: Resultat | E108: 5011595
A110: Respiratorhjælperordningen RH
E111: Forbrug | F111: Direkte | G111: Indirekte
A112: Profitcenter | C112: PSP-element | E112: DKK | F112: =1-G112 -> 0.7674608099 | G112: 0.2325391901
A113: 1000A2250517 | B113: Respiratoriske ordni | C113: # | D113: Ikke allokeret | E113: =+E118 -> 1166770.863 | G113: =+H113-E113 -> 353529.3893 | H113: =+E113/F112 -> 1520300.252
A114: 1000A2250517 | B114: Respiratoriske ordni | C114: Resultat | E114: =+E118 -> 1166770.863
A115: 225051702 | B115: RHR | C115: # | D115: Ikke allokeret | E115: 1158339.62
A116: 207704 | B116: Erstatninger | C116: Engangskreditor - udlæg | E116: 2100
B117: Nøgle | E117: =+E118-E115 -> 8431.242605
A118: 225051702 | B118: RHR | C118: Resultat | E118: 1166770.863
A120: Ekstern finansieret forskning
D121: Forbrug
A122: Profitcenter | C122: Bevillingstype | D122: DKK
A123: 1000A | B123: Region Hovedstaden | C123: Eksterne midler | D123: -2495.35
A124: 1000A | B124: Region Hovedstaden | C124: Resultat | D124: -2495.35
A125: 1000A12 | B125: Bispebjerg/Frederiks | C125: Eksterne midler | D125: 0
A126: 1000A12 | B126: Bispebjerg/Frederiks | C126: Resultat | D126: 0
A127: 1000A13 | B127: Bornholms Hospital | C127: Eksterne midler | D127: 0
A128: 1000A13 | B128: Bornholms Hospital | C128: Resultat | D128: 0
A129: 1000A15 | B129: Steno Diabetes Cente | C129: Eksterne midler | D129: 72532.56
A130: 1000A15 | B130: Steno Diabetes Cente | C130: Resultat | D130: 72532.56
A131: 1000A19 | B131: Herlev/Gentofte Hosp | C131: Eksterne midler | D131: -4425.4
A132: 1000A19 | B132: Herlev/Gentofte Hosp | C132: Resultat | D132: -4425.4
A133: 1000A20 | B133: Nordsjællands Hospit | C133: Eksterne midler | D133: 0
A134: 1000A20 | B134: Nordsjællands Hospit | C134: Resultat | D134: 0
A135: 1000A21 | B135: Amager/Hvidovre Hosp | C135: Eksterne midler | D135: -48387.47
A136: 1000A21 | B136: Amager/Hvidovre Hosp | C136: Resultat | D136: -48387.47
A137: 1000A22 | B137: Rigshospitalet | C137: Eksterne midler | D137: -22215.04
A138: 1000A22 | B138: Rigshospitalet | C138: Resultat | D138: -22215.04
A140: Tolke - Fremmedesprog
E141: Forbrug
A142: Profitcenter | C142: Kreditor | E142: DKK
A143: 1000A | B143: Region Hovedstaden | C143: 9021743 | D143: TOLKDANMARK ApS | E143: 9999924.96
A144: 1000A | B144: Region Hovedstaden | C144: Resultat | E144: 9999924.96
A145: 1000A12 | B145: Bispebjerg/Frederiks | C145: 9021743 | D145: TOLKDANMARK ApS | E145: 1223388.2
A146: 1000A12 | B146: Bispebjerg/Frederiks | C146: Resultat | E146: 1223388.2 | G146: 272.57
A147: 1000A13 | B147: Bornholms Hospital | C147: 9021743 | D147: TOLKDANMARK ApS | E147: 66267.02
A148: 1000A13 | B148: Bornholms Hospital | C148: Resultat | E148: 66267.02 | G148: 65937.1 | H148: =+E148-G148 -> 329.92
A149: 1000A15 | B149: Steno Diabetes Cente | C149: 9021743 | D149: TOLKDANMARK ApS | E149: 221937.85
A150: 1000A15 | B150: Steno Diabetes Cente | C150: Resultat | E150: 221937.85
A151: 1000A19 | B151: Herlev/Gentofte Hosp | C151: 9021743 | D151: TOLKDANMARK ApS | E151: 1967497.49
A152: 1000A19 | B152: Herlev/Gentofte Hosp | C152: Resultat | E152: 1967497.49
A153: 1000A20 | B153: Nordsjællands Hospit | C153: 9021743 | D153: TOLKDANMARK ApS | E153: 1110733.72
A154: 1000A20 | B154: Nordsjællands Hospit | C154: Resultat | E154: 1110733.72
A155: 1000A21 | B155: Amager/Hvidovre Hosp | C155: 9021743 | D155: TOLKDANMARK ApS | E155: 2060199.42
A156: 1000A21 | B156: Amager/Hvidovre Hosp | C156: Resultat | E156: 2060199.42
A157: 1000A22 | B157: Rigshospitalet | C157: 9021743 | D157: TOLKDANMARK ApS | E157: 3349901.26
A158: 1000A22 | B158: Rigshospitalet | C158: Resultat | E158: 3349901.26
I160: Forbrug
A161: Profitcenter | C161: Regnskabsår | D161: Artskonto | F161: Kreditor | H161: Bilagstekst | I161: DKK
A162: 1000A | B162: Region Hovedstaden | C162: 2020 | D162: Tolke - Fremmedsprog | E162: 207937 | F162: 9000248 | G162: POST DANMARK A/S | H162: tolkning | I162: 747.51
A163: 1000A | B163: Region Hovedstaden | C163: 2020 | D163: Tolke - Fremmedsprog | E163: 207937 | F163: 9000248 | G163: POST DANMARK A/S | H163: tolknnig | I163: 605.34
A164: 1000A | B164: Region Hovedstaden | C164: 2020 | D164: Tolke - Fremmedsprog | E164: 207937 | F164: 9000672 | G164: Tolkeservice Danmark ApS | H164: 090320 Tolk | I164: 1766.7
A165: 1000A | B165: Region Hovedstaden | C165: 2020 | D165: Tolke - Fremmedsprog | E165: 207937 | F165: 9006876 | G165: DANSK FLYGTNINGEHJÆLP | H165: Fremmødetolkning | I165: 3382.5
A166: 1000A | B166: Region Hovedstaden | C166: 2020 | D166: Tolke - Fremmedsprog | E166: 207937 | F166: 9006876 | G166: DANSK FLYGTNINGEHJÆLP | H166: tolkning | I166: 820
A167: 1000A | B167: Region Hovedstaden | C167: 2020 | D167: Tolke - Fremmedsprog | E167: 207937 | F167: 9016568 | G167: Tolkegruppen Oversættergruppen P/S | H167: Tolkning (Fremmødetolkning) | I167: 5008.79
A168: 1000A | B168: Region Hovedstaden | C168: 2020 | D168: Tolke - Fremmedsprog | E168: 207937 | F168: 9016582 | G168: AHZ Tigrina Tolk - Abraham Haile | H168: Tigrina tolkning til patient | I168: 550
A169: 1000A | B169: Region Hovedstaden | C169: 2020 | D169: Tolke - Fremmedsprog | E169: 207937 | F169: 9029908 | G169: Emilie Lange Tolkning | H169: Tolk | I169: 471.02
A170: 1000A | B170: Region Hovedstaden | C170: 2020 | D170: Tolke - Fremmedsprog | E170: 207937 | F170: 9029908 | G170: Emilie Lange Tolkning | H170: Tolkebistand | I170: 1735.4
A171: 1000A | B171: Region Hovedstaden | C171: 2020 | D171: Tolke - Fremmedsprog | E171: 207937 | F171: 9029998 | G171: ViTolker ApS | H171: BE46243 / 271119 Edmund | I171: 499
A172: 1000A | B172: Region Hovedstaden | C172: 2020 | D172: Tolke - Fremmedsprog | E172: 207937 | F172: 9029998 | G172: ViTolker ApS | H172: BE56465 / 190220, Precious | I172: 499
A173: 1000A | B173: Region Hovedstaden | C173: 2020 | D173: Tolke - Fremmedsprog | E173: 207937 | F173: 9029998 | G173: ViTolker ApS | H173: BE66238 / 100620, Zeynep | I173: 499
A174: 1000A | B174: Region Hovedstaden | C174: Resultat | I174: 16584.26
A175: 1000A12 | B175: Bispebjerg/Frederiks | C175: 2020 | D175: Tolke - Fremmedsprog | E175: 207937 | F175: 9016568 | G175: Tolkegruppen Oversættergruppen P/S | H175: Tolkning (Fremmødetolkning) | I175: 5008.79
A176: 1000A12 | B176: Bispebjerg/Frederiks | C176: 2020 | D176: Tolke - Fremmedsprog | E176: 207937 | F176: 9029908 | G176: Emilie Lange Tolkning | H176: Tolk | I176: 471.02
A177: 1000A12 | B177: Bispebjerg/Frederiks | C177: Resultat | I177: 5479.81
A178: 1000A19 | B178: Herlev/Gentofte Hosp | C178: 2020 | D178: Tolke - Fremmedsprog | E178: 207937 | F178: 9016582 | G178: AHZ Tigrina Tolk - Abraham Haile | H178: Tigrina tolkning til patient | I178: 550
A179: 1000A19 | B179: Herlev/Gentofte Hosp | C179: Resultat | I179: 550
A180: 1000A21 | B180: Amager/Hvidovre Hosp | C180: 2020 | D180: Tolke - Fremmedsprog | E180: 207937 | F180: 9029908 | G180: Emilie Lange Tolkning | H180: Tolkebistand | I180: 743.8
A181: 1000A21 | B181: Amager/Hvidovre Hosp | C181: 2020 | D181: Tolke - Fremmedsprog | E181: 207937 | F181: 9029998 | G181: ViTolker ApS | H181: BE46243 / 271119 Edmund | I181: 499
A182: 1000A21 | B182: Amager/Hvidovre Hosp | C182: 2020 | D182: Tolke - Fremmedsprog | E182: 207937 | F182: 9029998 | G182: ViTolker ApS | H182: BE56465 / 190220, Precious | I182: 499
A183: 1000A21 | B183: Amager/Hvidovre Hosp | C183: 2020 | D183: Tolke - Fremmedsprog | E183: 207937 | F183: 9029998 | G183: ViTolker ApS | H183: BE66238 / 100620, Zeynep | I183: 499
A184: 1000A21 | B184: Amager/Hvidovre Hosp | C184: Resultat | I184: 2240.8
A185: 1000A22 | B185: Rigshospitalet | C185: 2020 | D185: Tolke - Fremmedsprog | E185: 207937 | F185: 9000248 | G185: POST DANMARK A/S | H185: tolkning | I185: 747.51
A186: 1000A22 | B186: Rigshospitalet | C186: 2020 | D186: Tolke - Fremmedsprog | E186: 207937 | F186: 9000248 | G186: POST DANMARK A/S | H186: tolknnig | I186: 605.34
A187: 1000A22 | B187: Rigshospitalet | C187: 2020 | D187: Tolke - Fremmedsprog | E187: 207937 | F187: 9000672 | G187: Tolkeservice Danmark ApS | H187: 090320 Tolk | I187: 1766.7
A188: 1000A22 | B188: Rigshospitalet | C188: 2020 | D188: Tolke - Fremmedsprog | E188: 207937 | F188: 9006876 | G188: DANSK FLYGTNINGEHJÆLP | H188: Fremmødetolkning | I188: 3382.5
A189: 1000A22 | B189: Rigshospitalet | C189: 2020 | D189: Tolke - Fremmedsprog | E189: 207937 | F189: 9006876 | G189: DANSK FLYGTNINGEHJÆLP | H189: tolkning | I189: 820
A190: 1000A22 | B190: Rigshospitalet | C190: 2020 | D190: Tolke - Fremmedsprog | E190: 207937 | F190: 9029908 | G190: Emilie Lange Tolkning | H190: Tolkebistand | I190: 991.6
A191: 1000A22 | B191: Rigshospitalet | C191: Resultat | I191: 8313.65
A193: Betalinger fra Staten til finansiering af aktivitet
H194: Forbrug
A195: Profitcenter | C195: IM Art | E195: Artskonto | G195: Bilagstekst | H195: DKK
A196: 1000A | B196: Region Hovedstaden | C196: 76 | D196: Betalinger fra state | E196: Tilskud fra staten | F196: 405002 | G196: Sundheds/Ældreminist - Giftlinien 1. kvt 2020 | H196: -2475000
A197: 1000A | B197: Region Hovedstaden | C197: 76 | D197: Betalinger fra state | E197: Tilskud fra staten | F197: 405002 | G197: Sundheds/Ældreminist - Giftlinien 2. kvt 2020 | H197: -2475000
A198: 1000A | B198: Region Hovedstaden | C198: 76 | D198: Betalinger fra state | E198: Tilskud fra staten | F198: 405002 | G198: Sundheds/Ældreminist - Giftlinien 3. kvt 2020 | H198: -2475000
A199: 1000A | B199: Region Hovedstaden | C199: 76 | D199: Betalinger fra state | E199: Tilskud fra staten | F199: 405002 | G199: Sundheds/Ældreminist - Giftlinien 4. kvt 2020 | H199: -2475000
A200: 1000A | B200: Region Hovedstaden | C200: 76 | D200: Betalinger fra state | E200: Tilskud fra staten | F200: 405001 | G200: Finanslovsmidler til forskning 1. kvartal -2020 | H200: -15507754.22
A201: 1000A | B201: Region Hovedstaden | C201: 76 | D201: Betalinger fra state | E201: Tilskud fra staten | F201: 405001 | G201: Finanslovsmidler til forskning 2 kvartal 2020 | H201: -15132754.22
A202: 1000A | B202: Region Hovedstaden | C202: 76 | D202: Betalinger fra state | E202: Tilskud fra staten | F202: 405001 | G202: Finanslovsmidler til forskning 2. kvartal 2020 | H202: -375000
A203: 1000A | B203: Region Hovedstaden | C203: 76 | D203: Betalinger fra state | E203: Tilskud fra staten | F203: 405001 | G203: Finanslovsmidler til forskning 3+4 kvartal 2020 | H203: -30224049.66
A204: 1000A | B204: Region Hovedstaden | C204: 76 | D204: Betalinger fra state | E204: Tilskud fra staten | F204: 405001 | G204: Sundheds og Ædlreministeriet 1.kvt 2020 | H204: -7175000
A205: 1000A | B205: Region Hovedstaden | C205: 76 | D205: Betalinger fra state | E205: Tilskud fra staten | F205: 405001 | G205: Sundheds og Ædlreministeriet 2.kvt 2020 | H205: -7175000
A206: 1000A | B206: Region Hovedstaden | C206: 76 | D206: Betalinger fra state | E206: Tilskud fra staten | F206: 405001 | G206: Sundheds- og Ældreministeriet 3. kvartal | H206: -7175000
A207: 1000A | B207: Region Hovedstaden | C207: 76 | D207: Betalinger fra state | E207: Tilskud fra staten | F207: 405001 | G207: Sundheds- og ældremini tilskud for 2020, 4. kvt. | H207: -7175000
A208: 1000A | B208: Region Hovedstaden | C208: 76 | D208: Betalinger fra state | E208: Tilskud fra staten | F208: 405001 | G208: Tilbagebetaling ophør websyn apr19-dec20 | H208: 3850000
A209: 1000A | B209: Region Hovedstaden | C209: 76 | D209: Betalinger fra state | E209: Tilskud fra staten | F209: 405001 | G209: rettelse fra omk.sted til PSP b.200000094 | H209: 375000
A210: 1000A | B210: Region Hovedstaden | C210: 76 | D210: Betalinger fra state | E210: Tilskud fra staten | F210: 405001 | G210: rettelse fra omk.sted til PSP b.200001157 | H210: 375000 | J210: Giftlinjen
A211: 1000A | B211: Region Hovedstaden | C211: Resultat | H211: -95239558.1
A212: 1000A12 | B212: Bispebjerg/Frederiks | C212: 76 | D212: Betalinger fra state | E212: Tilskud fra staten | F212: 405002 | G212: Sundheds/Ældreminist - Giftlinien 1. kvt 2020 | H212: -2475000 | I212: =+H212+H213+H214+H215 -> -9900000
A213: 1000A12 | B213: Bispebjerg/Frederiks | C213: 76 | D213: Betalinger fra state | E213: Tilskud fra staten | F213: 405002 | G213: Sundheds/Ældreminist - Giftlinien 2. kvt 2020 | H213: -2475000 | K213: Institut for syg | L213: Arbejdsmed
... 462 more rows

Sheet Ark1 (hidden)
A1: Patientindtægter
G2: Forbrug | H2: Forbrug | I2: Forbrug | J2: Forbrug
F3: IM Art | G3: 72 | H3: 78 | I3: 79 | J3: Samlet resultat
A4: Firmakode | C4: IM Gruppering | E4: Artskonto | G4: DKK | H4: DKK | I4: DKK | J4: DKK
A5: 1200 | B5: Bispebjerg/Frederiksberg | C5: Medicin | D5: 120 | E5: Medicin | F5: 402201 | G5: -1111846 | J5: -1111846
A6: 1200 | B6: Bispebjerg/Frederiksberg | C6: Medicin | D6: 120 | E6: Resultat | G6: -1111846 | J6: -1111846
A7: 1200 | B7: Bispebjerg/Frederiksberg | C7: Betalinger - andre r | D7: 810 | E7: Hovedfunktion DRG | F7: 400411 | H7: -102199310 | J7: -102199310
A8: 1200 | B8: Bispebjerg/Frederiksberg | C8: Betalinger - andre r | D8: 810 | E8: Højt special.funktio | F8: 400101 | H8: -4432248 | J8: -4432248
A9: 1200 | B9: Bispebjerg/Frederiksberg | C9: Betalinger - andre r | D9: 810 | E9: Resultat | H9: -106631558 | J9: -106631558
A10: 1200 | B10: Bispebjerg/Frederiksberg | C10: Betalinger – private | D10: 820 | E10: Beh.udl.statsborgere | F10: 402813 | G10: -340930 | J10: -340930
A11: 1200 | B11: Bispebjerg/Frederiksberg | C11: Betalinger – private | D11: 820 | E11: Resultat | G11: -340930 | J11: -340930
A12: 1200 | B12: Bispebjerg/Frederiksberg | C12: Resultat | G12: -1452776 | H12: -106631558 | J12: -108084334
A13: 1300 | B13: Bornholms Hospital | C13: Medicin | D13: 120 | E13: Medicin | F13: 402201 | G13: -6694 | J13: -6694
A14: 1300 | B14: Bornholms Hospital | C14: Medicin | D14: 120 | E14: Resultat | G14: -6694 | J14: -6694
A15: 1300 | B15: Bornholms Hospital | C15: Betalinger - andre r | D15: 810 | E15: Efterreg.Regionsfunk | F15: 400403 | H15: -45542 | J15: -45542
A16: 1300 | B16: Bornholms Hospital | C16: Betalinger - andre r | D16: 810 | E16: Regionsfunktion DRG | F16: 400401 | H16: -6083851 | J16: -6083851
A17: 1300 | B17: Bornholms Hospital | C17: Betalinger - andre r | D17: 810 | E17: Resultat | H17: -6129393 | J17: -6129393
A18: 1300 | B18: Bornholms Hospital | C18: Betalinger – private | D18: 820 | E18: Beh.udl.statsborgere | F18: 402813 | G18: -1784742.95 | J18: -1784742.95
A19: 1300 | B19: Bornholms Hospital | C19: Betalinger – private | D19: 820 | E19: Resultat | G19: -1784742.95 | J19: -1784742.95
A20: 1300 | B20: Bornholms Hospital | C20: Resultat | G20: -1791436.95 | H20: -6129393 | J20: -7920829.95
A21: 1900 | B21: Herlev/Gentofte Hospital | C21: Medicin | D21: 120 | E21: Medicin | F21: 402201 | G21: -326252 | J21: -326252
A22: 1900 | B22: Herlev/Gentofte Hospital | C22: Medicin | D22: 120 | E22: Resultat | G22: -326252 | J22: -326252
A23: 1900 | B23: Herlev/Gentofte Hospital | C23: Implantater | D23: 130 | E23: Implantater | F23: 402501 | G23: -9952893 | J23: -9952893
A24: 1900 | B24: Herlev/Gentofte Hospital | C24: Implantater | D24: 130 | E24: Resultat | G24: -9952893 | J24: -9952893
A25: 1900 | B25: Herlev/Gentofte Hospital | C25: Betalinger - andre r | D25: 810 | E25: Hovedfunktion DRG | F25: 400411 | H25: -127042631 | J25: -127042631
A26: 1900 | B26: Herlev/Gentofte Hospital | C26: Betalinger - andre r | D26: 810 | E26: Højt special.funktio | F26: 400101 | H26: -85296312 | J26: -85296312
A27: 1900 | B27: Herlev/Gentofte Hospital | C27: Betalinger - andre r | D27: 810 | E27: Resultat | H27: -212338943 | J27: -212338943
A28: 1900 | B28: Herlev/Gentofte Hospital | C28: Betalinger – private | D28: 820 | E28: Beh.udl.statsborgere | F28: 402813 | G28: -2346050.02 | J28: -2346050.02
A29: 1900 | B29: Herlev/Gentofte Hospital | C29: Betalinger – private | D29: 820 | E29: Resultat | G29: -2346050.02 | J29: -2346050.02
A30: 1900 | B30: Herlev/Gentofte Hospital | C30: Resultat | G30: -12625195.02 | H30: -212338943 | J30: -224964138
A31: 2000 | B31: Nordsjællands Hospitaler | C31: Betalinger - andre r | D31: 810 | E31: Ambulant behandling | F31: 400103 | H31: -13468067 | J31: -13468067
A32: 2000 | B32: Nordsjællands Hospitaler | C32: Betalinger - andre r | D32: 810 | E32: Højt special.funktio | F32: 400101 | H32: -22104360 | J32: -22104360
A33: 2000 | B33: Nordsjællands Hospitaler | C33: Betalinger - andre r | D33: 810 | E33: Sengedage - Regioner | F33: 400102 | H33: -12843822 | J33: -12843822
A34: 2000 | B34: Nordsjællands Hospitaler | C34: Betalinger - andre r | D34: 810 | E34: Resultat | H34: -48416249 | J34: -48416249
A35: 2000 | B35: Nordsjællands Hospitaler | C35: Betalinger – private | D35: 820 | E35: Beh.udl.statsborgere | F35: 402813 | G35: -738501 | J35: -738501
A36: 2000 | B36: Nordsjællands Hospitaler | C36: Betalinger – private | D36: 820 | E36: Resultat | G36: -738501 | J36: -738501
A37: 2000 | B37: Nordsjællands Hospitaler | C37: Resultat | G37: -738501 | H37: -48416249 | J37: -49154750
A38: 2100 | B38: Amager/Hvidovre Hospital | C38: Betalinger - andre r | D38: 810 | E38: Hovedfunktion DRG | F38: 400411 | H38: -108375753 | J38: -108375753
A39: 2100 | B39: Amager/Hvidovre Hospital | C39: Betalinger - andre r | D39: 810 | E39: Højt Spec. mark up | F39: 400113 | H39: 1764869 | J39: 1764869
A40: 2100 | B40: Amager/Hvidovre Hospital | C40: Betalinger - andre r | D40: 810 | E40: Højt special.funktio | F40: 400101 | H40: -57870016 | J40: -57870016
A41: 2100 | B41: Amager/Hvidovre Hospital | C41: Betalinger - andre r | D41: 810 | E41: Medicin, hoved/regio | F41: 402302 | H41: -19308870 | J41: -19308870
A42: 2100 | B42: Amager/Hvidovre Hospital | C42: Betalinger - andre r | D42: 810 | E42: Resultat | H42: -183789770 | J42: -183789770
A43: 2100 | B43: Amager/Hvidovre Hospital | C43: Betalinger – private | D43: 820 | E43: Beh.udl.statsborgere | F43: 402813 | G43: -838452.63 | J43: -838452.63
A44: 2100 | B44: Amager/Hvidovre Hospital | C44: Betalinger – private | D44: 820 | E44: Resultat | G44: -838452.63 | J44: -838452.63
A45: 2100 | B45: Amager/Hvidovre Hospital | C45: Resultat | G45: -838452.63 | H45: -183789770 | J45: -184628222.6
A46: 2200 | B46: Rigshospitalet | C46: Betalinger - andre r | D46: 810 | E46: Ambulant behandling | F46: 400103 | H46: 409403 | J46: 409403
A47: 2200 | B47: Rigshospitalet | C47: Betalinger - andre r | D47: 810 | E47: Analyser, højt spec. | F47: 402101 | H47: -43049.6 | J47: -43049.6
A48: 2200 | B48: Rigshospitalet | C48: Betalinger - andre r | D48: 810 | E48: Beh.art, hoved/regio | F48: 402602 | H48: 2337646 | J48: 2337646
A49: 2200 | B49: Rigshospitalet | C49: Betalinger - andre r | D49: 810 | E49: Beh.art, højt spec. | F49: 402601 | H49: 32879 | J49: 32879
A50: 2200 | B50: Rigshospitalet | C50: Betalinger - andre r | D50: 810 | E50: Højt Spec. beh. | F50: 400130 | H50: 3685317 | J50: 3685317
A51: 2200 | B51: Rigshospitalet | C51: Betalinger - andre r | D51: 810 | E51: Højt Spec. mark up | F51: 400123 | H51: 216259 | J51: 216259
A52: 2200 | B52: Rigshospitalet | C52: Betalinger - andre r | D52: 810 | E52: Højt Spec. mark up | F52: 400113 | H52: -228126234 | J52: -228126234
A53: 2200 | B53: Rigshospitalet | C53: Betalinger - andre r | D53: 810 | E53: Højt Spec. medicin | F53: 400131 | H53: -68502402.09 | J53: -68502402.09
A54: 2200 | B54: Rigshospitalet | C54: Betalinger - andre r | D54: 810 | E54: Højt Spec. reg tidl | F54: 400120 | H54: -403156479.6 | J54: -403156479.6
A55: 2200 | B55: Rigshospitalet | C55: Betalinger - andre r | D55: 810 | E55: Højt special.funktio | F55: 400101 | H55: -1260376665 | J55: -1260376665
A56: 2200 | B56: Rigshospitalet | C56: Betalinger - andre r | D56: 810 | E56: Medicin, hoved/regio | F56: 402302 | H56: -25000250.79 | J56: -25000250.79
A57: 2200 | B57: Rigshospitalet | C57: Betalinger - andre r | D57: 810 | E57: Medicin, højt spec. | F57: 402301 | H57: 594920.02 | J57: 594920.02
A58: 2200 | B58: Rigshospitalet | C58: Betalinger - andre r | D58: 810 | E58: Operationer | F58: 400104 | H58: 6079696 | J58: 6079696
A59: 2200 | B59: Rigshospitalet | C59: Betalinger - andre r | D59: 810 | E59: Reg.- og hoved funk | F59: 400430 | H59: -73720935.49 | J59: -73720935.49
A60: 2200 | B60: Rigshospitalet | C60: Betalinger - andre r | D60: 810 | E60: Reg.- og hoved funk | F60: 400420 | H60: -263514021 | J60: -263514021
A61: 2200 | B61: Rigshospitalet | C61: Betalinger - andre r | D61: 810 | E61: Sengedage - Regioner | F61: 400102 | H61: -885419.4 | J61: -885419.4
A62: 2200 | B62: Rigshospitalet | C62: Betalinger - andre r | D62: 810 | E62: Øvrige ydelser | F62: 400170 | H62: -1663521.55 | J62: -1663521.55
A63: 2200 | B63: Rigshospitalet | C63: Betalinger - andre r | D63: 810 | E63: Resultat | H63: -2311632858 | J63: -2311632858
A64: 2200 | B64: Rigshospitalet | C64: Resultat | G64: -376934 | H64: -2311632858 | J64: =+J63 -> -2311632858
A65: 6100 | B65: Region Hovedst. Psykiatri | C65: Betalinger - andre r | D65: 810 | E65: Ambulant behandling | F65: 400103 | H65: -6476099 | J65: -6476099
A66: 6100 | B66: Region Hovedst. Psykiatri | C66: Betalinger - andre r | D66: 810 | E66: Eft.reg.senged.Regio | F66: 400180 | H66: -23966568 | J66: -23966568
A67: 6100 | B67: Region Hovedst. Psykiatri | C67: Betalinger - andre r | D67: 810 | E67: Efterreg.Amb.behandl | F67: 400181 | H67: -2470579 | J67: -2470579
A68: 6100 | B68: Region Hovedst. Psykiatri | C68: Betalinger - andre r | D68: 810 | E68: Højt special.funktio | F68: 400101 | H68: -15145535 | J68: -15145535
A69: 6100 | B69: Region Hovedst. Psykiatri | C69: Betalinger - andre r | D69: 810 | E69: Sengedage - Regioner | F69: 400102 | H69: -34744969 | J69: -34744969
A70: 6100 | B70: Region Hovedst. Psykiatri | C70: Betalinger - andre r | D70: 810 | E70: Resultat | H70: -82803750 | J70: -82803750
A71: 6100 | B71: Region Hovedst. Psykiatri | C71: Betalinger – private | D71: 820 | E71: Ambulante behandling | F71: 400111 | I71: -52226 | J71: -52226
A72: 6100 | B72: Region Hovedst. Psykiatri | C72: Betalinger – private | D72: 820 | E72: Eft.reg.senged.Andre | F72: 400190 | I72: -699141 | J72: -699141
A73: 6100 | B73: Region Hovedst. Psykiatri | C73: Betalinger – private | D73: 820 | E73: Sengedage - Andre | F73: 400110 | I73: -434948 | J73: -434948
A74: 6100 | B74: Region Hovedst. Psykiatri | C74: Betalinger – private | D74: 820 | E74: Resultat | I74: -1186315 | J74: -1186315
A75: 6100 | B75: Region Hovedst. Psykiatri | C75: Resultat | H75: -82803750 | I75: -1186315 | J75: -83990065
A76: Samlet resultat | G76: -17823295.6 | H76: -2951742521 | I76: -1186315 | J76: -2970752132
J78: =+J76-J14 -> -2970745438
J80: =+'Skema 6'!#REF!+'Skema 6'!#REF!+'Skema 6'!#REF!+'Skema 6'!#REF!+'Skema 6'!#REF!+'Skema 6'!#REF!+'Skema 6'!#REF!+'Skema 6'!#REF!+'Skema 6'!#REF!+'Skema 6'!#REF!+'Skema 6'!#REF! -> 
J81: =+J78-J80*1000 -> 
A85: Økonomi Analyserapport | D85: Forskning
D87: Forbrug
A88: IM Funktion | B88: Firmakode | D88: DKK
A89: 11001 | B89: 1000A12 | C89: Bispebjerg/Frederiks | D89: 0
A90: 11001 | B90: 1000A13 | C90: Bornholms Hospital | D90: 0
A91: 11001 | B91: 1000A15 | C91: Steno Diabetes Cente | D91: -535981.91
A92: 11001 | B92: 1000A19 | C92: Herlev/Gentofte Hosp | D92: 9458837.76
A93: 11001 | B93: 1000A20 | C93: Nordsjællands Hospit | D93: 289736.91
A94: 11001 | B94: 1000A21 | C94: Amager/Hvidovre Hosp | D94: 0
A95: 11001 | B95: 1000A22 | C95: Rigshospitalet | D95: 331088.64
A96: 11001 | B96: 1000A61 | C96: Region Hovedst. Psyk | D96: 7606.52
A97: 11001 | B97: Resultat | D97: =SUM(D89:D96) -> 9551287.92
A98: Samlet resultat | D98: =+D97 -> 9551287.92
D100: =+'Skema 6'!#REF!+'Skema 6'!#REF!+'Skema 6'!#REF!+'Skema 6'!#REF! -> 
D101: =+D98-D100*1000 -> 
A103: Leasing
E104: Forbrug
A105: Profitcenter | C105: Kreditor | E105: DKK
A106: Samlet resultat | E106: 181994620.6
A107: 1000A | B107: Region Hovedstaden | C107: 9001088 | D107: DE LAGE LANDEN FINANS DANMARK FILIA | E107: 87824.46
A108: 1000A | B108: Region Hovedstaden | C108: 9001404 | D108: IKANO BANK, FILIAL AF IKANO BANK SE | E108: 62169.64
A109: 1000A | B109: Region Hovedstaden | C109: 9001488 | D109: Kommunekredit - kommuneleasing | E109: 181500400.7
A110: 1000A | B110: Region Hovedstaden | C110: 9006783 | D110: LEASING FYN BANK A/S | E110: 344225.8
A111: 1000A | B111: Region Hovedstaden | C111: Resultat | E111: 181994620.6
A112: 1000A12 | B112: Bispebjerg/Frederiks | C112: 9001088 | D112: DE LAGE LANDEN FINANS DANMARK FILIA | E112: 75399.46
A113: 1000A12 | B113: Bispebjerg/Frederiks | C113: 9001488 | D113: Kommunekredit - kommuneleasing | E113: 19845823.11
A114: 1000A12 | B114: Bispebjerg/Frederiks | C114: Resultat | E114: 19921222.57
A115: 1000A13 | B115: Bornholms Hospital | C115: 9001488 | D115: Kommunekredit - kommuneleasing | E115: 2363322.63
A116: 1000A13 | B116: Bornholms Hospital | C116: Resultat | E116: 2363322.63
A117: 1000A15 | B117: Steno Diabetes Cente | C117: 9001404 | D117: IKANO BANK, FILIAL AF IKANO BANK SE | E117: 0
A118: 1000A15 | B118: Steno Diabetes Cente | C118: Resultat | E118: 0
A119: 1000A19 | B119: Herlev/Gentofte Hosp | C119: 9001404 | D119: IKANO BANK, FILIAL AF IKANO BANK SE | E119: 21705.55
A120: 1000A19 | B120: Herlev/Gentofte Hosp | C120: 9001488 | D120: Kommunekredit - kommuneleasing | E120: 55969742.23
A121: 1000A19 | B121: Herlev/Gentofte Hosp | C121: Resultat | E121: 55991447.78
A122: 1000A20 | B122: Nordsjællands Hospit | C122: 9001088 | D122: DE LAGE LANDEN FINANS DANMARK FILIA | E122: 2729
A123: 1000A20 | B123: Nordsjællands Hospit | C123: 9001488 | D123: Kommunekredit - kommuneleasing | E123: 18287791.88
A124: 1000A20 | B124: Nordsjællands Hospit | C124: 9006783 | D124: LEASING FYN BANK A/S | E124: 282095
A125: 1000A20 | B125: Nordsjællands Hospit | C125: Resultat | E125: 18572615.88
A126: 1000A21 | B126: Amager/Hvidovre Hosp | C126: 9001488 | D126: Kommunekredit - kommuneleasing | E126: 30586007.81
A127: 1000A21 | B127: Amager/Hvidovre Hosp | C127: 9006783 | D127: LEASING FYN BANK A/S | E127: 62130.8
A128: 1000A21 | B128: Amager/Hvidovre Hosp | C128: Resultat | E128: 30648138.61
A129: 1000A22 | B129: Rigshospitalet | C129: 9001088 | D129: DE LAGE LANDEN FINANS DANMARK FILIA | E129: 9696
A130: 1000A22 | B130: Rigshospitalet | C130: 9001404 | D130: IKANO BANK, FILIAL AF IKANO BANK SE | E130: 6357.37
A131: 1000A22 | B131: Rigshospitalet | C131: 9001488 | D131: Kommunekredit - kommuneleasing | E131: 54371006.25
A132: 1000A22 | B132: Rigshospitalet | C132: Resultat | E132: 54387059.62
A133: 1000A61 | B133: Region Hovedst. Psyk | C133: 9001404 | D133: IKANO BANK, FILIAL AF IKANO BANK SE | E133: 34106.72
A134: 1000A61 | B134: Region Hovedst. Psyk | C134: 9001488 | D134: Kommunekredit - kommuneleasing | E134: 76706.81
A135: 1000A61 | B135: Region Hovedst. Psyk | C135: Resultat | E135: 110813.53
A136: Ikke allokeret Profitcenter(n/e) | C136: 9001404 | D136: IKANO BANK, FILIAL AF IKANO BANK SE | E136: 0
A137: Ikke allokeret Profitcenter(n/e) | C137: 9001488 | D137: Kommunekredit - kommuneleasing | E137: 0
A138: Ikke allokeret Profitcenter(n/e) | C138: Resultat | E138: 0
E139: =+E106 -> 181994620.6
E141: =+'Skema 5'!#REF!+'Skema 5'!#REF!+'Skema 5'!#REF!+'Skema 5'!#REF!+'Skema 5'!#REF!+'Skema 5'!#REF! -> 
E143: =+E139-E141*1000 -> 

Sheet leasing, indtægter,tolke (hidden)
A1: Leasing
A2: 1000A12 | B2: Bispebjerg/Frederiks | C2: 11001 | D2: Sundhed | E2: 9001488 | F2: Kommunekredit - kommuneleasing | G2: Finansiel leasing/dr | H2: 245832 | I2: 15508697.09 | M2: Praksis
A3: 1000A12 | B3: Bispebjerg/Frederiks | C3: 11001 | D3: Sundhed | E3: 9001488 | F3: Kommunekredit - kommuneleasing | G3: Operationel leasing | H3: 245831 | I3: 1178379.87 | M3: Afregnet 2017
A4: Finasiel leasing-Dialyseuds.A32462.Nefrologisk- RH | C4: 11001 | D4: Sundhed | G4: Finasiel leasing-Dialyseuds.A32462.Nefrologisk- RH | H4: 245832 | I4: -569975 | L4: Rigshospitalet
A5: Ompost jan - feb til CEJ: Operationel leasing | C5: 11001 | D5: Sundhed | G5: Ompost jan - feb til CEJ: Operationel leasing | H5: 245831 | I5: -5808.38 | L5: Klinisk Immunologi | M5: 7713.309
A6: 1000A12 | B6: Bispebjerg/Frederiks | C6: 11001 | D6: Sundhed | E6: 9001488 | F6: Kommunekredit - kommuneleasing | G6: Resultat | I6: =SUM(I2:I5) -> 16111293.58 | L6: Klinisk Mikrobiologi | M6: 44.872
A7: 1000A12 | B7: Bispebjerg/Frederiks | C7: 11001 | D7: Sundhed | E7: Resultat | I7: =+I6 -> 16111293.58 | L7: Patologi | M7: 8868.737 | O7: 54924.29775 | P7: =+O7-(-M6+-M7-M5) -> 71551.21575 | Q7: 71551.21575
A8: 1000A12 | B8: Bispebjerg/Frederiks | C8: Resultat | I8: =+I6 -> 16111293.58
A9: 1000A13 | B9: Bornholms Hospital | C9: 11001 | D9: Sundhed | E9: 9001488 | F9: Kommunekredit - kommuneleasing | G9: Finansiel leasing/dr | H9: 245832 | I9: 1584489.01 | L9: Amager og Hvidovre Hospital
A10: 1000A13 | B10: Bornholms Hospital | C10: 11001 | D10: Sundhed | E10: 9001488 | F10: Kommunekredit - kommuneleasing | G10: Resultat | I10: 1584489.01 | L10: Klinisk Mikrobiologi | M10: 44855.60765
A11: 1000A13 | B11: Bornholms Hospital | C11: 11001 | D11: Sundhed | E11: Resultat | I11: 1584489.01 | L11: Patologi | M11: 34576.697 | O11: 80443.25162 | P11: =+O11-(-M10+-M11) -> 159875.5563 | Q11: 159875.5563
A12: 1000A13 | B12: Bornholms Hospital | C12: Resultat | I12: 1584489.01 | L12: Herlev og Gentofte Hospital
A13: 1000A19 | B13: Herlev/Gentofte Hosp | C13: 11001 | D13: Sundhed | E13: 9001488 | F13: Kommunekredit - kommuneleasing | G13: Biler og transport | H13: 245932 | I13: 30468.5 | L13: Klinisk Mikrobiologi | M13: 39862.64
A14: 1000A19 | B14: Herlev/Gentofte Hosp | C14: 11001 | D14: Sundhed | E14: 9001488 | F14: Kommunekredit - kommuneleasing | G14: Finansiel leasing/dr | H14: 245832 | I14: 20807345.4 | J14: 2400 CIMT | L14: Patologi | M14: 16339.224 | O14: =+P14-M13-M14 -> 64583.03137 | P14: 120784.8954
A15: 1000A19 | B15: Herlev/Gentofte Hosp | C15: 11001 | D15: Sundhed | E15: 9001488 | F15: Kommunekredit - kommuneleasing | G15: Vedligehold varekøb | H15: 245931 | I15: 2455.98
A16: 1000A19 | B16: Herlev/Gentofte Hosp | C16: 11001 | D16: Sundhed | E16: 9001488 | F16: Kommunekredit - kommuneleasing | G16: Resultat | I16: 20840269.88 | J16: 20809745.4 | K16: =+I16-J16 -> 30524.48
A17: 1000A19 | B17: Herlev/Gentofte Hosp | C17: 11001 | D17: Sundhed | E17: Resultat | I17: 20840269.88
A18: 1000A19 | B18: Herlev/Gentofte Hosp | C18: Resultat | I18: 20840269.88
A19: 1000A20 | B19: Nordsjællands Hospit | C19: 11001 | D19: Sundhed | E19: 9001488 | F19: Kommunekredit - kommuneleasing | G19: Benzin og diesel | H19: 245901 | I19: 204.38
A20: 1000A20 | B20: Nordsjællands Hospit | C20: 11001 | D20: Sundhed | E20: 9001488 | F20: Kommunekredit - kommuneleasing | G20: Biler og transport | H20: 245932 | I20: 8447775.81
A21: 1000A20 | B21: Nordsjællands Hospit | C21: 11001 | D21: Sundhed | E21: 9001488 | F21: Kommunekredit - kommuneleasing | G21: Finansiel leasing/dr | H21: 245832 | I21: 8473219.69
A22: 1000A20 | B22: Nordsjællands Hospit | C22: 11001 | D22: Sundhed | E22: 9001488 | F22: Kommunekredit - kommuneleasing | G22: Resultat | I22: 16921199.88 | J22: 16926196.45 | K22: =+J22-I22 -> 4996.573912
A23: 1000A20 | B23: Nordsjællands Hospit | C23: 11001 | D23: Sundhed | E23: Resultat | I23: 16921199.88
A24: 1000A20 | B24: Nordsjællands Hospit | C24: Resultat | I24: 16921199.88
A25: 1000A21 | B25: Amager/Hvidovre Hosp | C25: 11001 | D25: Sundhed | E25: 9001488 | F25: Kommunekredit - kommuneleasing | G25: Annoncer/fragt/gebyr | H25: 225002 | I25: 13288.99
A26: 1000A21 | B26: Amager/Hvidovre Hosp | C26: 11001 | D26: Sundhed | E26: 9001488 | F26: Kommunekredit - kommuneleasing | G26: Finansiel leasing/dr | H26: 245832 | I26: 18337046.6
A27: 1000A21 | B27: Amager/Hvidovre Hosp | C27: 11001 | D27: Sundhed | E27: 9001488 | F27: Kommunekredit - kommuneleasing | G27: Resultat | I27: 18350335.59
A28: 1000A21 | B28: Amager/Hvidovre Hosp | C28: 11001 | D28: Sundhed | E28: Resultat | I28: 18350335.59
A29: 1000A21 | B29: Amager/Hvidovre Hosp | C29: Resultat | I29: 18350335.59
A30: 1000A22 | B30: Rigshospitalet | C30: 11001 | D30: Sundhed | E30: 9001488 | F30: Kommunekredit - kommuneleasing | G30: Finansiel leasing/dr | H30: 245832 | I30: 36089128.35
A31: Finasiel leasing-Dialyseuds.A32462.Nefrologisk- RH | C31: 11001 | D31: Sundhed | G31: Finasiel leasing-Dialyseuds.A32462.Nefrologisk- RH | H31: 245832 | I31: 569975 | J31: fra BFH
A32: 1000A22 | B32: Rigshospitalet | C32: 11001 | D32: Sundhed | E32: 9001488 | F32: Kommunekredit - kommuneleasing | G32: Resultat | I32: =SUM(I30:I31) -> 36659103.35
A33: 1000A22 | B33: Rigshospitalet | C33: 11001 | D33: Sundhed | E33: Resultat | I33: =+I32 -> 36659103.35
A34: 1000A22 | B34: Rigshospitalet | C34: Resultat | I34: =+I32 -> 36659103.35
A35: 1000A61 | B35: Region Hovedst. Psyk | C35: 11001 | D35: Sundhed | E35: 9001488 | F35: Kommunekredit - kommuneleasing | G35: Biler og transport | H35: 245932 | I35: 69096.96
A36: 1000A61 | B36: Region Hovedst. Psyk | C36: 11001 | D36: Sundhed | E36: 9001488 | F36: Kommunekredit - kommuneleasing | G36: Resultat | I36: 69096.96
A37: 1000A61 | B37: Region Hovedst. Psyk | C37: 11001 | D37: Sundhed | E37: Resultat | I37: 69096.96
A38: 1000A61 | B38: Region Hovedst. Psyk | C38: Resultat | I38: 69096.96
A40: Tolke
G41: Forbrug
A42: Profitcenter | C42: IM Funktion | E42: Artskonto | G42: DKK
A43: 1000A | B43: Region Hovedstaden | C43: 11001 | D43: Sundhed | E43: Fremmedsprog | F43: 207937 | G43: =+G44 -> 22659695.24
A44: 1000A | B44: Region Hovedstaden | C44: Resultat | G44: =+G46+G48+G50+G52+G54+G56+G58+G60 -> 22659695.24
A45: 1000A12 | B45: Bispebjerg/Frederiks | C45: 11001 | D45: Sundhed | E45: Fremmedsprog | F45: 207937 | G45: 2209030.1
A46: 1000A12 | B46: Bispebjerg/Frederiks | C46: Resultat | G46: =+G45 -> 2209030.1
A47: 1000A13 | B47: Bornholms Hospital | C47: 11001 | D47: Sundhed | E47: Fremmedsprog | F47: 207937 | G47: 128268.15
A48: 1000A13 | B48: Bornholms Hospital | C48: Resultat | G48: =+G47 -> 128268.15
A49: 1000A15 | B49: Steno Diabetes Cente | C49: 11001 | D49: Sundhed | E49: Fremmedsprog | F49: 207937 | G49: 308491.25
A50: 1000A15 | B50: Steno Diabetes Cente | C50: Resultat | G50: =+G49 -> 308491.25
A51: 1000A19 | B51: Herlev/Gentofte Hosp | C51: 11001 | D51: Sundhed | E51: Fremmedsprog | F51: 207937 | G51: 3763499.05
A52: 1000A19 | B52: Herlev/Gentofte Hosp | C52: Resultat | G52: =+G51 -> 3763499.05
A53: 1000A20 | B53: Nordsjællands Hospit | C53: 11001 | D53: Sundhed | E53: Fremmedsprog | F53: 207937 | G53: 1897882.86
A54: 1000A20 | B54: Nordsjællands Hospit | C54: Resultat | G54: =+G53 -> 1897882.86
A55: 1000A21 | B55: Amager/Hvidovre Hosp | C55: 11001 | D55: Sundhed | E55: Fremmedsprog | F55: 207937 | G55: 3243566.44
A56: 1000A21 | B56: Amager/Hvidovre Hosp | C56: Resultat | G56: =+G55 -> 3243566.44
A57: 1000A22 | B57: Rigshospitalet | C57: 11001 | D57: Sundhed | E57: Fremmedsprog | F57: 207937 | G57: 6374005.4
A58: 1000A22 | B58: Rigshospitalet | C58: Resultat | G58: =+G57 -> 6374005.4
A59: 1000A61 | B59: Region Hovedst. Psyk | C59: 11001 | D59: Sundhed | E59: Fremmedsprog | F59: 207937 | G59: 4734951.99
A60: 1000A61 | B60: Region Hovedst. Psyk | C60: Resultat | G60: =+G59 -> 4734951.99
A62: Patientindtægter
E63: Forbrug | F63: Forbrug | G63: Forbrug
D64: IM Art | E64: 72 | F64: 78 | G64: Samlet resultat
A65: Firmakode | C65: Artskonto | E65: DKK | F65: DKK | G65: DKK
A66: 1200 | B66: Bispebjerg/Frederiksberg | C66: Beh.udl.statsborgere | D66: 402813 | E66: -169215 | G66: -169215
A67: 1200 | B67: Bispebjerg/Frederiksberg | C67: Hovedfunktion DRG | D67: 400411 | F67: -90840584 | G67: -90840584
A68: 1200 | B68: Bispebjerg/Frederiksberg | C68: Højt special.funktio | D68: 400101 | F68: -3519335 | G68: -3519335
A69: 1200 | B69: Bispebjerg/Frederiksberg | C69: Medicin | D69: 402201 | E69: -1784300 | G69: -1784300
A70: 1200 | B70: Bispebjerg/Frederiksberg | C70: Resultat | E70: -1953515 | F70: -94359919 | G70: -96313434
A71: 1300 | B71: Bornholms Hospital | C71: Beh.udl.statsborgere | D71: 402813 | E71: -622391 | G71: -622391
A72: 1300 | B72: Bornholms Hospital | C72: Efterreg.Regionsfunk | D72: 400403 | F72: -497831 | G72: -497831
A73: 1300 | B73: Bornholms Hospital | C73: Regionsfunktion DRG | D73: 400401 | F73: -3880957 | G73: -3880957
A74: 1300 | B74: Bornholms Hospital | C74: Resultat | E74: -634656 | F74: -4378788 | G74: -5001179
A75: 1900 | B75: Herlev/Gentofte Hospital | C75: Beh.udl.statsborgere | D75: 402813 | E75: -1855493 | G75: -1855493
A76: 1900 | B76: Herlev/Gentofte Hospital | C76: Hovedfunktion DRG | D76: 400411 | F76: -96343642 | G76: -96343642
A77: 1900 | B77: Herlev/Gentofte Hospital | C77: Højt special.funktio | D77: 400101 | F77: -146254793 | G77: -146254793
A78: 1900 | B78: Herlev/Gentofte Hospital | C78: Medicin | D78: 402201 | E78: -130864.08 | G78: -130864.08
A79: 1900 | B79: Herlev/Gentofte Hospital | C79: Resultat | E79: -1986357.08 | F79: -242598435 | G79: -244584792.1
A80: 2000 | B80: Nordsjællands Hospitaler | C80: Ambulant behandling | D80: 400103 | F80: -6547176 | G80: -6547176
A81: 2000 | B81: Nordsjællands Hospitaler | C81: Beh.udl.statsborgere | D81: 402813 | E81: -1927187 | G81: -1927187
A82: 2000 | B82: Nordsjællands Hospitaler | C82: Højt special.funktio | D82: 400101 | F82: -23215275 | G82: -23215275
A83: 2000 | B83: Nordsjællands Hospitaler | C83: Sengedage | D83: 400102 | F83: -15858544 | G83: -15858544
A84: 2000 | B84: Nordsjællands Hospitaler | C84: Øvrige ydelser | D84: 400170 | F84: 0 | G84: 0
A85: Patienterstatningen | F85: =+G85 -> 3802 | G85: =-Q85 -> 3802 | K85: Betalinger - andre r | L85: 810 | M85: Ambulant behandling | N85: 400103 | O85: 7000189 | P85: Patienterstatningen | Q85: -3802
A86: 2000 | B86: Nordsjællands Hospitaler | C86: Resultat | E86: =SUM(E80:E85) -> -1927187 | F86: =SUM(F80:F85) -> -45617193 | G86: =SUM(G80:G85) -> -47544380 | H86: -45617193 | I86: =+F86-H86 -> 0
A87: 2100 | B87: Amager/Hvidovre Hospital | C87: Beh.art, hoved/regio | D87: 402602 | F87: -839057 | G87: -839057
A88: 2100 | B88: Amager/Hvidovre Hospital | C88: Beh.udl.statsborgere | D88: 402813 | E88: -175286 | G88: -175286
A89: 2100 | B89: Amager/Hvidovre Hospital | C89: Hovedfunktion DRG | D89: 400411 | F89: -82326953 | G89: -82326953
A90: 2100 | B90: Amager/Hvidovre Hospital | C90: Højt special.funktio | D90: 400101 | F90: -15619470 | G90: -15619470
A91: 2100 | B91: Amager/Hvidovre Hospital | C91: Medicin | D91: 402201 | E91: -92282 | G91: -92282
A92: 2100 | B92: Amager/Hvidovre Hospital | C92: Medicin, hoved/regio | D92: 402302 | F92: -4776804 | G92: -4776804
A93: 2100 | B93: Amager/Hvidovre Hospital | C93: Medicin, højt spec. | D93: 402301 | F93: -134027 | G93: -134027
A94: 2100 | B94: Amager/Hvidovre Hospital | C94: Resultat | E94: -267568 | F94: -103696311 | G94: -103963879
A95: 2200 | B95: Rigshospitalet | C95: Ambulant behandling | D95: 400103 | F95: 1523345.4 | G95: 1523345.4
A96: 2200 | B96: Rigshospitalet | C96: Analyser, højt spec. | D96: 402101 | F96: 240735.42 | G96: 240735.42
A97: 2200 | B97: Rigshospitalet | C97: Beh.art, hoved/regio | D97: 402602 | F97: -2405705 | G97: -2405705
A98: 2200 | B98: Rigshospitalet | C98: Beh.art, højt spec. | D98: 402601 | F98: 18956402.42 | G98: 18956402.42
A99: 2200 | B99: Rigshospitalet | C99: Efterreg.Hovedfunkt | D99: 400413 | F99: -153550 | G99: -153550
A100: 2200 | B100: Rigshospitalet | C100: Hovedfunktion DRG | D100: 400411 | F100: -89968 | G100: -89968
A101: 2200 | B101: Rigshospitalet | C101: Højt Spec. beh. | D101: 400130 | F101: -4236163 | G101: -4236163
A102: 2200 | B102: Rigshospitalet | C102: Højt Spec. mark up | D102: 400113 | F102: 7670862 | G102: 7670862
A103: 2200 | B103: Rigshospitalet | C103: Højt Spec. mark up | D103: 400123 | F103: 1472576 | G103: 1472576
A104: 2200 | B104: Rigshospitalet | C104: Højt Spec. medicin | D104: 400131 | F104: -144904692 | G104: -144904692
A105: 2200 | B105: Rigshospitalet | C105: Højt Spec. reg tidl | D105: 400120 | F105: 31395051.1 | G105: 31395051.1
A106: 2200 | B106: Rigshospitalet | C106: Højt special.funktio | D106: 400101 | F106: -1570219342 | G106: -1570219342
A107: 2200 | B107: Rigshospitalet | C107: Medicin | D107: 402201 | E107: -157036.55 | G107: -157036.55
A108: 2200 | B108: Rigshospitalet | C108: Medicin, hoved/regio | D108: 402302 | F108: -94106936 | G108: -94106936
A109: 2200 | B109: Rigshospitalet | C109: Medicin, højt spec. | D109: 402301 | F109: 790709.48 | G109: 790709.48
A110: 2200 | B110: Rigshospitalet | C110: Operationer | D110: 400104 | F110: -2581810.13 | G110: -2581810.13
A111: 2200 | B111: Rigshospitalet | C111: Reg.- og hoved funk | D111: 400430 | F111: -28731407.5 | G111: -28731407.5
A112: 2200 | B112: Rigshospitalet | C112: Reg.- og hoved funk | D112: 400420 | F112: -218925671 | G112: -218925671
A113: 2200 | B113: Rigshospitalet | C113: Regionsfunktion DRG | D113: 400401 | F113: -334174228.9 | G113: -334174228.9
A114: 2200 | B114: Rigshospitalet | C114: Sengedage | D114: 400102 | F114: 232428735.7 | G114: 232428735.7
A115: 2200 | B115: Rigshospitalet | C115: Øvrige ydelser | D115: 400170 | F115: 69143929.41 | G115: 69143929.41
A116: 2200 | B116: Rigshospitalet | C116: Resultat | E116: -157036.55 | F116: -2036907127 | G116: -2037064163 | H116: -2036907127 | I116: =+G116-H116 -> -157036.55
A117: Samlet resultat | E117: -6926319.63 | F117: -2527561575 | G117: -2534487894
A119: Forskning
A120: 1000A12 | B120: Bispebjerg/Frederiks | C120: 11001 | D120: Sundhed | E120: Eksterne midler | F120: 0
A121: 1000A13 | B121: Bornholms Hospital | C121: 11001 | D121: Sundhed | E121: Eksterne midler | F121: 0
A122: 1000A15 | B122: Steno Diabetes Cente | C122: 11001 | D122: Sundhed | E122: Eksterne midler | F122: -12835961.48
A123: 1000A19 | B123: Herlev/Gentofte Hosp | C123: 11001 | D123: Sundhed | E123: Eksterne midler | F123: -145310.7
A124: 1000A20 | B124: Nordsjællands Hospit | C124: 11001 | D124: Sundhed | E124: Eksterne midler | F124: 0
A125: 1000A21 | B125: Amager/Hvidovre Hosp | C125: 11001 | D125: Sundhed | E125: Eksterne midler | F125: 16595.68
A126: 1000A22 | B126: Rigshospitalet | C126: 11001 | D126: Sundhed | E126: Eksterne midler | F126: 54954.69
A128: Montebello
G129: Forbrug
A130: Profitcenter | C130: IM Funktion | E130: IM Art | G130: DKK
A131: 1000A20278 | B131: Montebello | C131: 11001 | D131: Sundhed | E131: 10 | F131: Lønudgifter | G131: 20877096.25
A132: 1000A20278 | B132: Montebello | C132: 11001 | D132: Sundhed | E132: 22 | F132: Fødevarer | G132: 308.7
A133: 1000A20278 | B133: Montebello | C133: 11001 | D133: Sundhed | E133: 29 | F133: Øvrige varekøb | G133: 133657.26
A134: 1000A20278 | B134: Montebello | C134: 11001 | D134: Sundhed | E134: 40 | F134: Tjenesteydelser uden | G134: 12746863.82
A135: 1000A20278 | B135: Montebello | C135: 11001 | D135: Sundhed | E135: 49 | F135: Øvrige tjenesteydels | G135: 184649.82
A136: 1000A20278 | B136: Montebello | C136: 11001 | D136: Sundhed | E136: 77 | F136: Betalinger fra kommu | G136: -2625
A137: Patientbefordring | G137: -2536.91
A138: 1000A20278 | B138: Montebello | C138: 11001 | D138: Sundhed | E138: Resultat | G138: =SUM(G131:G137) -> 33937413.94 | H138: 33463385.48 | I138: =+G138-H138 -> 474028.46
A139: 1000A20278 | B139: Montebello | C139: Resultat | G139: 33939950.85
G140: =+G139-G138 -> 2536.91
H142: 33463385.48
H143: 474028.46
H144: =+H143+H142 -> 33937413.94
H145: =+G138-H144 -> 0
